Workbook

Sheet Inputs
A1: Inputs | B1: =K2/E2 -> 1.254912099 | D1: 2006 to 2012 | M1: 257.5 | N1: Dec
B2: =M2/K2 -> 1.054800165 | D2: 2012 to 2014 | E2: 193.4 | K2: 242.7 | M2: 256 | O2: 263.8
B3: £2014 | C3: Source | D3: 2005 | E3: 2006 | F3: =E3+1 -> 2007 | G3: =F3+1 -> 2008 | H3: 2009 | I3: 2010 | J3: 2011 | K3: 2012 | L3: 2013 | M3: 2014 | N3: 2015 | O3: 2016 | P3: 2017 | Q3: 2018 | R3: 2019 | S3: 2020 | T3: 2021 | U3: 2022 | V3: 2023 | W3: 2024 | X3: 2025 | Y3: 2026 | Z3: 2027 | AA3: 2028 | AB3: 2029 | AC3: 2030 | AD3: 2031 | AE3: 2032 | AF3: 2033 | AG3: 2034 | AH3: 2035 | AI3: =AH3+1 -> 2036 | AJ3: =AI3+1 -> 2037 | AK3: =AJ3+1 -> 2038 | AL3: =AK3+1 -> 2039 | AM3: =AL3+1 -> 2040 | AN3: =AM3+1 -> 2041 | AO3: =AN3+1 -> 2042 | AP3: =AO3+1 -> 2043 | AQ3: =AP3+1 -> 2044 | AR3: =AQ3+1 -> 2045
E4: Actual | F4: Actual | G4: Actual | H4: PCR02 Det | I4: PCR02 Det | J4: PCR02 Det | K4: PCR02 Det | L4: PCR02 Det | M4: GD14 Det | N4: GD14 Det | O4: GD14 Det | P4: GD17 onward | Q4: GD17 onward | R4: GD17 onward | S4: GD17 onward | T4: GD17 onward | U4: GD17 onward | V4: GD17 onward | W4: GD17 onward | X4: GD17 onward | Y4: GD17 onward | Z4: GD17 onward | AA4: GD17 onward | AB4: GD17 onward | AC4: GD17 onward | AD4: GD17 onward | AE4: GD17 onward | AF4: GD17 onward | AG4: GD17 onward | AH4: GD17 onward | AI4: GD17 onward | AJ4: GD17 onward | AK4: GD17 onward | AL4: GD17 onward | AM4: GD17 onward | AN4: GD17 onward | AO4: GD17 onward | AP4: GD17 onward | AQ4: GD17 onward | AR4: GD17 onward
A6: Capex - Subtotals in £2006 | D6: 2005 | E6: 2006 | F6: 2007 | G6: 2008 | H6: 2009 | I6: 2010 | J6: 2011 | K6: 2012 | L6: =K6+1 -> 2013 | M6: =L6+1 -> 2014 | N6: 2015 | O6: 2016 | P6: 2017 | Q6: 2018 | R6: 2019 | S6: 2020 | T6: 2021 | U6: 2022 | V6: 2023 | W6: 2024 | X6: 2025 | Y6: 2026 | Z6: 2027 | AA6: 2028 | AB6: 2029 | AC6: 2030 | AD6: 2031 | AE6: 2032 | AF6: 2033 | AG6: 2034 | AH6: 2035 | AI6: =AH6+1 -> 2036 | AJ6: =AI6+1 -> 2037 | AK6: =AJ6+1 -> 2038 | AL6: =AK6+1 -> 2039 | AM6: =AL6+1 -> 2040 | AN6: =AM6+1 -> 2041 | AO6: =AN6+1 -> 2042 | AP6: =AO6+1 -> 2043 | AQ6: =AP6+1 -> 2044 | AR6: =AQ6+1 -> 2045
C7: Figures from updated capex performance model
A8: MP | B8: 4 bar main | C8: Letter 16 Feb 2011 | D8: Mains | E8: 6923003.574 | F8: 9049244.956 | G8: 6831773.438 | H8: 8188137.662 | I8: 8078146.893 | J8: 5521651.117 | K8: 4199399.218 | L8: 3685225.36 | M8: 736542.2661 | N8: 622468.0851 | O8: 563037.4766 | P8: =P53/$M$1*$E$2 -> 0 | Q8: =Q53/$M$1*$E$2 -> 0 | R8: 0 | S8: 0 | T8: 0 | U8: 0 | V8: 0 | W8: 0 | X8: 0 | Y8: 0 | Z8: 0 | AA8: 0 | AB8: 0 | AC8: 0 | AD8: 0 | AE8: 0 | AF8: 0 | AG8: 0 | AH8: 0 | AI8: =AI53/$M$1*$E$2 -> 0 | AJ8: 0 | AK8: 0 | AL8: 0 | AM8: 0 | AN8: 0 | AO8: 0 | AP8: 0 | AQ8: 0 | AR8: 0
B9: Governors | C9: PI's model V1.1 | D9: Meters/Tele | E9: 0 | F9: 26142.85714 | G9: 82857.14286 | H9: 77420.41296 | I9: 100474.4626 | J9: 102242.4937 | K9: 52597.53958 | L9: 53307.16321 | M9: 0 | N9: 0 | O9: 0 | P9: =P54/$M$1*$E$2 -> 0 | Q9: 0 | R9: 0 | S9: 0 | T9: 0 | U9: 0 | V9: 0 | W9: 0 | X9: 0 | Y9: 0 | Z9: 0 | AA9: 0 | AB9: 0 | AC9: 0 | AD9: 0 | AE9: 0 | AF9: 0 | AG9: 0 | AH9: 0 | AI9: =AI54/$M$1*$E$2 -> 0 | AJ9: 0 | AK9: 0 | AL9: 0 | AM9: 0 | AN9: 0 | AO9: 0 | AP9: 0 | AQ9: 0 | AR9: 0
A10: LP | B10: Infill &TMA from 2017 | C10: PI's model V1.1 | D10: Mains | E10: 0 | F10: 0 | G10: 223967.2145 | H10: 652307.7191 | I10: 542746.4303 | J10: 573809.6598 | K10: 607285.6125 | L10: 357597.4358 | M10: 5393975.022 | N10: 4237495.856 | O10: 3800068.002 | P10: 7166098.968 | Q10: 6896639.171 | R10: 6941695.805 | S10: 7215722.97 | T10: 7183281.959 | U10: 7788485.707 | V10: 5658989.215 | W10: 5008523.494 | X10: 5215532.226 | Y10: 3258340.9 | Z10: 1566936.375 | AA10: 1552908.932 | AB10: 1545987.901 | AC10: 1539950.547 | AD10: 1534939.932 | AE10: 1531159.536 | AF10: 1527806.884 | AG10: 1525671.243 | AH10: 1523882.594 | AI10: =AI55/$M$1*$E$2 -> 1522586.492 | AJ10: 1522047.039 | AK10: 1521811.305 | AL10: 1521916.486 | AM10: 1522763.073 | AN10: 1523589.286 | AO10: 1524718.952 | AP10: 1525595.587 | AQ10: 1526759.666 | AR10: 1528259.253
A11: Domestic | B11: Services | C11: PI's model V1.1 | D11: Services | E11: 155848.5734 | F11: 290470.0249 | G11: 588038.5732 | H11: 1075079.929 | I11: 1207475.382 | J11: 1223250.216 | K11: 1239295.896 | L11: 1251911.219 | M11: 2021496.168 | N11: 2021496.168 | O11: 1910572.064 | P11: =P56/$M$1*$E$2 -> 2489084.776 | Q11: 2539826.383 | R11: 2593570.85 | S11: 2671942.199 | T11: 2894010.506 | U11: 2975495.299 | V11: 2892185.395 | W11: 2910353.897 | X11: 2729972.079 | Y11: 2730434.433 | Z11: 2563984.25 | AA11: 2334441.036 | AB11: 2211085.595 | AC11: 2098137.291 | AD11: 1990873.755 | AE11: 1892462.947 | AF11: 1800668.378 | AG11: 1715331.399 | AH11: 1636131.429 | AI11: =AI56/$M$1*$E$2 -> 1561925.847 | AJ11: 1493781.025 | AK11: 1429189.638 | AL11: 1369963.309 | AM11: 1315267.093 | AN11: 1263885.982 | AO11: 1215861.844 | AP11: 1170753.972 | AQ11: 1128440.352 | AR11: 1089666.94
B12: Meters | C12: PI's model V1.1 | D12: Meters/Tele | E12: 64686.9793 | F12: 114504.6979 | G12: 193959.2524 | H12: 254860.2745 | I12: 249037.0819 | J12: 253419.3426 | K12: 257704.7324 | L12: 261181.575 | M12: 720369.1801 | N12: 720369.1801 | O12: 684350.7211 | P12: 524125.911 | Q12: 534150.1288 | R12: 544661.9855 | S12: 560519.0332 | T12: 654614.3807 | U12: 729910.0483 | V12: 821346.9455 | W12: 956366.2012 | X12: 904192.6051 | Y12: 978038.403 | Z12: 960092.6929 | AA12: 948448.0964 | AB12: 923955.4772 | AC12: 927002.978 | AD12: 915092.7867 | AE12: 899038.2276 | AF12: 889106.5301 | AG12: 881011.3594 | AH12: 879972.4728 | AI12: =AI57/$M$1*$E$2 -> 946679.41 | AJ12: 1024524.229 | AK12: 1055081.771 | AL12: 1173929.411 | AM12: 1118764.294 | AN12: 1169085.113 | AO12: 1149991.523 | AP12: 1136968.979 | AQ12: 1107785.468 | AR12: 1105702.249
A13: IC | B13: Services | C13: PI's model V1.1 | D13: Services | E13: 126231.3306 | F13: 159935.8089 | G13: 476274.665 | H13: 318783.8918 | I13: 258585.8444 | J13: 282115.1741 | K13: 163323.2855 | L13: 123739.3673 | M13: 139713.3712 | N13: 91762.60239 | O13: 44688.38896 | P13: 335846.5582 | Q13: 336400.913 | R13: 336130.8413 | S13: 335177.3613 | T13: 334597.693 | U13: 333042.4977 | V13: 245460.4368 | W13: 262330.7857 | X13: 269821.4349 | Y13: 279130.8705 | Z13: 254856.8824 | AA13: 231334.2372 | AB13: 212905.5821 | AC13: 188004.7058 | AD13: 171220.1949 | AE13: 155603.775 | AF13: 142271.4112 | AG13: 131282.6034 | AH13: 117291.8554 | AI13: =AI58/$M$1*$E$2 -> 107545.991 | AJ13: 95539.38232 | AK13: 89739.34826 | AL13: 79673.89853 | AM13: 71822.28663 | AN13: 65791.34893 | AO13: 57253.56206 | AP13: 55649.8351 | AQ13: 51676.97737 | AR13: 45302.88743
B14: Meters | C14: PI's model V1.1 | D14: Meters/Tele | E14: 147239.7839 | F14: 257228.4966 | G14: 454194.6357 | H14: 87474.43469 | I14: 61732.49986 | J14: 67651.01059 | K14: 39311.43286 | L14: 29881.35449 | M14: 99093.79316 | N14: 59757.17347 | O14: 25514.93449 | P14: 176285.2656 | Q14: 178218.088 | R14: 168892.8839 | S14: 168413.7967 | T14: 182162.816 | U14: 189574.871 | V14: 188546.9786 | W14: 216832.7507 | X14: 188688.3788 | Y14: 196830.015 | Z14: 184301.1908 | AA14: 181703.5504 | AB14: 153280.478 | AC14: 150344.3892 | AD14: 130402.72 | AE14: 118597.378 | AF14: 114929.8825 | AG14: 103940.2366 | AH14: 96173.66775 | AI14: =AI59/$M$1*$E$2 -> 103405.5883 | AJ14: 102509.3795 | AK14: 118619.5853 | AL14: 136105.3738 | AM14: 98176.04697 | AN14: 97772.68984 | AO14: 89588.35121 | AP14: 95422.063 | AQ14: 75826.86165 | AR14: 83573.74722
A15: Large loads | B15: Services | C15: PI's model V1.1 | D15: Services | E15: 10776.11913 | F15: 74502.02354 | G15: 203422.6011 | H15: 253476.5533 | I15: 227163.8231 | J15: 113437.2248 | K15: 84543.98863 | L15: 17080.91961 | M15: 0 | N15: 0 | O15: 0 | P15: 0 | Q15: 0 | R15: 0 | S15: 0 | T15: 0 | U15: 0 | V15: 0 | W15: 0 | X15: 0 | Y15: 0 | Z15: 0 | AA15: 0 | AB15: 0 | AC15: 0 | AD15: 0 | AE15: 0 | AF15: 0 | AG15: 0 | AH15: 0 | AI15: =AI60/$M$1*$E$2 -> 0 | AJ15: 0 | AK15: 0 | AL15: 0 | AM15: 0 | AN15: 0 | AO15: 0 | AP15: 0 | AQ15: 0 | AR15: 0
B16: Meters | C16: PI's model V1.1 | D16: Meters/Tele | E16: 139516.4755 | F16: 254560.391 | G16: 606396.9668 | H16: 184407.0993 | I16: 139939.7831 | J16: 76816.19164 | K16: 64296.38523 | L16: 13032.76894 | M16: 0 | N16: 0 | O16: 0 | P16: 0 | Q16: 0 | R16: 0 | S16: 0 | T16: 0 | U16: 0 | V16: 0 | W16: 0 | X16: 0 | Y16: 0 | Z16: 0 | AA16: 0 | AB16: 0 | AC16: 0 | AD16: 0 | AE16: 0 | AF16: 0 | AG16: 0 | AH16: 0 | AI16: =AI61/$M$1*$E$2 -> 0 | AJ16: 0 | AK16: 0 | AL16: 0 | AM16: 0 | AN16: 0 | AO16: 0 | AP16: 0 | AQ16: 0 | AR16: 0
A17: Telemetry | B17: PRS from 2017 | C17: PI's model V1.1 | D17: Meters/Tele | E17: 15000 | F17: 33000 | G17: 115500 | H17: 17349.99366 | I17: 11891.41873 | J17: 5232.224243 | K17: 0 | L17: 0 | M17: 19921.71405 | N17: 19921.71405 | O17: 7968.68562 | P17: 14264.31276 | Q17: 27712.21465 | R17: 31576.81982 | S17: 35245.4263 | T17: 33020.79304 | U17: 100485.9909 | V17: 16719.05337 | W17: 16824.08126 | X17: 16824.73499 | Y17: 17300.31034 | Z17: 17244.83799 | AA17: 17396.19915 | AB17: 17493.58999 | AC17: 17597.5589 | AD17: 17696.78568 | AE17: 17799.07396 | AF17: 17895.15858 | AG17: 17995.76419 | AH17: 18096.81917 | AI17: =AI62/$M$1*$E$2 -> 18192.08522 | AJ17: 18292.40569 | AK17: 18383.70444 | AL17: 18478.10246 | AM17: 18573.39973 | AN17: 18661.5316 | AO17: 18752.59484 | AP17: 18827.04382 | AQ17: 18904.77967 | AR17: 18985.48945
A18: Other capex | B18: IT & office | C18: PI's model V1.1 | D18: Other | E18: 313181 | F18: 54621 | G18: 600000 | H18: 44487.16324 | I18: 44042.2916 | J18: 479620.5556 | K18: 43165.85 | L18: 42734.1915 | M18: 97217.96457 | N18: 17531.10836 | O18: 16734.2398 | P18: 423455.4237 | Q18: 85474.84119 | R18: 85474.84119 | S18: 85474.84119 | T18: 85474.84119 | U18: 85474.84119 | V18: 0 | W18: 0 | X18: 0 | Y18: 0 | Z18: 0 | AA18: 0 | AB18: 0 | AC18: 0 | AD18: 0 | AE18: 0 | AF18: 0 | AG18: 0 | AH18: 0 | AI18: =AI63/$M$1*$E$2 -> 0 | AJ18: 0 | AK18: 0 | AL18: 0 | AM18: 0 | AN18: 0 | AO18: 0 | AP18: 0 | AQ18: 0 | AR18: 0
A19: Capex not started (Foyle river crossing) | C19: PI's model V1.1 | D19: Mains | E19: 0 | F19: 0 | G19: 0 | H19: 0 | I19: 0 | J19: 0 | K19: 0 | L19: 0 | M19: 0 | N19: 0 | O19: 0 | P19: 0 | Q19: 0 | R19: 0 | S19: 0 | T19: 0 | U19: 0 | V19: 0 | W19: 0 | X19: 0 | Y19: 0 | Z19: 0 | AA19: 0 | AB19: 0 | AC19: 0 | AD19: 0 | AE19: 0 | AF19: 0 | AG19: 0 | AH19: 0 | AI19: =AI64/$M$1*$E$2 -> 0 | AJ19: 0 | AK19: 0 | AL19: 0 | AM19: 0 | AN19: 0 | AO19: 0 | AP19: 0 | AQ19: 0 | AR19: 0
A21: Capex - Subtotals in £2012 Av
A23: MP | B23: 4 bar main | D23: Mains | E23: =E8/$E$2*$K$2 -> 8687760.948 | F23: =F8/$E$2*$K$2 -> 11356006.98 | G23: 8573275.147 | H23: =H8/$E$2*$K$2 -> 10275393.02 | I23: 10137364.28 | J23: =J8/$E$2*$K$2 -> 6929186.794 | K23: 5269876.889 | L23: 4624633.893 | M23: =M8/$E$2*$K$2 -> 924295.8014 | N23: 781142.7314 | O23: 706562.5417 | P23: =P53/$M$1*$K$2 -> 0 | Q23: =Q53/$M$1*$K$2 -> 0 | R23: 0 | S23: 0 | T23: 0 | U23: 0 | V23: 0 | W23: 0 | X23: 0 | Y23: 0 | Z23: 0 | AA23: 0 | AB23: 0 | AC23: 0 | AD23: 0 | AE23: 0 | AF23: 0 | AG23: 0 | AH23: 0 | AI23: =AI53/$M$1*$K$2 -> 0 | AJ23: 0 | AK23: 0 | AL23: 0 | AM23: 0 | AN23: 0 | AO23: 0 | AP23: 0 | AQ23: 0 | AR23: 0
B24: Governors | D24: Meters/Tele | E24: =E9/$E$2*$K$2 -> 0 | F24: 32806.98774 | G24: 103978.4311 | H24: 97155.81296 | I24: 126086.6188 | J24: 128305.3424 | K24: 66005.28882 | L24: 66895.80409 | M24: 0 | N24: 0 | O24: 0 | P24: =P54/$M$1*$K$2 -> 0 | Q24: 0 | R24: 0 | S24: 0 | T24: 0 | U24: 0 | V24: 0 | W24: 0 | X24: 0 | Y24: 0 | Z24: 0 | AA24: 0 | AB24: 0 | AC24: 0 | AD24: 0 | AE24: 0 | AF24: 0 | AG24: 0 | AH24: 0 | AI24: =AI54/$M$1*$K$2 -> 0 | AJ24: 0 | AK24: 0 | AL24: 0 | AM24: 0 | AN24: 0 | AO24: 0 | AP24: 0 | AQ24: 0 | AR24: 0
A25: LP | B25: Infill &TMA from 2017 | D25: Mains | E25: 0 | F25: 0 | G25: 281059.1673 | H25: 818588.8492 | I25: 681099.0623 | J25: 720080.6848 | K25: 762090.0629 | L25: 448753.3489 | M25: 6768964.518 | N25: 5317684.82 | O25: 4768751.314 | P25: 8992824.3 | Q25: 8654675.94 | R25: 8711218.055 | S25: 9055098.06 | T25: 9014387.443 | U25: 9773864.949 | V25: 7101534.036 | W25: 6285256.732 | X25: 6545034.494 | Y25: 4088931.419 | Z25: 1966367.416 | AA25: 1948764.208 | AB25: 1940078.923 | AC25: 1932502.574 | AD25: 1926214.693 | AE25: 1921470.627 | AF25: 1917263.344 | AG25: 1914583.302 | AH25: 1912338.706 | AI25: =AI55/$M$1*$K$2 -> 1910712.212 | AJ25: 1910035.245 | AK25: 1909739.419 | AL25: 1909871.412 | AM25: 1910933.805 | AN25: 1911970.63 | AO25: 1913388.261 | AP25: 1914488.361 | AQ25: 1915949.178 | AR25: 1917831.028
A26: Domestic | B26: Services | D26: Services | E26: 195576.2605 | F26: 364514.3488 | G26: 737936.7204 | H26: 1349130.81 | I26: 1515275.467 | J26: 1535071.496 | K26: 1555207.414 | L26: 1571038.536 | M26: 2536800 | N26: 2536800 | O26: 2397600 | P26: 3123582.602 | Q26: 3187258.858 | R26: 3254703.44 | S26: 3353052.594 | T26: 3631728.8 | U26: 3733985.052 | V26: 3629438.445 | W26: 3652238.318 | X26: 3425874.992 | Y26: 3426455.206 | Z26: 3217574.858 | AA26: 2929518.302 | AB26: 2774718.066 | AC26: 2632977.872 | AD26: 2498371.563 | AE26: 2374874.65 | AF26: 2259680.534 | AG26: 2152590.127 | AH26: 2053201.126 | AI26: =AI56/$M$1*$K$2 -> 1960079.644 | AJ26: 1874563.882 | AK26: 1793507.369 | AL26: 1719183.532 | AM26: 1650544.588 | AN26: 1586065.811 | AO26: 1525799.739 | AP26: 1469193.325 | AQ26: 1416093.451 | AR26: 1367436.227
B27: Meters | D27: Meters/Tele | E27: 81176.47299 | F27: 143693.3309 | G27: 243401.8126 | H27: 319827.2421 | I27: 312519.6473 | J27: 318018.9993 | K27: 323396.7867 | L27: 327759.9186 | M27: 904000 | N27: 904000 | O27: 858800 | P27: 657731.9472 | Q27: 670311.4595 | R27: 683502.9157 | S27: 703402.1167 | T27: 821483.5067 | U27: 915972.951 | V27: 1030718.22 | W27: 1200155.517 | X27: 1134682.24 | Y27: 1227352.225 | Z27: 1204831.937 | AA27: 1190218.992 | AB27: 1159482.908 | AC27: 1163307.253 | AD27: 1148361.01 | AE27: 1128213.949 | AF27: 1115750.542 | AG27: 1105591.814 | AH27: 1104288.103 | AI27: =AI57/$M$1*$K$2 -> 1187999.446 | AJ27: 1285687.852 | AK27: 1324034.88 | AL27: 1473178.222 | AM27: 1403950.849 | AN27: 1467099.053 | AO27: 1443138.276 | AP27: 1426796.129 | AQ27: 1390173.387 | AR27: 1387559.131
A28: IC | B28: Services | D28: Services | E28: 158409.2241 | F28: 200705.3817 | G28: 597682.8397 | H28: 400045.7628 | I28: 324502.5048 | J28: 354029.7453 | K28: 204956.3671 | L28: 155282.0292 | M28: 175328 | N28: 115154 | O28: 56080 | P28: 421457.9094 | Q28: 422153.576 | R28: 421814.6597 | S28: 420618.1261 | T28: 419890.6933 | U28: 417939.0599 | V28: 308031.272 | W28: 329202.077 | X28: 338602.1833 | Y28: 350284.7067 | Z28: 319822.9853 | AA28: 290304.1332 | AB28: 267177.791 | AC28: 235929.38 | AD28: 214866.2942 | AE28: 195269.0599 | AF28: 178538.1153 | AG28: 164748.1274 | AH28: 147190.9685 | AI28: =AI58/$M$1*$K$2 -> 134960.7653 | AJ28: 119893.5268 | AK28: 112614.9939 | AL28: 99983.73926 | AM28: 90130.65649 | AN28: 82562.35981 | AO28: 71848.18775 | AP28: 69835.65139 | AQ28: 64850.06416 | AR28: 56851.14156
B29: Meters | D29: Meters/Tele | E29: 184772.9864 | F29: 322799.1527 | G29: 569974.3437 | H29: 109772.7265 | I29: 77468.861 | J29: 84896.07172 | K29: 49332.39274 | L29: 37498.4733 | M29: 124354 | N29: 74990 | O29: 32019 | P29: 221222.5127 | Q29: 223648.0349 | R29: 211945.7234 | S29: 211344.5111 | T29: 228598.3218 | U29: 237899.7993 | V29: 236609.8847 | W29: 272106.0423 | X29: 236787.3295 | Y29: 247004.3673 | Z29: 231281.7942 | AA29: 228021.9839 | AB29: 192353.5265 | AC29: 188668.9931 | AD29: 163643.9511 | AE29: 148829.2845 | AF29: 144226.9001 | AG29: 130435.8605 | AH29: 120689.4993 | AI29: =AI59/$M$1*$K$2 -> 129764.9239 | AJ29: 128640.2606 | AK29: 148857.1528 | AL29: 170800.2803 | AM29: 123202.3092 | AN29: 122696.1315 | AO29: 112425.5059 | AP29: 119746.3014 | AQ29: 95156.04614 | AR29: 104877.7066
A30: Large loads | B30: Services | D30: Services | E30: 13523.08228 | F30: 93493.49076 | G30: 255277.4834 | H30: 318090.7936 | I30: 285070.6301 | J30: 142353.7459 | K30: 106095.2743 | L30: 21435.05269 | M30: 0 | N30: 0 | O30: 0 | P30: 0 | Q30: 0 | R30: 0 | S30: 0 | T30: 0 | U30: 0 | V30: 0 | W30: 0 | X30: 0 | Y30: 0 | Z30: 0 | AA30: 0 | AB30: 0 | AC30: 0 | AD30: 0 | AE30: 0 | AF30: 0 | AG30: 0 | AH30: 0 | AI30: =AI60/$M$1*$K$2 -> 0 | AJ30: 0 | AK30: 0 | AL30: 0 | AM30: 0 | AN30: 0 | AO30: 0 | AP30: 0 | AQ30: 0 | AR30: 0
B31: Meters | D31: Meters/Tele | E31: 175080.9132 | F31: 319450.9147 | G31: 760974.8906 | H31: 231414.7001 | I31: 175612.127 | J31: 96397.5683 | K31: 80686.31176 | L31: 16354.97943 | M31: 0 | N31: 0 | O31: 0 | P31: 0 | Q31: 0 | R31: 0 | S31: 0 | T31: 0 | U31: 0 | V31: 0 | W31: 0 | X31: 0 | Y31: 0 | Z31: 0 | AA31: 0 | AB31: 0 | AC31: 0 | AD31: 0 | AE31: 0 | AF31: 0 | AG31: 0 | AH31: 0 | AI31: =AI61/$M$1*$K$2 -> 0 | AJ31: 0 | AK31: 0 | AL31: 0 | AM31: 0 | AN31: 0 | AO31: 0 | AP31: 0 | AQ31: 0 | AR31: 0
A32: Telemetry | B32: PRS from 2017 | D32: Meters/Tele | E32: 18823.68149 | F32: 41412.09928 | G32: 144942.3475 | H32: 21772.71697 | I32: 14922.68525 | J32: 6565.981508 | K32: 0 | L32: 0 | M32: 25000 | N32: 25000 | O32: =O17/$E$2*$K$2 -> 10000 | P32: 17900.45867 | Q32: 34776.39346 | R32: 39626.13325 | S32: 44229.91191 | T32: 41438.19271 | U32: 126101.0858 | V32: 20980.94236 | W32: 21112.74314 | X32: 21113.56351 | Y32: 21710.36876 | Z32: 21640.75584 | AA32: 21830.70079 | AB32: 21952.91773 | AC32: 22083.38958 | AD32: 22207.91047 | AE32: 22336.27327 | AF32: 22456.85102 | AG32: 22583.10222 | AH32: 22709.91734 | AI32: =AI62/$M$1*$K$2 -> 22829.46785 | AJ32: 22955.36123 | AK32: 23069.93314 | AL32: 23188.39434 | AM32: 23307.98404 | AN32: 23418.5818 | AO32: 23532.85816 | AP32: 23626.28508 | AQ32: 23723.83675 | AR32: 23825.12042
A33: Other capex | B33: IT & office | D33: Other | E33: 393014.6262 | F33: 68544.55377 | G33: 752947.2596 | H33: 55827.47941 | I33: 55269.20461 | J33: 601881.6382 | K33: 54169.34744 | L33: 53627.65397 | M33: 122000 | N33: 22000 | O33: 21000 | P33: 531399.3347 | Q33: 107263.4124 | R33: 107263.4124 | S33: 107263.4124 | T33: 107263.4124 | U33: 107263.4124 | V33: 0 | W33: 0 | X33: 0 | Y33: 0 | Z33: 0 | AA33: 0 | AB33: 0 | AC33: 0 | AD33: 0 | AE33: 0 | AF33: 0 | AG33: 0 | AH33: 0 | AI33: =AI63/$M$1*$K$2 -> 0 | AJ33: 0 | AK33: 0 | AL33: 0 | AM33: 0 | AN33: 0 | AO33: 0 | AP33: 0 | AQ33: 0 | AR33: 0
A34: Capex not started (Foyle river crossing) | D34: Mains | E34: 0 | F34: 0 | G34: 0 | H34: 0 | I34: 0 | J34: 0 | K34: 0 | L34: 0 | M34: 0 | N34: 0 | O34: 0 | P34: 0 | Q34: 0 | R34: 0 | S34: 0 | T34: 0 | U34: 0 | V34: 0 | W34: 0 | X34: 0 | Y34: 0 | Z34: 0 | AA34: 0 | AB34: 0 | AC34: 0 | AD34: 0 | AE34: 0 | AF34: 0 | AG34: 0 | AH34: 0 | AI34: =AI64/$M$1*$K$2 -> 0 | AJ34: 0 | AK34: 0 | AL34: 0 | AM34: 0 | AN34: 0 | AO34: 0 | AP34: 0 | AQ34: 0 | AR34: 0
A36: Capex - Subtotals in £2014 Av - GD17 Submission
A38: MP | B38: 4 bar main | D38: Mains | E38: =E8/$E$2*$M$2 -> 9163851.68 | F38: =F8/$E$2*$M$2 -> 11978318.04 | G38: 9043092.039 | H38: 10838486.25 | I38: 10692893.51 | J38: 7308907.373 | K38: 5558667.011 | L38: 4878064.593 | M38: =M8/$E$2*$M$2 -> 974947.3637 | N38: =N8/$E$2*$M$2 -> 823949.4819 | O38: =O8/$E$2*$M$2 -> 745282.2855 | P38: =P53/$M$1*$M$2 -> 0 | Q38: =Q53/$M$1*$M$2 -> 0 | R38: 0 | S38: 0 | T38: 0 | U38: 0 | V38: 0 | W38: 0 | X38: 0 | Y38: 0 | Z38: 0 | AA38: 0 | AB38: 0 | AC38: 0 | AD38: 0 | AE38: 0 | AF38: 0 | AG38: 0 | AH38: 0 | AI38: =AI53/$M$1*$M$2 -> 0 | AJ38: 0 | AK38: 0 | AL38: 0 | AM38: 0 | AN38: 0 | AO38: 0 | AP38: 0 | AQ38: 0 | AR38: 0
B39: Governors | D39: Meters/Tele | E39: =E9/$E$2*$M$2 -> 0 | F39: 34604.81607 | G39: 109676.4662 | H39: 102479.9675 | I39: 132996.1863 | J39: 135336.4963 | K39: 69622.38952 | L39: 70561.70518 | M39: 0 | N39: 0 | O39: 0 | P39: =P54/$M$1*$M$2 -> 0 | Q39: 0 | R39: 0 | S39: 0 | T39: 0 | U39: 0 | V39: 0 | W39: 0 | X39: 0 | Y39: 0 | Z39: 0 | AA39: 0 | AB39: 0 | AC39: 0 | AD39: 0 | AE39: 0 | AF39: 0 | AG39: 0 | AH39: 0 | AI39: =AI54/$M$1*$M$2 -> 0 | AJ39: 0 | AK39: 0 | AL39: 0 | AM39: 0 | AN39: 0 | AO39: 0 | AP39: 0 | AQ39: 0 | AR39: 0
A40: LP | B40: Infill &TMA from 2017 | D40: Mains | E40: 0 | F40: 0 | G40: 296461.256 | H40: 863447.653 | I40: 718423.4031 | J40: 759541.225 | K40: 803852.7239 | L40: 473345.1064 | M40: 7139904.89 | N40: 5609094.825 | O40: 5030079.672 | P40: =P55/$M$1*$M$2 -> 9485632.554 | Q40: 9128953.608 | R40: 9188594.24 | S40: 9551318.926 | T40: 9508377.36 | U40: 10309474.36 | V40: 7490699.271 | W40: 6629689.836 | X40: 6903703.463 | Y40: 4313005.534 | Z40: 2074124.674 | AA40: 2055556.808 | AB40: 2046395.567 | AC40: 2038404.034 | AD40: 2031771.575 | AE40: 2026767.534 | AF40: 2022329.692 | AG40: 2019502.782 | AH40: 2017135.182 | AI40: =AI55/$M$1*$M$2 -> 2015419.556 | AJ40: 2014705.491 | AK40: 2014393.454 | AL40: 2014532.68 | AM40: 2015653.292 | AN40: 2016746.935 | AO40: 2018242.253 | AP40: 2019402.639 | AQ40: 2020943.508 | AR40: 2022928.484
A41: Domestic | B41: Services | D41: Services | E41: 206293.8718 | F41: 384489.7952 | G41: 778375.7743 | H41: 1423063.401 | I41: 1598312.812 | J41: 1619193.667 | K41: 1640433.037 | L41: 1657131.707 | M41: 2675817.058 | N41: 2675817.058 | O41: 2528988.875 | P41: 3294755.443 | Q41: 3361921.169 | R41: 3433061.725 | S41: 3536800.429 | T41: 3830748.136 | U41: 3938608.049 | V41: 3828332.27 | W41: 3852381.58 | X41: 3613613.506 | Y41: 3614225.516 | Z41: 3393898.491 | AA41: 3090056.387 | AB41: 2926773.074 | AC41: 2777265.494 | AD41: 2635282.737 | AE41: 2505018.172 | AF41: 2383511.4 | AG41: 2270552.42 | AH41: 2165716.886 | AI41: =AI56/$M$1*$M$2 -> 2067492.331 | AJ41: 1977290.291 | AK41: 1891791.869 | AL41: 1813395.073 | AM41: 1740994.704 | AN41: 1672982.478 | AO41: 1609413.816 | AP41: 1549705.361 | AQ41: 1493695.605 | AR41: 1442371.957
B42: Meters | D42: Meters/Tele | E42: 85624.95709 | F42: 151567.7491 | G42: 256740.2721 | H42: 337353.8276 | I42: 329645.7755 | J42: 335446.4928 | K42: 341118.9839 | L42: 345721.2161 | M42: 953539.349 | N42: 953539.349 | O42: 905862.3815 | P42: 693775.7663 | Q42: 707044.638 | R42: 720958.9881 | S42: 741948.6686 | T42: 866500.9382 | U42: 966168.4196 | V42: 1087201.748 | W42: 1265924.237 | X42: 1196863.014 | Y42: 1294611.33 | Z42: 1270856.925 | AA42: 1255443.189 | AB42: 1223022.762 | AC42: 1227056.682 | AD42: 1211291.383 | AE42: 1190040.26 | AF42: 1176893.856 | AG42: 1166178.428 | AH42: 1164803.273 | AI42: =AI57/$M$1*$M$2 -> 1253102.011 | AJ42: 1356143.758 | AK42: 1396592.209 | AL42: 1553908.631 | AM42: 1480887.587 | AN42: 1547496.323 | AO42: 1522222.491 | AP42: 1504984.792 | AQ42: 1466355.117 | AR42: 1463597.6
A43: IC | B43: Services | D43: Services | E43: 167090.0757 | F43: 211704.0697 | G43: 630435.9578 | H43: 421968.3366 | I43: 342285.2956 | J43: 373430.6337 | K43: 216188.0098 | L43: 163791.51 | M43: 184936.0033 | N43: 121464.4582 | O43: 59153.19324 | P43: 444553.8723 | Q43: 445287.6615 | R43: 444930.1726 | S43: 443668.0688 | T43: 442900.7725 | U43: 440842.1893 | V43: 324911.4365 | W43: 347242.4051 | X43: 357157.6388 | Y43: 369480.3663 | Z43: 337349.3376 | AA43: 306212.8476 | AB43: 281819.178 | AC43: 248858.3489 | AD43: 226641.0026 | AE43: 205969.8365 | AF43: 188322.0335 | AG43: 173776.3519 | AH43: 155257.0579 | AI43: =AI58/$M$1*$M$2 -> 142356.6375 | AJ43: 126463.7119 | AK43: 118786.3141 | AL43: 105462.8646 | AM43: 95069.83132 | AN43: 87086.79073 | AO43: 75785.48028 | AP43: 73662.65659 | AQ43: 68403.85837 | AR43: 59966.59349
B44: Meters | D44: Meters/Tele | E44: 194898.5765 | F44: 340488.5994 | G44: 601209.0317 | H44: 115788.29 | I44: 81714.16735 | J44: 89548.39045 | K44: 52035.81599 | L44: 39553.39581 | M44: 131168.6197 | N44: 79099.46436 | O44: 33773.64648 | P44: 233345.5429 | Q44: 235903.9841 | R44: 223560.384 | S44: 222926.2251 | T44: 241125.5475 | U44: 250936.7475 | V44: 249576.1454 | W44: 287017.4983 | X44: 249763.3142 | Y44: 260540.2474 | Z44: 243956.0747 | AA44: 240517.6262 | AB44: 202894.5314 | AC44: 199008.085 | AD44: 172611.6666 | AE44: 156985.1539 | AF44: 152130.558 | AG44: 137583.7671 | AH44: 127303.3037 | AI44: =AI59/$M$1*$M$2 -> 136876.0631 | AJ44: 135689.7681 | AK44: 157014.5493 | AL44: 180160.1638 | AM44: 129953.816 | AN44: 129419.8997 | AO44: 118586.4421 | AP44: 126308.4185 | AQ44: 100370.6132 | AR44: 110625.0222
A45: Large loads | B45: Services | D45: Services | E45: 14264.14942 | F45: 98616.94947 | G45: 269266.7315 | H45: 335522.2216 | I45: 300692.5477 | J45: 150154.7546 | K45: 111909.3128 | L45: 22609.69711 | M45: 0 | N45: 0 | O45: 0 | P45: 0 | Q45: 0 | R45: 0 | S45: 0 | T45: 0 | U45: 0 | V45: 0 | W45: 0 | X45: 0 | Y45: 0 | Z45: 0 | AA45: 0 | AB45: 0 | AC45: 0 | AD45: 0 | AE45: 0 | AF45: 0 | AG45: 0 | AH45: 0 | AI45: =AI60/$M$1*$M$2 -> 0 | AJ45: 0 | AK45: 0 | AL45: 0 | AM45: 0 | AN45: 0 | AO45: 0 | AP45: 0 | AQ45: 0 | AR45: 0
B46: Meters | D46: Meters/Tele | E46: 184675.3761 | F46: 336956.8774 | G46: 802676.44 | H46: 244096.2638 | I46: 185235.7005 | J46: 101680.1709 | K46: 85107.93494 | L46: 17251.235 | M46: 0 | N46: 0 | O46: 0 | P46: 0 | Q46: 0 | R46: 0 | S46: 0 | T46: 0 | U46: 0 | V46: 0 | W46: 0 | X46: 0 | Y46: 0 | Z46: 0 | AA46: 0 | AB46: 0 | AC46: 0 | AD46: 0 | AE46: 0 | AF46: 0 | AG46: 0 | AH46: 0 | AI46: =AI61/$M$1*$M$2 -> 0 | AJ46: 0 | AK46: 0 | AL46: 0 | AM46: 0 | AN46: 0 | AO46: 0 | AP46: 0 | AQ46: 0 | AR46: 0
A47: Telemetry | B47: PRS from 2017 | D47: Meters/Tele | E47: 19855.22234 | F47: 43681.48914 | G47: 152885.212 | H47: 22965.86545 | I47: 15740.45086 | J47: 6925.798377 | K47: 0 | L47: 0 | M47: 26370.00412 | N47: 26370.00412 | O47: =O17/$E$2*$M$2 -> 10548.00165 | P47: 18881.40676 | Q47: 36682.14555 | R47: 41797.65188 | S47: 46653.71837 | T47: 43709.0125 | U47: 133011.4461 | V47: 22130.70146 | W47: 22269.72494 | X47: 22270.59027 | Y47: 22900.10055 | Z47: 22826.67283 | AA47: 23027.02679 | AB47: 23155.94124 | AC47: 23293.56297 | AD47: 23424.90763 | AE47: 23560.30473 | AF47: 23687.49016 | AG47: 23820.65994 | AH47: 23954.42455 | AI47: =AI62/$M$1*$M$2 -> 24080.52645 | AJ47: 24213.31881 | AK47: 24334.16927 | AL47: 24459.12218 | AM47: 24585.26541 | AN47: 24701.92394 | AO47: 24822.46266 | AP47: 24921.0094 | AQ47: 25023.90691 | AR47: 25130.74094
A48: Other capex | B48: IT & office | D48: Other | E48: 414551.8925 | F48: 72300.80662 | G48: 794208.8935 | H48: 58886.83448 | I48: 58297.96614 | J48: 634864.8512 | K48: 57137.83661 | L48: 56566.45824 | M48: 128685.6201 | N48: 23205.60363 | O48: 22150.80346 | P48: 560520.1059 | Q48: 113141.4651 | R48: 113141.4651 | S48: 113141.4651 | T48: 113141.4651 | U48: 113141.4651 | V48: 0 | W48: 0 | X48: 0 | Y48: 0 | Z48: 0 | AA48: 0 | AB48: 0 | AC48: 0 | AD48: 0 | AE48: 0 | AF48: 0 | AG48: 0 | AH48: 0 | AI48: =AI63/$M$1*$M$2 -> 0 | AJ48: 0 | AK48: 0 | AL48: 0 | AM48: 0 | AN48: 0 | AO48: 0 | AP48: 0 | AQ48: 0 | AR48: 0
A49: Capex not started (Foyle river crossing) | D49: Mains | E49: 0 | F49: 0 | G49: 0 | H49: 0 | I49: 0 | J49: 0 | K49: 0 | L49: 0 | M49: 0 | N49: 0 | O49: 0 | P49: 0 | Q49: 0 | R49: 0 | S49: 0 | T49: 0 | U49: 0 | V49: 0 | W49: 0 | X49: 0 | Y49: 0 | Z49: 0 | AA49: 0 | AB49: 0 | AC49: 0 | AD49: 0 | AE49: 0 | AF49: 0 | AG49: 0 | AH49: 0 | AI49: =AI64/$M$1*$M$2 -> 0 | AJ49: 0 | AK49: 0 | AL49: 0 | AM49: 0 | AN49: 0 | AO49: 0 | AP49: 0 | AQ49: 0 | AR49: 0
A51: Capex - Subtotals in DEC £2014 - GD17 Submission
A53: MP | B53: 4 bar main - Non LP Infill!! | D53: Mains | E53: =E38/$M$2*$M$1 -> 9217546.123 | F53: =F38/$M$2*$M$1 -> 12048503.5 | G53: 9096078.906 | H53: 10901993.01 | I53: 10755547.18 | J53: 7351733.002 | K53: 5591237.326 | L53: 4906647.002 | M53: 980659.9459 | N53: 828777.3109 | O53: 749649.1739 | P53: 0 | Q53: 0 | R53: 0 | S53: 0 | T53: 0 | U53: 0 | V53: 0 | W53: 0 | X53: 0 | Y53: 0 | Z53: 0 | AA53: 0 | AB53: 0 | AC53: 0 | AD53: 0 | AE53: 0 | AF53: 0 | AG53: 0 | AH53: 0 | AI53: 0 | AJ53: 0 | AK53: 0 | AL53: 0 | AM53: 0 | AN53: 0 | AO53: 0 | AP53: 0 | AQ53: 0 | AR53: 0
B54: Governors | D54: Meters/Tele | E54: =E39/$M$2*$M$1 -> 0 | F54: 34807.57867 | G54: 110319.1018 | H54: 103080.4361 | I54: 133775.4609 | J54: 136129.4836 | K54: 70030.33321 | L54: 70975.15267 | M54: 0 | N54: 0 | O54: 0 | P54: 0 | Q54: 0 | R54: 0 | S54: 0 | T54: 0 | U54: 0 | V54: 0 | W54: 0 | X54: 0 | Y54: 0 | Z54: 0 | AA54: 0 | AB54: 0 | AC54: 0 | AD54: 0 | AE54: 0 | AF54: 0 | AG54: 0 | AH54: 0 | AI54: 0 | AJ54: 0 | AK54: 0 | AL54: 0 | AM54: 0 | AN54: 0 | AO54: 0 | AP54: 0 | AQ54: 0 | AR54: 0
A55: LP | B55: Infill &TMA from 2017 | D55: Mains | E55: 0 | F55: 0 | G55: 298198.3337 | H55: 868506.9166 | I55: 722632.9153 | J55: 763991.6618 | K55: 808562.7985 | L55: 476118.6129 | M55: 7181740.27 | N55: 5641960.615 | O55: 5059552.795 | P55: 9541212.432 | Q55: 9182443.571 | R55: 9242433.66 | S55: 9607283.686 | T55: 9564090.509 | U55: 10369881.44 | V55: 7534590.087 | W55: 6668535.675 | X55: 6944154.851 | Y55: 4338277.051 | Z55: 2086277.748 | AA55: 2067601.086 | AB55: 2058386.166 | AC55: 2050347.807 | AD55: 2043676.487 | AE55: 2038643.126 | AF55: 2034179.28 | AG55: 2031335.806 | AH55: 2028954.333 | AI55: 2027228.655 | AJ55: 2026510.406 | AK55: 2026196.541 | AL55: 2026336.583 | AM55: 2027463.761 | AN55: 2028563.812 | AO55: 2030067.891 | AP55: 2031235.076 | AQ55: 2032784.974 | AR55: 2034781.581
A56: Domestic | B56: Services | D56: Services | E56: 207502.6249 | F56: 386742.6651 | G56: 782936.5699 | H56: 1431401.663 | I56: 1607677.926 | J56: 1628681.13 | K56: 1650044.949 | L56: 1666841.463 | M56: 2691495.674 | N56: 2691495.674 | O56: 2543807.169 | P56: 3314060.651 | Q56: 3381619.925 | R56: 3453177.321 | S56: 3557523.869 | T56: 3853193.926 | U56: 3961685.83 | V56: 3850763.904 | W56: 3874954.128 | X56: 3634787.023 | Y56: 3635402.619 | Z56: 3413784.615 | AA56: 3108162.186 | AB56: 2943922.135 | AC56: 2793538.534 | AD56: 2650723.847 | AE56: 2519696.013 | AF56: 2397477.287 | AG56: 2283856.439 | AH56: 2178406.633 | AI56: 2079606.544 | AJ56: 1988875.977 | AK56: 1902876.587 | AL56: 1824020.435 | AM56: 1751195.845 | AN56: 1682785.11 | AO56: 1618843.975 | AP56: 1558785.666 | AQ56: 1502447.728 | AR56: 1450823.356
B57: Meters | D57: Meters/Tele | E57: 86126.66583 | F57: 152455.8414 | G57: 258244.6096 | H57: 339330.5102 | I57: 331577.2937 | J57: 337411.9996 | K57: 343117.728 | L57: 347746.9264 | M57: 959126.4936 | N57: 959126.4936 | O57: 911170.1689 | P57: 697840.8587 | Q57: 711187.4776 | R57: 725183.3572 | S57: 746296.0241 | T57: 871578.0922 | U57: 971829.5627 | V57: 1093572.071 | W57: 1273341.762 | X57: 1203875.883 | Y57: 1302196.943 | Z57: 1278303.353 | AA57: 1262799.301 | AB57: 1230188.911 | AC57: 1234246.468 | AD57: 1218388.793 | AE57: 1197013.152 | AF57: 1183789.718 | AG57: 1173011.505 | AH57: 1171628.292 | AI57: 1260444.406 | AJ57: 1364089.913 | AK57: 1404775.367 | AL57: 1563013.565 | AM57: 1489564.663 | AN57: 1556563.684 | AO57: 1531141.764 | AP57: 1513803.062 | AQ57: 1474947.042 | AR57: 1472173.367
A58: IC | B58: Services | D58: Services | E58: 168069.1191 | F58: 212944.5232 | G58: 634129.9185 | H58: 424440.8073 | I58: 344290.8735 | J58: 375618.7038 | K58: 217454.7364 | L58: 164751.2259 | M58: 186019.6127 | N58: 122176.164 | O58: 59499.79398 | P58: 447158.6801 | Q58: 447896.7689 | R58: 447537.1853 | S58: 446267.6863 | T58: 445495.8942 | U58: 443425.249 | V58: 326815.2144 | W58: 349277.0286 | X58: 359250.3593 | Y58: 371645.2904 | Z58: 339325.9938 | AA58: 308007.0635 | AB58: 283470.4622 | AC58: 250316.5033 | AD58: 227968.9772 | AE58: 207176.6911 | AF58: 189425.4829 | AG58: 174794.5727 | AH58: 156166.7672 | AI58: 143190.7584 | AJ58: 127204.7102 | AK58: 119482.3277 | AL58: 106080.8111 | AM58: 95626.88111 | AN58: 87597.06489 | AO58: 76229.53583 | AP58: 74094.27372 | AQ58: 68804.66222 | AR58: 60317.96025
B59: Meters | D59: Meters/Tele | E59: 196040.5603 | F59: 342483.6498 | G59: 604731.7409 | H59: 116466.737 | I59: 82192.9613 | J59: 90073.08805 | K59: 52340.71335 | L59: 39785.15399 | M59: 131937.1858 | N59: 79562.93778 | O59: 33971.53894 | P59: 234712.8019 | Q59: 237286.234 | R59: 224870.3081 | S59: 224232.4335 | T59: 242538.3925 | U59: 252407.08 | V59: 251038.5056 | W59: 288699.2414 | X59: 251226.7711 | Y59: 262066.8504 | Z59: 245385.5048 | AA59: 241926.9092 | AB59: 204083.3665 | AC59: 200174.148 | AD59: 173623.0631 | AE59: 157904.9887 | AF59: 153021.948 | AG59: 138389.922 | AH59: 128049.2215 | AI59: 137678.0713 | AJ59: 136484.8253 | AK59: 157934.5564 | AL59: 181215.7898 | AM59: 130715.2642 | AN59: 130178.2194 | AO59: 119281.2846 | AP59: 127048.5068 | AQ59: 100958.7222 | AR59: 111273.2157
A60: Large loads | B60: Services | D60: Services | E60: 14347.72842 | F60: 99194.78316 | G60: 270844.4663 | H60: 337488.1721 | I60: 302454.4181 | J60: 151034.5676 | K60: 112565.0314 | L60: 22742.1758 | M60: 0 | N60: 0 | O60: 0 | P60: 0 | Q60: 0 | R60: 0 | S60: 0 | T60: 0 | U60: 0 | V60: 0 | W60: 0 | X60: 0 | Y60: 0 | Z60: 0 | AA60: 0 | AB60: 0 | AC60: 0 | AD60: 0 | AE60: 0 | AF60: 0 | AG60: 0 | AH60: 0 | AI60: 0 | AJ60: 0 | AK60: 0 | AL60: 0 | AM60: 0 | AN60: 0 | AO60: 0 | AP60: 0 | AQ60: 0 | AR60: 0
B61: Meters | D61: Meters/Tele | E61: 185757.4584 | F61: 338931.2341 | G61: 807379.6223 | H61: 245526.5154 | I61: 186321.0659 | J61: 102275.9532 | K61: 85606.61425 | L61: 17352.31645 | M61: 0 | N61: 0 | O61: 0 | P61: 0 | Q61: 0 | R61: 0 | S61: 0 | T61: 0 | U61: 0 | V61: 0 | W61: 0 | X61: 0 | Y61: 0 | Z61: 0 | AA61: 0 | AB61: 0 | AC61: 0 | AD61: 0 | AE61: 0 | AF61: 0 | AG61: 0 | AH61: 0 | AI61: 0 | AJ61: 0 | AK61: 0 | AL61: 0 | AM61: 0 | AN61: 0 | AO61: 0 | AP61: 0 | AQ61: 0 | AR61: 0
A62: Telemetry | B62: PRS from 2017 | D62: Meters/Tele | E62: 19971.56153 | F62: 43937.43537 | G62: 153781.0238 | H62: 23100.43107 | I62: 15832.68006 | J62: 6966.379227 | K62: 0 | L62: 0 | M62: 26524.51586 | N62: 26524.51586 | O62: 10609.80635 | P62: 18992.04 | Q62: 36897.08 | R62: 42042.56 | S62: 46927.08 | T62: 43965.12 | U62: 133790.81 | V62: 22260.37354 | W62: 22400.21161 | X62: 22401.08201 | Y62: 23034.28083 | Z62: 22960.42286 | AA62: 23161.95078 | AB62: 23291.62059 | AC62: 23430.04869 | AD62: 23562.16294 | AE62: 23698.35339 | AF62: 23826.28405 | AG62: 23960.23412 | AH62: 24094.78251 | AI62: 24221.62328 | AJ62: 24355.19372 | AK62: 24476.7523 | AL62: 24602.43735 | AM62: 24729.3197 | AN62: 24846.66178 | AO62: 24967.90678 | AP62: 25067.03094 | AQ62: 25170.53136 | AR62: 25277.99138
A63: Other capex | B63: IT & office | D63: Other | E63: 416980.9074 | F63: 72724.44416 | G63: 798862.4612 | H63: 59231.87453 | I63: 58639.55578 | J63: 638584.7625 | K63: 57472.62862 | L63: 56897.90234 | M63: 129439.6374 | N63: 23341.57396 | O63: 22280.59333 | P63: 563804.4033 | Q63: 113804.4033 | R63: 113804.4033 | S63: 113804.4033 | T63: 113804.4033 | U63: 113804.4033 | V63: 0 | W63: 0 | X63: 0 | Y63: 0 | Z63: 0 | AA63: 0 | AB63: 0 | AC63: 0 | AD63: 0 | AE63: 0 | AF63: 0 | AG63: 0 | AH63: 0 | AI63: 0 | AJ63: 0 | AK63: 0 | AL63: 0 | AM63: 0 | AN63: 0 | AO63: 0 | AP63: 0 | AQ63: 0 | AR63: 0
A64: Capex not started (Foyle river crossing) | D64: Mains | E64: 0 | F64: 0 | G64: 0 | H64: 0 | I64: 0 | J64: 0 | K64: 0 | L64: 0 | M64: 0 | N64: 0 | O64: 0 | P64: 0 | Q64: 0 | R64: 0 | S64: 0 | T64: 0 | U64: 0 | V64: 0 | W64: 0 | X64: 0 | Y64: 0 | Z64: 0 | AA64: 0 | AB64: 0 | AC64: 0 | AD64: 0 | AE64: 0 | AF64: 0 | AG64: 0 | AH64: 0 | AI64: 0 | AJ64: 0 | AK64: 0 | AL64: 0 | AM64: 0 | AN64: 0 | AO64: 0 | AP64: 0 | AQ64: 0 | AR64: 0
A66: Capex - Subtotals in Av £2014 - UR Draft Det
A68: MP | B68: 4 bar main - Non LP Infill!! | D68: Mains | E68: =E38 -> 9163851.68 | F68: =F38 -> 11978318.04 | G68: 9043092.039 | H68: 10838486.25 | I68: 10692893.51 | J68: 7308907.373 | K68: 5558667.011 | L68: 4878064.593 | M68: 974947.3637 | N68: 823949.4819 | O68: 745282.2855 | P68: 0 | Q68: 0 | R68: 0 | S68: 0 | T68: 0 | U68: 0 | V68: 0 | W68: 0 | X68: 0 | Y68: 0 | Z68: 0 | AA68: 0 | AB68: 0 | AC68: 0 | AD68: 0 | AE68: 0 | AF68: 0 | AG68: 0 | AH68: 0 | AI68: 0 | AJ68: 0 | AK68: 0 | AL68: 0 | AM68: 0 | AN68: 0 | AO68: 0 | AP68: 0 | AQ68: 0 | AR68: 0
B69: Governors | D69: Meters/Tele | E69: =E39 -> 0 | F69: 34604.81607 | G69: 109676.4662 | H69: 102479.9675 | I69: 132996.1863 | J69: 135336.4963 | K69: 69622.38952 | L69: 70561.70518 | M69: 0 | N69: 0 | O69: 0 | P69: 0 | Q69: 0 | R69: 0 | S69: 0 | T69: 0 | U69: 0 | V69: 0 | W69: 0 | X69: 0 | Y69: 0 | Z69: 0 | AA69: 0 | AB69: 0 | AC69: 0 | AD69: 0 | AE69: 0 | AF69: 0 | AG69: 0 | AH69: 0 | AI69: 0 | AJ69: 0 | AK69: 0 | AL69: 0 | AM69: 0 | AN69: 0 | AO69: 0 | AP69: 0 | AQ69: 0 | AR69: 0
A70: LP | B70: Infill &TMA from 2017 | D70: Mains | E70: 0 | F70: 0 | G70: 296461.256 | H70: 863447.653 | I70: 718423.4031 | J70: 759541.225 | K70: 803852.7239 | L70: 473345.1064 | M70: 7139904.89 | N70: 5609094.825 | O70: 5030079.672 | P70: 8555091.644 | Q70: 8281762.323 | R70: 8161225.048 | S70: 8125322.593 | T70: 8223366.013 | U70: 8250559.778 | V70: 8453132.486 | W70: 7589340.614 | X70: 7879579.377 | Y70: 5273178.96 | Z70: 2049709.241 | AA70: 2044389.651 | AB70: 2036741.72 | AC70: 2030756.309 | AD70: 2023772.176 | AE70: 2025056.43 | AF70: 2017952.39 | AG70: 2019538.264 | AH70: 2020815.024 | AI70: 2022216.9 | AJ70: 2016419.266 | AK70: 2017145.357 | AL70: 2018598.519 | AM70: 2020003.471 | AN70: 2019965.807 | AO70: 2021067.676 | AP70: 2020852.125 | AQ70: 2028099.184 | AR70: 2028363.565
A71: Domestic | B71: Services | D71: Services | E71: 206293.8718 | F71: 384489.7952 | G71: 778375.7743 | H71: 1423063.401 | I71: 1598312.812 | J71: 1619193.667 | K71: 1640433.037 | L71: 1657131.707 | M71: 2675817.058 | N71: 2675817.058 | O71: 2528988.875 | P71: 2715542.173 | Q71: 2937434.907 | R71: 3161948.89 | S71: 3354215.815 | T71: 3544045.613 | U71: 3661855.93 | V71: 3632004.767 | W71: 3632004.767 | X71: 3558792.536 | Y71: 3412368.074 | Z71: 3265943.612 | AA71: 3082913.034 | AB71: 2936488.571 | AC71: 2790064.109 | AD71: 2643639.647 | AE71: 2570427.415 | AF71: 2424002.953 | AG71: 2350790.722 | AH71: 2277578.491 | AI71: 2204366.26 | AJ71: 2057941.797 | AK71: 1984729.566 | AL71: 1911517.335 | AM71: 1838305.104 | AN71: 1765092.873 | AO71: 1691880.641 | AP71: 1618668.41 | AQ71: 1618668.41 | AR71: 1545456.179
B72: Meters | D72: Meters/Tele | E72: 85624.95709 | F72: 151567.7491 | G72: 256740.2721 | H72: 337353.8276 | I72: 329645.7755 | J72: 335446.4928 | K72: 341118.9839 | L72: 345721.2161 | M72: 953539.349 | N72: 953539.349 | O72: 905862.3815 | P72: 914610.5981 | Q72: 985805.1794 | R72: 1058574.687 | S72: 1124467.197 | T72: 1191617.429 | U72: 1240210.697 | V72: 1266936.204 | W72: 1286564.755 | X72: 1286769.714 | Y72: 1352576.836 | Z72: 1431570.847 | AA72: 1514421.153 | AB72: 1540317.184 | AC72: 1591026.763 | AD72: 1758991.375 | AE72: 1899908.355 | AF72: 1878468.71 | AG72: 1875535.072 | AH72: 1869378.927 | AI72: 1824739.092 | AJ72: 1874672.77 | AK72: 1933773.006 | AL72: 1992509.751 | AM72: 2041352.954 | AN72: 2089832.665 | AO72: 2118888.786 | AP72: 2052280.918 | AQ72: 2061913.447 | AR72: 2033062.286
A73: IC | B73: Services | D73: Services | E73: 167090.0757 | F73: 211704.0697 | G73: 630435.9578 | H73: 421968.3366 | I73: 342285.2956 | J73: 373430.6337 | K73: 216188.0098 | L73: 163791.51 | M73: 184936.0033 | N73: 121464.4582 | O73: 59153.19324 | P73: 289929.8035 | Q73: 286919.2533 | R73: 284617.0599 | S73: 282898.519 | T73: 281190.3547 | U73: 279492.5044 | V73: 242836.6268 | W73: 261531.5588 | X73: 268143.1811 | Y73: 271107.0118 | Z73: 243976.5617 | AA73: 224711.6623 | AB73: 198721.1471 | AC73: 182876.0523 | AD73: 161715.0113 | AE73: 147009.8514 | AF73: 127744.952 | AG73: 117713.5251 | AH73: 104148.3 | AI73: 97536.67774 | AJ73: 87163.27036 | AK73: 77701.81088 | AL73: 72458.11045 | AM73: 65846.48816 | AN73: 51867.0369 | AO73: 46395.34949 | AP73: 44115.47974 | AQ73: 40011.71418 | AR73: 36363.92258
B74: Meters | D74: Meters/Tele | E74: 194898.5765 | F74: 340488.5994 | G74: 601209.0317 | H74: 115788.29 | I74: 81714.16735 | J74: 89548.39045 | K74: 52035.81599 | L74: 39553.39581 | M74: 131168.6197 | N74: 79099.46436 | O74: 33773.64648 | P74: 234721.9288 | Q74: 240823.1827 | R74: 220256.7927 | S74: 218926.8643 | T74: 217604.9661 | U74: 216291.0496 | V74: 186239.9495 | W74: 202156.8031 | X74: 212007.0394 | Y74: 281568.7825 | Z74: 322145.5178 | AA74: 474483.6607 | AB74: 755022.0885 | AC74: 568139.9445 | AD74: 545568.4367 | AE74: 504182.7109 | AF74: 362473.3933 | AG74: 418503.6616 | AH74: 273817.8905 | AI74: 154009.4113 | AJ74: 304933.0266 | AK74: 304985.5182 | AL74: 283941.9829 | AM74: 279254.5997 | AN74: 265081.8619 | AO74: 260585.0796 | AP74: 218942.9123 | AQ74: 233253.7594 | AR74: 239832.018
A75: Large loads | B75: Services | D75: Services | E75: 14264.14942 | F75: 98616.94947 | G75: 269266.7315 | H75: 335522.2216 | I75: 300692.5477 | J75: 150154.7546 | K75: 111909.3128 | L75: 22609.69711 | M75: 0 | N75: 0 | O75: 0 | P75: 0 | Q75: 0 | R75: 0 | S75: 0 | T75: 0 | U75: 0 | V75: 0 | W75: 0 | X75: 0 | Y75: 0 | Z75: 0 | AA75: 0 | AB75: 0 | AC75: 0 | AD75: 0 | AE75: 0 | AF75: 0 | AG75: 0 | AH75: 0 | AI75: 0 | AJ75: 0 | AK75: 0 | AL75: 0 | AM75: 0 | AN75: 0 | AO75: 0 | AP75: 0 | AQ75: 0 | AR75: 0
B76: Meters | D76: Meters/Tele | E76: 184675.3761 | F76: 336956.8774 | G76: 802676.44 | H76: 244096.2638 | I76: 185235.7005 | J76: 101680.1709 | K76: 85107.93494 | L76: 17251.235 | M76: 0 | N76: 0 | O76: 0 | P76: 0 | Q76: 0 | R76: 0 | S76: 0 | T76: 0 | U76: 0 | V76: 0 | W76: 0 | X76: 0 | Y76: 0 | Z76: 0 | AA76: 0 | AB76: 0 | AC76: 0 | AD76: 0 | AE76: 0 | AF76: 0 | AG76: 0 | AH76: 0 | AI76: 0 | AJ76: 0 | AK76: 0 | AL76: 0 | AM76: 0 | AN76: 0 | AO76: 0 | AP76: 0 | AQ76: 0 | AR76: 0
A77: Telemetry | B77: PRS from 2017 | D77: Meters/Tele | E77: 19855.22234 | F77: 43681.48914 | G77: 152885.212 | H77: 22965.86545 | I77: 15740.45086 | J77: 6925.798377 | K77: 0 | L77: 0 | M77: 26370.00412 | N77: 26370.00412 | O77: 10548.00165 | P77: 6911.436768 | Q77: 12624.62062 | R77: 23223.6362 | S77: 22043.47023 | T77: 7736.763596 | U77: 29486.11813 | V77: 45877.63924 | W77: 40079.92828 | X77: 46017.52806 | Y77: 58520.50723 | Z77: 136697.2723 | AA77: 86440.25319 | AB77: 86569.16764 | AC77: 86706.78937 | AD77: 86838.13403 | AE77: 86973.53113 | AF77: 87100.71656 | AG77: 87233.88634 | AH77: 87367.65095 | AI77: 87493.75285 | AJ77: 87626.54521 | AK77: 87747.39567 | AL77: 87872.34858 | AM77: 87998.49181 | AN77: 88115.15034 | AO77: 43703.86942 | AP77: 70798.64864 | AQ77: 65103.83519 | AR77: 71148.269
A78: Other capex | B78: IT & office | D78: Other | E78: 414551.8925 | F78: 72300.80662 | G78: 794208.8935 | H78: 58886.83448 | I78: 58297.96614 | J78: 634864.8512 | K78: 57137.83661 | L78: 56566.45824 | M78: 128685.6201 | N78: 23205.60363 | O78: 22150.80346 | P78: 160607.714 | Q78: 110424.8265 | R78: 109538.7957 | S78: 108877.3915 | T78: 108219.9809 | U78: 107566.5399 | V78: 107566.5399 | W78: 107566.5399 | X78: 107566.5399 | Y78: 107566.5399 | Z78: 107566.5399 | AA78: 107566.5399 | AB78: 107566.5399 | AC78: 107566.5399 | AD78: 107566.5399 | AE78: 107566.5399 | AF78: 107566.5399 | AG78: 107566.5399 | AH78: 107566.5399 | AI78: 107566.5399 | AJ78: 107566.5399 | AK78: 107566.5399 | AL78: 107566.5399 | AM78: 107566.5399 | AN78: 107566.5399 | AO78: 107566.5399 | AP78: 107566.5399 | AQ78: 107566.5399 | AR78: 107566.5399
A79: Capex not started (Foyle river crossing) | D79: Mains | E79: 0 | F79: 0 | G79: 0 | H79: 0 | I79: 0 | J79: 0 | K79: 0 | L79: 0 | M79: 0 | N79: 0 | O79: 0 | P79: 0 | Q79: 0 | R79: 0 | S79: 0 | T79: 0 | U79: 0 | V79: 0 | W79: 0 | X79: 0 | Y79: 0 | Z79: 0 | AA79: 0 | AB79: 0 | AC79: 0 | AD79: 0 | AE79: 0 | AF79: 0 | AG79: 0 | AH79: 0 | AI79: 0 | AJ79: 0 | AK79: 0 | AL79: 0 | AM79: 0 | AN79: 0 | AO79: 0 | AP79: 0 | AQ79: 0 | AR79: 0
A81: Capex - Subtotals in Av £2014 - UR Final Det
A83: MP | B83: 4 bar main - Non LP Infill!! | D83: Mains | E83: =E38 -> 9163851.68 | F83: =F38 -> 11978318.04 | G83: 9043092.039 | H83: 10838486.25 | I83: 10692893.51 | J83: 7308907.373 | K83: 5558667.011 | L83: 4878064.593 | M83: 974947.3637 | N83: 823949.4819 | O83: 745282.2855
B84: Governors | D84: Meters/Tele | E84: =E39 -> 0 | F84: 34604.81607 | G84: 109676.4662 | H84: 102479.9675 | I84: 132996.1863 | J84: 135336.4963 | K84: 69622.38952 | L84: 70561.70518 | M84: 0 | N84: 0 | O84: 0
A85: LP | B85: Infill & TMA from 2017 | D85: Mains | E85: 0 | F85: 0 | G85: 296461.256 | H85: 863447.653 | I85: 718423.4031 | J85: 759541.225 | K85: 803852.7239 | L85: 473345.1064 | M85: 7139904.89 | N85: 5609094.825 | O85: 5030079.672
A86: Domestic | B86: Services | D86: Services | E86: 206293.8718 | F86: 384489.7952 | G86: 778375.7743 | H86: 1423063.401 | I86: 1598312.812 | J86: 1619193.667 | K86: 1640433.037 | L86: 1657131.707 | M86: 2675817.058 | N86: 2675817.058 | O86: 2528988.875
B87: Meters | D87: Meters/Tele | E87: 85624.95709 | F87: 151567.7491 | G87: 256740.2721 | H87: 337353.8276 | I87: 329645.7755 | J87: 335446.4928 | K87: 341118.9839 | L87: 345721.2161 | M87: 953539.349 | N87: 953539.349 | O87: 905862.3815
A88: IC | B88: Services | D88: Services | E88: 167090.0757 | F88: 211704.0697 | G88: 630435.9578 | H88: 421968.3366 | I88: 342285.2956 | J88: 373430.6337 | K88: 216188.0098 | L88: 163791.51 | M88: 184936.0033 | N88: 121464.4582 | O88: 59153.19324
B89: Meters | D89: Meters/Tele | E89: 194898.5765 | F89: 340488.5994 | G89: 601209.0317 | H89: 115788.29 | I89: 81714.16735 | J89: 89548.39045 | K89: 52035.81599 | L89: 39553.39581 | M89: 131168.6197 | N89: 79099.46436 | O89: 33773.64648
A90: Large loads | B90: Services | D90: Services | E90: 14264.14942 | F90: 98616.94947 | G90: 269266.7315 | H90: 335522.2216 | I90: 300692.5477 | J90: 150154.7546 | K90: 111909.3128 | L90: 22609.69711 | M90: 0 | N90: 0 | O90: 0
B91: Meters | D91: Meters/Tele | E91: 184675.3761 | F91: 336956.8774 | G91: 802676.44 | H91: 244096.2638 | I91: 185235.7005 | J91: 101680.1709 | K91: 85107.93494 | L91: 17251.235 | M91: 0 | N91: 0 | O91: 0
A92: Telemetry | B92: PRS from 2017 | D92: Meters/Tele | E92: 19855.22234 | F92: 43681.48914 | G92: 152885.212 | H92: 22965.86545 | I92: 15740.45086 | J92: 6925.798377 | K92: 0 | L92: 0 | M92: 26370.00412 | N92: 26370.00412 | O92: 10548.00165
A93: Other capex | B93: IT & office | D93: Other | E93: 414551.8925 | F93: 72300.80662 | G93: 794208.8935 | H93: 58886.83448 | I93: 58297.96614 | J93: 634864.8512 | K93: 57137.83661 | L93: 56566.45824 | M93: 128685.6201 | N93: 23205.60363 | O93: 22150.80346
A94: Capex not started (Foyle river crossing) | D94: Mains | E94: 0 | F94: 0 | G94: 0 | H94: 0 | I94: 0 | J94: 0 | K94: 0 | L94: 0 | M94: 0 | N94: 0 | O94: 0
A96: Capex
A97: Total Capex - £2006 | E97: =SUM(E8:E19) -> 7895483.836 | F97: =SUM(F8:F19) -> 10314210.26 | G97: 10376384.49 | H97: 11153785.13 | I97: 10921235.91 | J97: 8699245.209 | K97: 6750923.941 | L97: 5835691.355 | M97: 9228329.479 | N97: 7790801.888 | O97: 7052934.513 | P97: =SUM(P8:P19) -> 11129161.22 | Q97: 10598421.74 | R97: 10702004.03 | S97: 11072495.63 | T97: 11367162.99 | U97: 12202469.26 | V97: 9823248.024 | W97: 9371231.209 | X97: 9325031.458 | Y97: 7460074.932 | Z97: 5547416.229 | AA97: 5266232.052 | AB97: 5064708.624 | AC97: 4921037.47 | AD97: 4760226.175 | AE97: 4614660.937 | AF97: 4492678.244 | AG97: 4375232.605 | AH97: 4271548.838 | AI97: =SUM(AI8:AI19) -> 4260335.414 | AJ97: 4256693.461 | AK97: 4232825.352 | AL97: 4300066.581 | AM97: 4145366.193 | AN97: 4138785.951 | AO97: 4056166.827 | AP97: 4003217.48 | AQ97: 3909394.104 | AR97: 3871490.567
A98: Total Capex - £2012 | E98: =SUM(E23:E34) -> 9908138.195 | F98: =SUM(F23:F34) -> 12943427.24 | G98: 13021450.44 | H98: 13997019.92 | I98: 13705191.08 | J98: 10916788.07 | K98: 8471816.135 | L98: 7323279.689 | M98: 11580742.32 | N98: 9776771.552 | O98: 8850812.856 | P98: =SUM(P23:P34) -> 13966119.06 | Q98: 13300087.67 | R98: 13430074.34 | S98: 13895008.73 | T98: 14264790.37 | U98: 15313026.31 | V98: 12327312.8 | W98: 11760071.43 | X98: 11702094.8 | Y98: 9361738.293 | Z98: 6961519.746 | AA98: 6608658.319 | AB98: 6355764.132 | AC98: 6175469.462 | AD98: 5973665.422 | AE98: 5790993.844 | AF98: 5637916.287 | AG98: 5490532.333 | AH98: 5360418.32 | AI98: =SUM(AI23:AI34) -> 5346346.458 | AJ98: 5341776.127 | AK98: 5311823.748 | AL98: 5396205.581 | AM98: 5202070.191 | AN98: 5193812.566 | AO98: 5090132.828 | AP98: 5023686.052 | AQ98: 4905945.962 | AR98: 4858380.354
A99: Total Capex - Av £2014 - FE GD17 Submission | E99: =SUM(E38:E49) -> 10451105.8 | F99: =SUM(F38:F49) -> 13652729.19 | G99: 13735028.07 | H99: 14764058.91 | I99: 14456237.81 | J99: 11515029.85 | K99: 8936073.055 | L99: 7724596.623 | M99: 12215368.91 | N99: 10312540.24 | O99: 9335838.859 | P99: =SUM(P38:P49) -> 14731464.69 | Q99: 14028934.67 | R99: 14166044.63 | S99: 14656457.5 | T99: 15046503.23 | U99: 16152182.68 | V99: 13002851.57 | W99: 12404525.28 | X99: 12343371.53 | Y99: 9874763.095 | Z99: 7343012.175 | AA99: 6970813.884 | AB99: 6704061.054 | AC99: 6513886.207 | AD99: 6301023.272 | AE99: 6108341.261 | AF99: 5946875.029 | AG99: 5791414.41 | AH99: 5654170.127 | AI99: =SUM(AI38:AI49) -> 5639327.125 | AJ99: 5634506.339 | AK99: 5602912.565 | AL99: 5691918.536 | AM99: 5487144.495 | AN99: 5478434.351 | AO99: 5369072.945 | AP99: 5298984.876 | AQ99: 5174792.609 | AR99: 5124620.398
A100: Total Capex - DEC £2014 | E100: =SUM(E53:E64) -> 10512342.75 | F100: =SUM(F53:F64) -> 13732725.65 | G100: 13815506.75 | H100: 14850567.07 | I100: 14540942.33 | J100: 11582500.73 | K100: 8988432.858 | L100: 7769857.932 | M100: 12286943.33 | N100: 10372965.28 | O100: 9390541.04 | P100: 14817781.87 | Q100: 14111135.46 | R100: 14249048.79 | S100: 14742335.18 | T100: 15134666.34 | U100: 16246824.37 | V100: 13079040.16 | W100: 12477208.05 | X100: 12415695.97 | Y100: 9932623.035 | Z100: 7386037.637 | AA100: 7011658.497 | AB100: 6743342.661 | AC100: 6552053.509 | AD100: 6337943.33 | AE100: 6144132.323 | AF100: 5981720 | AG100: 5825348.479 | AH100: 5687300.03 | AI100: =SUM(AI53:AI64) -> 5672370.058 | AJ100: 5667521.025 | AK100: 5635742.131 | AL100: 5725269.621 | AM100: 5519295.733 | AN100: 5510534.552 | AO100: 5400532.357 | AP100: 5330033.615 | AQ100: 5205113.66 | AR100: 5154647.471
A101: Total Capex - Av £2014 - UR Draft Det | E101: =SUM(E68:E79) -> 10451105.8 | F101: =SUM(F68:F79) -> 13652729.19 | G101: 13735028.07 | H101: 14764058.91 | I101: 14456237.81 | J101: 11515029.85 | K101: 8936073.055 | L101: 7724596.623 | M101: 12215368.91 | N101: 10312540.24 | O101: =SUM(O68:O79) -> 9335838.859 | P101: =SUM(P68:P79) -> 12877415.3 | Q101: =SUM(Q68:Q79) -> 12855794.29 | R101: 13019384.91 | S101: 13236751.85 | T101: 13573781.12 | U101: 13785462.62 | V101: =SUM(V68:V79) -> 13934594.21 | W101: =SUM(W68:W79) -> 13119244.97 | X101: 13358875.92 | Y101: 10756886.71 | Z101: 7557609.591 | AA101: 7534925.954 | AB101: 7661426.418 | AC101: 7357136.508 | AD101: 7328091.32 | AE101: 7341124.834 | AF101: 7005309.655 | AG101: 6976881.671 | AH101: 6740672.823 | AI101: 6497928.634 | AJ101: 6536323.215 | AK101: 6513649.194 | AL101: 6474464.586 | AM101: 6440327.648 | AN101: 6387521.934 | AO101: 6290087.941 | AP101: 6133225.033 | AQ101: 6154616.89 | AR101: 6061792.78
A102: Total Capex - Av £2014 - UR Final Det | E102: =SUM(E83:E94) -> 10451105.8 | F102: =SUM(F83:F94) -> 13652729.19 | G102: 13735028.07 | H102: 14764058.91 | I102: 14456237.81 | J102: 11515029.85 | K102: 8936073.055 | L102: 7724596.623 | M102: 12215368.91 | N102: 10312540.24 | O102: =SUM(O83:O94) -> 9335838.859 | P102: =SUM(P83:P94) -> 0 | Q102: 0 | R102: 0 | S102: 0 | T102: 0 | U102: 0 | V102: 0 | W102: 0 | X102: 0 | Y102: 0 | Z102: 0 | AA102: 0 | AB102: 0 | AC102: 0 | AD102: 0 | AE102: 0 | AF102: 0 | AG102: 0 | AH102: 0 | AI102: 0 | AJ102: 0 | AK102: 0 | AL102: 0 | AM102: 0 | AN102: 0 | AO102: 0 | AP102: 0 | AQ102: 0 | AR102: 0
A104: Opex
A105: Total Opex - £2012 | E105: 4780089.825 | F105: 6126733.99 | G105: 6092535.703 | H105: 5881573.46 | I105: 5479664.912 | J105: 5479479.895 | K105: 5273712.18 | L105: 4926770.018 | M105: 5371037.659 | N105: 5566005.915 | O105: 5819377.777 | P105: =P107/$M$1*$K$2 -> 6815651.118 | Q105: =Q107/$M$1*$K$2 -> 7040839.426 | R105: 7183711.956 | S105: 7515983.655 | T105: 8030797.839 | U105: 8539159.179 | V105: 9246311.792 | W105: 9529263.97 | X105: 9642055.376 | Y105: 9841470.261 | Z105: 10230032.61 | AA105: 10332216.98 | AB105: 10432409.45 | AC105: 10532577.85 | AD105: 10627083.05 | AE105: 10721957.97 | AF105: 10811574.28 | AG105: 10901953.26 | AH105: 10987388.9 | AI105: =AI107/$M$1*$K$2 -> 11073933.52 | AJ105: 11155802.41 | AK105: 11238990.53 | AL105: 11317808.26 | AM105: 11398126.81 | AN105: 11474285.22 | AO105: 11552161.15 | AP105: 11626012.32 | AQ105: 11701722.07 | AR105: 11773575.3
A106: Total Opex - Av £2014 - FE GD17 Submission | E106: =E105/$K$2*$M$2 -> 5042039.536 | F106: =F105/$K$2*$M$2 -> 6462480.023 | G106: 6426407.664 | H106: 6203884.655 | I106: 5779951.452 | J106: 5779756.296 | K106: 5562712.477 | L106: =L105/$K$2*$M$2 -> 5196757.827 | M106: =M105/$K$2*$M$2 -> 5665371.408 | N106: =N105/$K$2*$M$2 -> 5871023.957 | O106: =O105/$K$2*$M$2 -> 6138280.639 | P106: =P107/$M$1*$M$2 -> 7189149.923 | Q106: =Q107/$M$1*$M$2 -> 7426678.587 | R106: 7577380.555 | S106: 7927860.798 | T106: 8470886.884 | U106: 9007106.509 | V106: =V107/$M$1*$M$2 -> 9753011.202 | W106: 10051469.21 | X106: 10170441.6 | Y106: 10380784.45 | Z106: 10790640.08 | AA106: 10898424.18 | AB106: 11004107.21 | AC106: 11109764.85 | AD106: 11209448.95 | AE106: 11309523.04 | AF106: 11404050.33 | AG106: 11499382.09 | AH106: 11589499.62 | AI106: 11680786.91 | AJ106: 11767142.22 | AK106: 11854889.06 | AL106: 11938026.02 | AM106: 12022746.04 | AN106: 12103077.94 | AO106: 12185221.48 | AP106: 12263119.71 | AQ106: 12342978.37 | AR106: 12418769.17
A107: Total Opex - DEC £2014 | E107: =E106/$M$2*$M$1 -> 5071582.736 | F107: =F106/$M$2*$M$1 -> 6500346.117 | G107: 6464062.396 | H107: 6240235.541 | I107: 5813818.355 | J107: 5813622.056 | K107: =K106/$M$2*$M$1 -> 5595306.495 | L107: 5227207.58 | M107: 5698566.944 | N107: 5905424.488 | O107: 6174247.127 | P107: 7231273.848 | Q107: 7470194.282 | R107: 7621779.27 | S107: 7974313.107 | T107: 8520520.987 | U107: 9059882.524 | V107: 9810157.752 | W107: 10110364.53 | X107: 10230034.03 | Y107: 10441609.36 | Z107: 10853866.49 | AA107: 10962282.13 | AB107: 11068584.4 | AC107: 11174861.13 | AD107: 11275129.32 | AE107: 11375789.78 | AF107: 11470870.94 | AG107: 11566761.29 | AH107: 11657406.85 | AI107: 11749229.02 | AJ107: 11836090.32 | AK107: 11924351.3 | AL107: 12007975.39 | AM107: 12093191.81 | AN107: 12173994.42 | AO107: 12256619.26 | AP107: 12334973.93 | AQ107: 12415300.51 | AR107: 12491535.4
A108: Total Opex - Av £2014 - UR Draft Det | E108: =E106 -> 5042039.536 | F108: =F106 -> 6462480.023 | G108: 6426407.664 | H108: 6203884.655 | I108: 5779951.452 | J108: 5779756.296 | K108: 5562712.477 | L108: 5196757.827 | M108: 5665371.408 | N108: 5871023.957 | O108: =O106 -> 6138280.639 | P108: 5425838.811 | Q108: 5581342.359 | R108: 5688586.716 | S108: 5861151.288 | T108: 6083403.138 | U108: 6311921.987 | V108: 6340884.478 | W108: 6376567.007 | X108: 6406742.848 | Y108: 6454189.32 | Z108: 6562682.566 | AA108: 6720812.992 | AB108: 6821744.37 | AC108: 6909955.258 | AD108: 6969047.291 | AE108: 6905135.752 | AF108: 6831499.251 | AG108: 6812954.745 | AH108: 6868689.26 | AI108: 6959764.521 | AJ108: 7010655.031 | AK108: 7091675.911 | AL108: 7167438.046 | AM108: 7239109.616 | AN108: 7306751.911 | AO108: 7368206.278 | AP108: 7429114.939 | AQ108: 7523117.045 | AR108: 7578514.35
A109: Total Opex - Av £2014 - UR Final Det | E109: =E108 -> 5042039.536 | F109: =F108 -> 6462480.023 | G109: 6426407.664 | H109: 6203884.655 | I109: 5779951.452 | J109: 5779756.296 | K109: 5562712.477 | L109: 5196757.827 | M109: 5665371.408 | N109: 5871023.957 | O109: =O108 -> 6138280.639
A111: Volumes (Therms)
A112: Submission | E112: FORECASTS ARE ILLUSTRATIVE ONLY
A113: Domestic | B113: P1 | E113: 64221 | F113: 558617 | G113: 1506329 | H113: 1765161.102 | I113: 2676992.654 | J113: 3655315.699 | K113: 4578235.311 | L113: 5535454.771 | M113: 8222120.853 | N113: 9798128.244 | O113: 11337112.6 | P113: 9388556.106 | Q113: 10807304.01 | R113: 12362944.12 | S113: 14052003.42 | T113: 15904066.95 | U113: 17923879.43 | V113: 20158865.39 | W113: 22407719.65 | X113: 24587959.17 | Y113: 26664677.9 | Z113: 28648721.44 | AA113: 30490998.9 | AB113: 32200909.44 | AC113: 33807771.85 | AD113: 35319388.65 | AE113: 36742963.41 | AF113: 38085146.81 | AG113: 39352079.16 | AH113: 40549429.64 | AI113: 41682432.54 | AJ113: 42755920.67 | AK113: 43774356.29 | AL113: 44741859.55 | AM113: 45662234.8 | AN113: 46538994.91 | AO113: 47375383.62 | AP113: 48174396.3 | AQ113: 48938798.98 | AR113: 49671146.03
A114: Small IC | B114: P2 | E114: 0 | F114: 2596 | G114: 20579 | H114: 1125000 | I114: 1430000 | J114: 1887000 | K114: 2255000 | L114: 2610000 | M114: 8795675.302 | N114: 9434708.382 | O114: 9821200.808 | P114: 15793478.44 | Q114: 16357532.58 | R114: 16909345.53 | S114: 17449105.32 | T114: 17976997.84 | U114: 18493206.46 | V114: 19069554.67 | W114: 19620168.49 | X114: 19932774.36 | Y114: 20508243.79 | Z114: 20797987.75 | AA114: 21286935.84 | AB114: 21498810.6 | AC114: 21917676.4 | AD114: 22066477.11 | AE114: 22428576.26 | AF114: 22526286.98 | AG114: 22842405.15 | AH114: 22898732.97 | AI114: 23177606.54 | AJ114: 23200414.23 | AK114: 23449119.67 | AL114: 23444776.05 | AM114: 23669045.31 | AN114: 23642709.12 | AO114: 23847185.07 | AP114: 23803034.91 | AQ114: 23991478.28 | AR114: 23932898.8
A115: Medium IC | B115: P3 | E115: 0 | F115: 196639 | G115: 522544 | H115: 1872761.225 | I115: 2624879.606 | J115: 3089440.658 | K115: 3662526.056 | L115: 3750125.72 | M115: 3807199.766 | N115: 3902269.766 | O115: 3999351.922
A116: Large Firm CHP | B116: P4 | E116: 1163837 | F116: 4264513 | G116: 7745837 | H116: 599915.6273 | I116: 599668.1953 | J116: 599265.9631 | K116: 598716.8422 | L116: 598028.4091 | M116: 3337000 | N116: 3337000 | O116: 3337000 | P116: 36035592.83 | Q116: 35700024.59 | R116: 35700024.59 | S116: 35700024.59 | T116: 35700024.59 | U116: 35700024.59 | V116: 35700024.59 | W116: 35700024.59 | X116: 35700024.59 | Y116: 35700024.59 | Z116: 35700024.59 | AA116: 35700024.59 | AB116: 35700024.59 | AC116: 35700024.59 | AD116: 35700024.59 | AE116: 35700024.59 | AF116: 35700024.59 | AG116: 35700024.59 | AH116: 35700024.59 | AI116: 35700024.59 | AJ116: 35700024.59 | AK116: 35700024.59 | AL116: 35700024.59 | AM116: 35700024.59 | AN116: 35700024.59 | AO116: 35700024.59 | AP116: 35700024.59 | AQ116: 35700024.59 | AR116: 35700024.59
A117: Large Firm | B117: P5 | E117: 0 | F117: 0 | G117: 30698 | H117: 10445530.93 | I117: 13739397.8 | J117: 15604885.68 | K117: 16217243.53 | L117: 16348103.28 | M117: 11019000 | N117: 11019000 | O117: 11019000
A118: Int | B118: P6 | E118: 4770961 | F118: 9073301 | G118: 14530386 | H118: 11426119.58 | I118: 13355461.8 | J118: 13659721.42 | K118: 13647204.71 | L118: 13631512.51 | M118: 23389390.87 | N118: 23418346.13 | O118: 23441549.5
A119: Total Volume (Therms) - FE GD17 Submission | E119: =SUM(E113:E118) -> 5999019 | F119: =SUM(F113:F118) -> 14095666 | G119: 24356373 | H119: 27234488.47 | I119: 34426400.06 | J119: 38495629.42 | K119: 40958926.45 | L119: 42473224.68 | M119: 58570386.79 | N119: 60909452.52 | O119: 62955214.83 | P119: 61217627.37 | Q119: 62864861.18 | R119: 64972314.23 | S119: 67201133.32 | T119: 69581089.38 | U119: 72117110.48 | V119: 74928444.64 | W119: 77727912.73 | X119: 80220758.11 | Y119: 82872946.27 | Z119: 85146733.78 | AA119: 87477959.33 | AB119: 89399744.63 | AC119: 91425472.84 | AD119: 93085890.34 | AE119: 94871564.26 | AF119: 96311458.38 | AG119: 97894508.9 | AH119: 99148187.2 | AI119: 100560063.7 | AJ119: 101656359.5 | AK119: 102923500.6 | AL119: 103886660.2 | AM119: 105031304.7 | AN119: 105881728.6 | AO119: 106922593.3 | AP119: 107677455.8 | AQ119: 108630301.9 | AR119: 109304069.4
A120: GD17 DD
A121: Domestic | B121: P1 | E121: =E113 -> 64221 | F121: =F113 -> 558617 | G121: 1506329 | H121: 1765161.102 | I121: 2676992.654 | J121: 3655315.699 | K121: 4578235.311 | L121: 5535454.771 | M121: 8222120.853 | N121: 9798128.244 | O121: 11337112.6 | P121: 10151055 | Q121: 11645555 | R121: 13273055 | S121: 15024055 | T121: 16889055 | U121: 18849055 | V121: 20825355 | W121: 22751355 | X121: 24658355 | Y121: 26508355 | Z121: 28282355 | AA121: 29978730 | AB121: 31597480 | AC121: 33140230 | AD121: 34606980 | AE121: 36016730 | AF121: 37369480 | AG121: 38665230 | AH121: 39922980 | AI121: 41142730 | AJ121: 42305480 | AK121: 43411230 | AL121: 44478980 | AM121: 45508730 | AN121: 46500480 | AO121: 47454230 | AP121: 48369980 | AQ121: 49266730 | AR121: 50144480
A122: Small IC | B122: P2 | E122: =E114 -> 0 | F122: 2596 | G122: 20579 | H122: 1125000 | I122: 1430000 | J122: 1887000 | K122: 2255000 | L122: 2610000 | M122: 8795675.302 | N122: 9434708.382 | O122: 9821200.808 | P122: 15793478.44 | Q122: 16357532.58 | R122: 16909345.53 | S122: 17449105.32 | T122: 17976997.84 | U122: 18493206.46 | V122: 19069554.67 | W122: 19620168.49 | X122: 19932774.36 | Y122: 20508243.79 | Z122: 20797987.75 | AA122: 21286935.84 | AB122: 21498810.6 | AC122: 21917676.4 | AD122: 22066477.11 | AE122: 22428576.26 | AF122: 22526286.98 | AG122: 22842405.15 | AH122: 22898732.97 | AI122: 23177606.54 | AJ122: 23200414.23 | AK122: 23449119.67 | AL122: 23444776.05 | AM122: 23669045.31 | AN122: 23642709.12 | AO122: 23847185.07 | AP122: 23803034.91 | AQ122: 23991478.28 | AR122: 23932898.8
A123: Medium IC | B123: P3 | E123: 0 | F123: 196639 | G123: 522544 | H123: 1872761.225 | I123: 2624879.606 | J123: 3089440.658 | K123: 3662526.056 | L123: 3750125.72 | M123: 3807199.766 | N123: 3902269.766 | O123: 3999351.922
A124: Large Firm CHP | B124: P4 | E124: 1163837 | F124: 4264513 | G124: 7745837 | H124: 599915.6273 | I124: 599668.1953 | J124: 599265.9631 | K124: 598716.8422 | L124: 598028.4091 | M124: 3337000 | N124: 3337000 | O124: 3337000 | P124: 36035592.83 | Q124: 35700024.59 | R124: 35700024.59 | S124: 35700024.59 | T124: 35700024.59 | U124: 35700024.59 | V124: 35700024.59 | W124: 35700024.59 | X124: 35700024.59 | Y124: 35700024.59 | Z124: 35700024.59 | AA124: 35700024.59 | AB124: 35700024.59 | AC124: 35700024.59 | AD124: 35700024.59 | AE124: 35700024.59 | AF124: 35700024.59 | AG124: 35700024.59 | AH124: 35700024.59 | AI124: 35700024.59 | AJ124: 35700024.59 | AK124: 35700024.59 | AL124: 35700024.59 | AM124: 35700024.59 | AN124: 35700024.59 | AO124: 35700024.59 | AP124: 35700024.59 | AQ124: 35700024.59 | AR124: 35700024.59
A125: Large Firm | B125: P5 | E125: 0 | F125: 0 | G125: 30698 | H125: 10445530.93 | I125: 13739397.8 | J125: 15604885.68 | K125: 16217243.53 | L125: 16348103.28 | M125: 11019000 | N125: 11019000 | O125: 11019000
A126: Int | B126: P6 | E126: 4770961 | F126: 9073301 | G126: 14530386 | H126: 11426119.58 | I126: 13355461.8 | J126: 13659721.42 | K126: 13647204.71 | L126: 13631512.51 | M126: 23389390.87 | N126: 23418346.13 | O126: 23441549.5
A127: Total Volume (Therms) - UR Draft Det | E127: =SUM(E121:E126) -> 5999019 | F127: =SUM(F121:F126) -> 14095666 | G127: 24356373 | H127: 27234488.47 | I127: 34426400.06 | J127: 38495629.42 | K127: 40958926.45 | L127: 42473224.68 | M127: 58570386.79 | N127: 60909452.52 | O127: 62955214.83 | P127: 61980126.27 | Q127: 63703112.17 | R127: 65882425.11 | S127: 68173184.91 | T127: 70566077.43 | U127: 73042286.05 | V127: 75594934.25 | W127: 78071548.08 | X127: 80291153.94 | Y127: 82716623.37 | Z127: 84780367.34 | AA127: 86965690.43 | AB127: 88796315.19 | AC127: 90757930.99 | AD127: 92373481.69 | AE127: 94145330.85 | AF127: 95595791.57 | AG127: 97207659.73 | AH127: 98521737.56 | AI127: 100020361.1 | AJ127: 101205918.8 | AK127: 102560374.3 | AL127: 103623780.6 | AM127: 104877799.9 | AN127: 105843213.7 | AO127: 107001439.7 | AP127: 107873039.5 | AQ127: 108958232.9 | AR127: 109777403.4
A128: GD17 FD
A129: Domestic | B129: P1 | E129: =E121 -> 64221 | F129: =F121 -> 558617 | G129: 1506329 | H129: 1765161.102 | I129: 2676992.654 | J129: 3655315.699 | K129: 4578235.311 | L129: 5535454.771 | M129: 8222120.853 | N129: 9798128.244 | O129: 11337112.6
A130: Small IC | B130: P2 | E130: =E122 -> 0 | F130: 2596 | G130: 20579 | H130: 1125000 | I130: 1430000 | J130: 1887000 | K130: 2255000 | L130: 2610000 | M130: 8795675.302 | N130: 9434708.382 | O130: 9821200.808
A131: Medium IC | B131: P3 | E131: 0 | F131: 196639 | G131: 522544 | H131: 1872761.225 | I131: 2624879.606 | J131: 3089440.658 | K131: 3662526.056 | L131: 3750125.72 | M131: 3807199.766 | N131: 3902269.766 | O131: 3999351.922
A132: Large Firm CHP | B132: P4 | E132: 1163837 | F132: 4264513 | G132: 7745837 | H132: 599915.6273 | I132: 599668.1953 | J132: 599265.9631 | K132: 598716.8422 | L132: 598028.4091 | M132: 3337000 | N132: 3337000 | O132: 3337000
A133: Large Firm | B133: P5 | E133: 0 | F133: 0 | G133: 30698 | H133: 10445530.93 | I133: 13739397.8 | J133: 15604885.68 | K133: 16217243.53 | L133: 16348103.28 | M133: 11019000 | N133: 11019000 | O133: 11019000
A134: Int | B134: P6 | E134: =E126 -> 4770961 | F134: =F126 -> 9073301 | G134: 14530386 | H134: 11426119.58 | I134: 13355461.8 | J134: 13659721.42 | K134: 13647204.71 | L134: 13631512.51 | M134: 23389390.87 | N134: 23418346.13 | O134: 23441549.5
A135: Total Volume (Therms) - UR Final Det | E135: =SUM(E129:E134) -> 5999019 | F135: =SUM(F129:F134) -> 14095666 | G135: 24356373 | H135: 27234488.47 | I135: 34426400.06 | J135: 38495629.42 | K135: 40958926.45 | L135: 42473224.68 | M135: 58570386.79 | N135: 60909452.52 | O135: 62955214.83 | P135: =SUM(P129:P134) -> 0 | Q135: =SUM(Q129:Q134) -> 0 | R135: =SUM(R129:R134) -> 0 | S135: =SUM(S129:S134) -> 0 | T135: =SUM(T129:T134) -> 0 | U135: =SUM(U129:U134) -> 0 | V135: =SUM(V129:V134) -> 0 | W135: =SUM(W129:W134) -> 0 | X135: =SUM(X129:X134) -> 0 | Y135: =SUM(Y129:Y134) -> 0 | Z135: =SUM(Z129:Z134) -> 0 | AA135: =SUM(AA129:AA134) -> 0 | AB135: =SUM(AB129:AB134) -> 0 | AC135: =SUM(AC129:AC134) -> 0 | AD135: =SUM(AD129:AD134) -> 0 | AE135: =SUM(AE129:AE134) -> 0 | AF135: =SUM(AF129:AF134) -> 0 | AG135: =SUM(AG129:AG134) -> 0 | AH135: =SUM(AH129:AH134) -> 0 | AI135: =SUM(AI129:AI134) -> 0 | AJ135: =SUM(AJ129:AJ134) -> 0 | AK135: =SUM(AK129:AK134) -> 0 | AL135: =SUM(AL129:AL134) -> 0 | AM135: =SUM(AM129:AM134) -> 0 | AN135: =SUM(AN129:AN134) -> 0 | AO135: =SUM(AO129:AO134) -> 0 | AP135: =SUM(AP129:AP134) -> 0 | AQ135: =SUM(AQ129:AQ134) -> 0 | AR135: 0
A137: TRV Opening Value (£2014)
A138: DAV (Incl Retrospective Capex Adjustments) | L138: =DAV!L35 -> 87789156.41 | O138: =DAV!O35 -> 105240391.7
A139: PAB determination | L139: 31724674.25 | O139: =(37603.2511769514*1000)/K2*M2 -> 39663915.54
A140: Opex adjustment MDR | I140: -52055.31764 | J140: -238998.332 | K140: -404873.3781 | L140: -418911.6158 | M140: n/a | N140: n/a | O140: n/a
A141: Opex Adjustment OAV & PCR02 Retro Opex Adj | H141: =D151+H163 -> 2922657.918 | I141: =I163 -> 631836.1792 | J141: =J163 -> 1560191.325 | K141: =K163 -> 2070553.938 | L141: =L163 -> 1808970.003 | M141: n/a | N141: n/a | O141: n/a
A142: GD14 Uncertainty Mechanism Adj | H142: n/a | I142: n/a | J142: n/a | K142: n/a | L142: n/a | M142: =M163 -> -603995.0353 | N142: =N163 -> -265007.6309 | O142: -296639.3359
A143: Adjusted PAB | L143: =SUM(H139:L142) -> 39604044.97 | O143: =SUM(M139:O142) -> 38498273.54
A144: Actual Depreciation | H144: =1630500.22677686/K2*M2 -> 1719851.908 | I144: =1947695.89523954/K2*M2 -> 2054429.951 | J144: =2203584.72118004/K2*M2 -> 2324341.527 | K144: =2612872.60094617/K2*M2 -> 2756058.45 | L144: =2777246.76356909/K2*M2 -> 2929440.344 | M144: =DAV!M29 -> 3151866.091 | N144: =DAV!N29 -> 3450631.267 | O144: =DAV!O29 -> 3804343.35
A145: Determined Depreciation (per V7 PH Model) | H145: =-1690376.52079378/K2*M2 -> -1783009.433 | I145: =-2072120.48949698/K2*M2 -> -2185673.034 | J145: =-2345564.29024628/K2*M2 -> -2474101.6 | K145: =-2521468.70325611/K2*M2 -> -2659645.604 | L145: =-2731587.08372248/K2*M2 -> -2881278.506 | M145: =-3120839.57568117/K2*M2 -> -3291862.099 | N145: =-3399887.94022108/K2*M2 -> -3586202.36 | O145: =-3692450.11767324/K2*M2 -> -3894796.993
A146: DAB Adjustment | L146: =SUM(H144:L145) -> -199585.996 | O146: =SUM(M144:O145) -> -366020.7428
A147: Capitalised Under-recoveries | B147: Exclude | D147: 0.043 | L147: n/a | O147: 0
A148: Opening TRV Value | B148: Include - In Full | L148: =SUM(L138,L143,L146,L147) -> 127193615.4 | O148: =SUM(O138,O143,O146,O147) -> 143372644.5
B149: Include - Discounted
B150: Exclude
A151: Opening Asset Value (£2014) | B151: Opex | C151: PI's model V7 | D151: 3212984.487
B152: Mains | C152: PI's model V7 | D152: 1845762.794
B153: Other Capex | C153: PI's model V7 | D153: 449375.3051
B154: Total OAV | D154: =SUM(D151:D153) -> 5508122.586
A157: UM ADJUSTMENTS UPDATE BY FORMULA YEAR (£2014) | H157: PCR02 | M157: GD14
H158: 2009 | I158: 2010 | J158: 2011 | K158: 2012 | L158: 2013 | M158: 2014 | N158: 2015 | O158: 2016
A159: Uncertainty Mechanism Adjustment Categories | H159: Actual | I159: Actual | J159: Actual | K159: Actual | L159: Forecast | M159: Forecast | N159: Forecast | O159: Forecast
A160: Capex 40 Yr Life | H160: =-2664919.34097565/K2*M2 -> -2810957.36 | I160: =-3369293.41742625/K2*M2 -> -3553931.252 | J160: =1435272.85221556/K2*M2 -> 1513926.041 | K160: =4821142.32086481/K2*M2 -> 5085341.715 | L160: =2158215.58502883/K2*M2 -> 2276486.155 | M160: -5573402.904 | N160: -207530.1974 | O160: 1542745.287
A161: Capex 15 Yr Life | H161: =152976.527336461/K2*M2 -> 161359.6662 | I161: =295260.527926963/K2*M2 -> 311440.8535 | J161: =665935.025800321/K2*M2 -> 702428.375 | K161: =893259.912382716/K2*M2 -> 942210.7028 | L161: =747802.663865809/K2*M2 -> 788782.3731 | M161: -9914.023045 | N161: 144197.55 | O161: 98232.25995
A162: Capex 5 Yr Life | H162: =0/K2*M2 -> 0 | I162: =0/K2*M2 -> 0 | J162: =-752295.29351409/K2*M2 -> -793521.1996 | K162: =0/K2*M2 -> 0 | L162: =0/K2*M2 -> 0 | M162: 0 | N162: 0 | O162: 0
A163: Opex | H163: =-275243.19646693/K2*M2 -> -290326.569 | I163: =599010.31524628/K2*M2 -> 631836.1792 | J163: =1479134.50989171/K2*M2 -> 1560191.325 | K163: =1962982.19003036/K2*M2 -> 2070553.938 | L163: =1714988.35867785/K2*M2 -> 1808970.003 | M163: -603995.0353 | N163: -265007.6309 | O163: -296639.3359
A164: Total Retrospective Adjustments | H164: =SUM(H160:H163) -> -2939924.263 | I164: -2610654.219 | J164: 2983024.541 | K164: 8098106.355 | L164: =SUM(L160:L163) -> 4874238.531 | M164: =SUM(M160:M163) -> -6187311.962 | N164: =SUM(N160:N163) -> -328340.2783 | O164: 1344338.211
O165: =SUM(M164:O164) -> -5171314.029
A167: INPUTS BASIS | L167: =L166-L165 -> 0
A168: SELECT BASIS OF MODELLING INPUTS | B168: UR Draft Det
B169: FE GD17 Submission
B170: UR Draft Det
B171: UR Final Det

Sheet DAV
A1: Condition 2.3.17 Calculation of DAV
D6: £2014 | E6: 2006 | F6: =E6+1 -> 2007 | G6: =F6+1 -> 2008 | H6: 2009 | I6: 2010 | J6: 2011 | K6: 2012 | L6: 2013 | M6: 2014 | N6: 2015 | O6: 2016 | P6: 2017 | Q6: 2018 | R6: 2019 | S6: 2020 | T6: 2021 | U6: 2022 | V6: 2023 | W6: 2024 | X6: 2025 | Y6: 2026 | Z6: 2027 | AA6: 2028 | AB6: 2029 | AC6: 2030 | AD6: 2031 | AE6: 2032 | AF6: 2033 | AG6: 2034 | AH6: 2035 | AI6: 2036 | AJ6: 2037 | AK6: 2038 | AL6: 2039 | AM6: 2040 | AN6: 2041 | AO6: 2042 | AP6: 2043 | AQ6: 2044 | AR6: 2045
A8: Annual Capex
A9: Mains | E9: =IF(Inputs!$B$168=Inputs!$B$169,SUM(Inputs!E38,Inputs!E40,Inputs!E49),IF(Inputs!$B$168=Inputs!$B$170,SUM(Inputs!E68,Inputs!E70,Inputs!E79),IF(Inputs!$B$168=Inputs!$B$171,SUM(Inputs!E83,Inputs!E85,Inputs!E94),0))) -> 9163851.68 | F9: =IF(Inputs!$B$168=Inputs!$B$169,SUM(Inputs!F38,Inputs!F40,Inputs!F49),IF(Inputs!$B$168=Inputs!$B$170,SUM(Inputs!F68,Inputs!F70,Inputs!F79),IF(Inputs!$B$168=Inputs!$B$171,SUM(Inputs!F83,Inputs!F85,Inputs!F94),0))) -> 11978318.04 | G9: =IF(Inputs!$B$168=Inputs!$B$169,SUM(Inputs!G38,Inputs!G40,Inputs!G49),IF(Inputs!$B$168=Inputs!$B$170,SUM(Inputs!G68,Inputs!G70,Inputs!G79),IF(Inputs!$B$168=Inputs!$B$171,SUM(Inputs!G83,Inputs!G85,Inputs!G94),0))) -> 9339553.295 | H9: =IF(Inputs!$B$168=Inputs!$B$169,SUM(Inputs!H38,Inputs!H40,Inputs!H49),IF(Inputs!$B$168=Inputs!$B$170,SUM(Inputs!H68,Inputs!H70,Inputs!H79),IF(Inputs!$B$168=Inputs!$B$171,SUM(Inputs!H83,Inputs!H85,Inputs!H94),0))) -> 11701933.91 | I9: =IF(Inputs!$B$168=Inputs!$B$169,SUM(Inputs!I38,Inputs!I40,Inputs!I49),IF(Inputs!$B$168=Inputs!$B$170,SUM(Inputs!I68,Inputs!I70,Inputs!I79),IF(Inputs!$B$168=Inputs!$B$171,SUM(Inputs!I83,Inputs!I85,Inputs!I94),0))) -> 11411316.91 | J9: =IF(Inputs!$B$168=Inputs!$B$169,SUM(Inputs!J38,Inputs!J40,Inputs!J49),IF(Inputs!$B$168=Inputs!$B$170,SUM(Inputs!J68,Inputs!J70,Inputs!J79),IF(Inputs!$B$168=Inputs!$B$171,SUM(Inputs!J83,Inputs!J85,Inputs!J94),0))) -> 8068448.597 | K9: =IF(Inputs!$B$168=Inputs!$B$169,SUM(Inputs!K38,Inputs!K40,Inputs!K49),IF(Inputs!$B$168=Inputs!$B$170,SUM(Inputs!K68,Inputs!K70,Inputs!K79),IF(Inputs!$B$168=Inputs!$B$171,SUM(Inputs!K83,Inputs!K85,Inputs!K94),0))) -> 6362519.735 | L9: =IF(Inputs!$B$168=Inputs!$B$169,SUM(Inputs!L38,Inputs!L40,Inputs!L49),IF(Inputs!$B$168=Inputs!$B$170,SUM(Inputs!L68,Inputs!L70,Inputs!L79),IF(Inputs!$B$168=Inputs!$B$171,SUM(Inputs!L83,Inputs!L85,Inputs!L94),0))) -> 5351409.699 | M9: =IF(Inputs!$B$168=Inputs!$B$169,SUM(Inputs!M38,Inputs!M40,Inputs!M49),IF(Inputs!$B$168=Inputs!$B$170,SUM(Inputs!M68,Inputs!M70,Inputs!M79),IF(Inputs!$B$168=Inputs!$B$171,SUM(Inputs!M83,Inputs!M85,Inputs!M94),0))) -> 8114852.253 | N9: =IF(Inputs!$B$168=Inputs!$B$169,SUM(Inputs!N38,Inputs!N40,Inputs!N49),IF(Inputs!$B$168=Inputs!$B$170,SUM(Inputs!N68,Inputs!N70,Inputs!N79),IF(Inputs!$B$168=Inputs!$B$171,SUM(Inputs!N83,Inputs!N85,Inputs!N94),0))) -> 6433044.307 | O9: =IF(Inputs!$B$168=Inputs!$B$169,SUM(Inputs!O38,Inputs!O40,Inputs!O49),IF(Inputs!$B$168=Inputs!$B$170,SUM(Inputs!O68,Inputs!O70,Inputs!O79),IF(Inputs!$B$168=Inputs!$B$171,SUM(Inputs!O83,Inputs!O85,Inputs!O94),0))) -> 5775361.958 | P9: =IF(Inputs!$B$168=Inputs!$B$169,SUM(Inputs!P38,Inputs!P40,Inputs!P49),IF(Inputs!$B$168=Inputs!$B$170,SUM(Inputs!P68,Inputs!P70,Inputs!P79),IF(Inputs!$B$168=Inputs!$B$171,SUM(Inputs!P83,Inputs!P85,Inputs!P94),0))) -> 8555091.644 | Q9: =IF(Inputs!$B$168=Inputs!$B$169,SUM(Inputs!Q38,Inputs!Q40,Inputs!Q49),IF(Inputs!$B$168=Inputs!$B$170,SUM(Inputs!Q68,Inputs!Q70,Inputs!Q79),IF(Inputs!$B$168=Inputs!$B$171,SUM(Inputs!Q83,Inputs!Q85,Inputs!Q94),0))) -> 8281762.323 | R9: =IF(Inputs!$B$168=Inputs!$B$169,SUM(Inputs!R38,Inputs!R40,Inputs!R49),IF(Inputs!$B$168=Inputs!$B$170,SUM(Inputs!R68,Inputs!R70,Inputs!R79),IF(Inputs!$B$168=Inputs!$B$171,SUM(Inputs!R83,Inputs!R85,Inputs!R94),0))) -> 8161225.048 | S9: =IF(Inputs!$B$168=Inputs!$B$169,SUM(Inputs!S38,Inputs!S40,Inputs!S49),IF(Inputs!$B$168=Inputs!$B$170,SUM(Inputs!S68,Inputs!S70,Inputs!S79),IF(Inputs!$B$168=Inputs!$B$171,SUM(Inputs!S83,Inputs!S85,Inputs!S94),0))) -> 8125322.593 | T9: =IF(Inputs!$B$168=Inputs!$B$169,SUM(Inputs!T38,Inputs!T40,Inputs!T49),IF(Inputs!$B$168=Inputs!$B$170,SUM(Inputs!T68,Inputs!T70,Inputs!T79),IF(Inputs!$B$168=Inputs!$B$171,SUM(Inputs!T83,Inputs!T85,Inputs!T94),0))) -> 8223366.013 | U9: =IF(Inputs!$B$168=Inputs!$B$169,SUM(Inputs!U38,Inputs!U40,Inputs!U49),IF(Inputs!$B$168=Inputs!$B$170,SUM(Inputs!U68,Inputs!U70,Inputs!U79),IF(Inputs!$B$168=Inputs!$B$171,SUM(Inputs!U83,Inputs!U85,Inputs!U94),0))) -> 8250559.778 | V9: =IF(Inputs!$B$168=Inputs!$B$169,SUM(Inputs!V38,Inputs!V40,Inputs!V49),IF(Inputs!$B$168=Inputs!$B$170,SUM(Inputs!V68,Inputs!V70,Inputs!V79),IF(Inputs!$B$168=Inputs!$B$171,SUM(Inputs!V83,Inputs!V85,Inputs!V94),0))) -> 8453132.486 | W9: =IF(Inputs!$B$168=Inputs!$B$169,SUM(Inputs!W38,Inputs!W40,Inputs!W49),IF(Inputs!$B$168=Inputs!$B$170,SUM(Inputs!W68,Inputs!W70,Inputs!W79),IF(Inputs!$B$168=Inputs!$B$171,SUM(Inputs!W83,Inputs!W85,Inputs!W94),0))) -> 7589340.614 | X9: =IF(Inputs!$B$168=Inputs!$B$169,SUM(Inputs!X38,Inputs!X40,Inputs!X49),IF(Inputs!$B$168=Inputs!$B$170,SUM(Inputs!X68,Inputs!X70,Inputs!X79),IF(Inputs!$B$168=Inputs!$B$171,SUM(Inputs!X83,Inputs!X85,Inputs!X94),0))) -> 7879579.377 | Y9: =IF(Inputs!$B$168=Inputs!$B$169,SUM(Inputs!Y38,Inputs!Y40,Inputs!Y49),IF(Inputs!$B$168=Inputs!$B$170,SUM(Inputs!Y68,Inputs!Y70,Inputs!Y79),IF(Inputs!$B$168=Inputs!$B$171,SUM(Inputs!Y83,Inputs!Y85,Inputs!Y94),0))) -> 5273178.96 | Z9: =IF(Inputs!$B$168=Inputs!$B$169,SUM(Inputs!Z38,Inputs!Z40,Inputs!Z49),IF(Inputs!$B$168=Inputs!$B$170,SUM(Inputs!Z68,Inputs!Z70,Inputs!Z79),IF(Inputs!$B$168=Inputs!$B$171,SUM(Inputs!Z83,Inputs!Z85,Inputs!Z94),0))) -> 2049709.241 | AA9: =IF(Inputs!$B$168=Inputs!$B$169,SUM(Inputs!AA38,Inputs!AA40,Inputs!AA49),IF(Inputs!$B$168=Inputs!$B$170,SUM(Inputs!AA68,Inputs!AA70,Inputs!AA79),IF(Inputs!$B$168=Inputs!$B$171,SUM(Inputs!AA83,Inputs!AA85,Inputs!AA94),0))) -> 2044389.651 | AB9: =IF(Inputs!$B$168=Inputs!$B$169,SUM(Inputs!AB38,Inputs!AB40,Inputs!AB49),IF(Inputs!$B$168=Inputs!$B$170,SUM(Inputs!AB68,Inputs!AB70,Inputs!AB79),IF(Inputs!$B$168=Inputs!$B$171,SUM(Inputs!AB83,Inputs!AB85,Inputs!AB94),0))) -> 2036741.72 | AC9: =IF(Inputs!$B$168=Inputs!$B$169,SUM(Inputs!AC38,Inputs!AC40,Inputs!AC49),IF(Inputs!$B$168=Inputs!$B$170,SUM(Inputs!AC68,Inputs!AC70,Inputs!AC79),IF(Inputs!$B$168=Inputs!$B$171,SUM(Inputs!AC83,Inputs!AC85,Inputs!AC94),0))) -> 2030756.309 | AD9: =IF(Inputs!$B$168=Inputs!$B$169,SUM(Inputs!AD38,Inputs!AD40,Inputs!AD49),IF(Inputs!$B$168=Inputs!$B$170,SUM(Inputs!AD68,Inputs!AD70,Inputs!AD79),IF(Inputs!$B$168=Inputs!$B$171,SUM(Inputs!AD83,Inputs!AD85,Inputs!AD94),0))) -> 2023772.176 | AE9: =IF(Inputs!$B$168=Inputs!$B$169,SUM(Inputs!AE38,Inputs!AE40,Inputs!AE49),IF(Inputs!$B$168=Inputs!$B$170,SUM(Inputs!AE68,Inputs!AE70,Inputs!AE79),IF(Inputs!$B$168=Inputs!$B$171,SUM(Inputs!AE83,Inputs!AE85,Inputs!AE94),0))) -> 2025056.43 | AF9: =IF(Inputs!$B$168=Inputs!$B$169,SUM(Inputs!AF38,Inputs!AF40,Inputs!AF49),IF(Inputs!$B$168=Inputs!$B$170,SUM(Inputs!AF68,Inputs!AF70,Inputs!AF79),IF(Inputs!$B$168=Inputs!$B$171,SUM(Inputs!AF83,Inputs!AF85,Inputs!AF94),0))) -> 2017952.39 | AG9: =IF(Inputs!$B$168=Inputs!$B$169,SUM(Inputs!AG38,Inputs!AG40,Inputs!AG49),IF(Inputs!$B$168=Inputs!$B$170,SUM(Inputs!AG68,Inputs!AG70,Inputs!AG79),IF(Inputs!$B$168=Inputs!$B$171,SUM(Inputs!AG83,Inputs!AG85,Inputs!AG94),0))) -> 2019538.264 | AH9: =IF(Inputs!$B$168=Inputs!$B$169,SUM(Inputs!AH38,Inputs!AH40,Inputs!AH49),IF(Inputs!$B$168=Inputs!$B$170,SUM(Inputs!AH68,Inputs!AH70,Inputs!AH79),IF(Inputs!$B$168=Inputs!$B$171,SUM(Inputs!AH83,Inputs!AH85,Inputs!AH94),0))) -> 2020815.024 | AI9: =IF(Inputs!$B$168=Inputs!$B$169,SUM(Inputs!AI38,Inputs!AI40,Inputs!AI49),IF(Inputs!$B$168=Inputs!$B$170,SUM(Inputs!AI68,Inputs!AI70,Inputs!AI79),IF(Inputs!$B$168=Inputs!$B$171,SUM(Inputs!AI83,Inputs!AI85,Inputs!AI94),0))) -> 2022216.9 | AJ9: =IF(Inputs!$B$168=Inputs!$B$169,SUM(Inputs!AJ38,Inputs!AJ40,Inputs!AJ49),IF(Inputs!$B$168=Inputs!$B$170,SUM(Inputs!AJ68,Inputs!AJ70,Inputs!AJ79),IF(Inputs!$B$168=Inputs!$B$171,SUM(Inputs!AJ83,Inputs!AJ85,Inputs!AJ94),0))) -> 2016419.266 | AK9: =IF(Inputs!$B$168=Inputs!$B$169,SUM(Inputs!AK38,Inputs!AK40,Inputs!AK49),IF(Inputs!$B$168=Inputs!$B$170,SUM(Inputs!AK68,Inputs!AK70,Inputs!AK79),IF(Inputs!$B$168=Inputs!$B$171,SUM(Inputs!AK83,Inputs!AK85,Inputs!AK94),0))) -> 2017145.357 | AL9: =IF(Inputs!$B$168=Inputs!$B$169,SUM(Inputs!AL38,Inputs!AL40,Inputs!AL49),IF(Inputs!$B$168=Inputs!$B$170,SUM(Inputs!AL68,Inputs!AL70,Inputs!AL79),IF(Inputs!$B$168=Inputs!$B$171,SUM(Inputs!AL83,Inputs!AL85,Inputs!AL94),0))) -> 2018598.519 | AM9: =IF(Inputs!$B$168=Inputs!$B$169,SUM(Inputs!AM38,Inputs!AM40,Inputs!AM49),IF(Inputs!$B$168=Inputs!$B$170,SUM(Inputs!AM68,Inputs!AM70,Inputs!AM79),IF(Inputs!$B$168=Inputs!$B$171,SUM(Inputs!AM83,Inputs!AM85,Inputs!AM94),0))) -> 2020003.471 | AN9: =IF(Inputs!$B$168=Inputs!$B$169,SUM(Inputs!AN38,Inputs!AN40,Inputs!AN49),IF(Inputs!$B$168=Inputs!$B$170,SUM(Inputs!AN68,Inputs!AN70,Inputs!AN79),IF(Inputs!$B$168=Inputs!$B$171,SUM(Inputs!AN83,Inputs!AN85,Inputs!AN94),0))) -> 2019965.807 | AO9: =IF(Inputs!$B$168=Inputs!$B$169,SUM(Inputs!AO38,Inputs!AO40,Inputs!AO49),IF(Inputs!$B$168=Inputs!$B$170,SUM(Inputs!AO68,Inputs!AO70,Inputs!AO79),IF(Inputs!$B$168=Inputs!$B$171,SUM(Inputs!AO83,Inputs!AO85,Inputs!AO94),0))) -> 2021067.676 | AP9: =IF(Inputs!$B$168=Inputs!$B$169,SUM(Inputs!AP38,Inputs!AP40,Inputs!AP49),IF(Inputs!$B$168=Inputs!$B$170,SUM(Inputs!AP68,Inputs!AP70,Inputs!AP79),IF(Inputs!$B$168=Inputs!$B$171,SUM(Inputs!AP83,Inputs!AP85,Inputs!AP94),0))) -> 2020852.125 | AQ9: =IF(Inputs!$B$168=Inputs!$B$169,SUM(Inputs!AQ38,Inputs!AQ40,Inputs!AQ49),IF(Inputs!$B$168=Inputs!$B$170,SUM(Inputs!AQ68,Inputs!AQ70,Inputs!AQ79),IF(Inputs!$B$168=Inputs!$B$171,SUM(Inputs!AQ83,Inputs!AQ85,Inputs!AQ94),0))) -> 2028099.184 | AR9: =IF(Inputs!$B$168=Inputs!$B$169,SUM(Inputs!AR38,Inputs!AR40,Inputs!AR49),IF(Inputs!$B$168=Inputs!$B$170,SUM(Inputs!AR68,Inputs!AR70,Inputs!AR79),IF(Inputs!$B$168=Inputs!$B$171,SUM(Inputs!AR83,Inputs!AR85,Inputs!AR94),0))) -> 2028363.565
A10: Services | E10: =IF(Inputs!$B$168=Inputs!$B$169,SUM(Inputs!E41,Inputs!E43,Inputs!E45),IF(Inputs!$B$168=Inputs!$B$170,SUM(Inputs!E71,Inputs!E73,Inputs!E75),IF(Inputs!$B$168=Inputs!$B$171,SUM(Inputs!E86,Inputs!E88,Inputs!E90),0))) -> 387648.0969 | F10: =IF(Inputs!$B$168=Inputs!$B$169,SUM(Inputs!F41,Inputs!F43,Inputs!F45),IF(Inputs!$B$168=Inputs!$B$170,SUM(Inputs!F71,Inputs!F73,Inputs!F75),IF(Inputs!$B$168=Inputs!$B$171,SUM(Inputs!F86,Inputs!F88,Inputs!F90),0))) -> 694810.8143 | G10: =IF(Inputs!$B$168=Inputs!$B$169,SUM(Inputs!G41,Inputs!G43,Inputs!G45),IF(Inputs!$B$168=Inputs!$B$170,SUM(Inputs!G71,Inputs!G73,Inputs!G75),IF(Inputs!$B$168=Inputs!$B$171,SUM(Inputs!G86,Inputs!G88,Inputs!G90),0))) -> 1678078.464 | H10: =IF(Inputs!$B$168=Inputs!$B$169,SUM(Inputs!H41,Inputs!H43,Inputs!H45),IF(Inputs!$B$168=Inputs!$B$170,SUM(Inputs!H71,Inputs!H73,Inputs!H75),IF(Inputs!$B$168=Inputs!$B$171,SUM(Inputs!H86,Inputs!H88,Inputs!H90),0)))+Inputs!H160 -> -630403.4012 | I10: =IF(Inputs!$B$168=Inputs!$B$169,SUM(Inputs!I41,Inputs!I43,Inputs!I45),IF(Inputs!$B$168=Inputs!$B$170,SUM(Inputs!I71,Inputs!I73,Inputs!I75),IF(Inputs!$B$168=Inputs!$B$171,SUM(Inputs!I86,Inputs!I88,Inputs!I90),0)))+Inputs!I160 -> -1312640.597 | J10: =IF(Inputs!$B$168=Inputs!$B$169,SUM(Inputs!J41,Inputs!J43,Inputs!J45),IF(Inputs!$B$168=Inputs!$B$170,SUM(Inputs!J71,Inputs!J73,Inputs!J75),IF(Inputs!$B$168=Inputs!$B$171,SUM(Inputs!J86,Inputs!J88,Inputs!J90),0)))+Inputs!J160 -> 3656705.096 | K10: =IF(Inputs!$B$168=Inputs!$B$169,SUM(Inputs!K41,Inputs!K43,Inputs!K45),IF(Inputs!$B$168=Inputs!$B$170,SUM(Inputs!K71,Inputs!K73,Inputs!K75),IF(Inputs!$B$168=Inputs!$B$171,SUM(Inputs!K86,Inputs!K88,Inputs!K90),0)))+Inputs!K160 -> 7053872.074 | L10: =IF(Inputs!$B$168=Inputs!$B$169,SUM(Inputs!L41,Inputs!L43,Inputs!L45),IF(Inputs!$B$168=Inputs!$B$170,SUM(Inputs!L71,Inputs!L73,Inputs!L75),IF(Inputs!$B$168=Inputs!$B$171,SUM(Inputs!L86,Inputs!L88,Inputs!L90),0)))+Inputs!L160 -> 4120019.069 | M10: =IF(Inputs!$B$168=Inputs!$B$169,SUM(Inputs!M41,Inputs!M43,Inputs!M45),IF(Inputs!$B$168=Inputs!$B$170,SUM(Inputs!M71,Inputs!M73,Inputs!M75),IF(Inputs!$B$168=Inputs!$B$171,SUM(Inputs!M86,Inputs!M88,Inputs!M90),0)))+Inputs!M160 -> -2712649.843 | N10: =IF(Inputs!$B$168=Inputs!$B$169,SUM(Inputs!N41,Inputs!N43,Inputs!N45),IF(Inputs!$B$168=Inputs!$B$170,SUM(Inputs!N71,Inputs!N73,Inputs!N75),IF(Inputs!$B$168=Inputs!$B$171,SUM(Inputs!N86,Inputs!N88,Inputs!N90),0)))+Inputs!N160 -> 2589751.319 | O10: =IF(Inputs!$B$168=Inputs!$B$169,SUM(Inputs!O41,Inputs!O43,Inputs!O45),IF(Inputs!$B$168=Inputs!$B$170,SUM(Inputs!O71,Inputs!O73,Inputs!O75),IF(Inputs!$B$168=Inputs!$B$171,SUM(Inputs!O86,Inputs!O88,Inputs!O90),0)))+Inputs!O160 -> 4130887.356 | P10: =IF(Inputs!$B$168=Inputs!$B$169,SUM(Inputs!P41,Inputs!P43,Inputs!P45),IF(Inputs!$B$168=Inputs!$B$170,SUM(Inputs!P71,Inputs!P73,Inputs!P75),IF(Inputs!$B$168=Inputs!$B$171,SUM(Inputs!P86,Inputs!P88,Inputs!P90),0))) -> 3005471.977 | Q10: =IF(Inputs!$B$168=Inputs!$B$169,SUM(Inputs!Q41,Inputs!Q43,Inputs!Q45),IF(Inputs!$B$168=Inputs!$B$170,SUM(Inputs!Q71,Inputs!Q73,Inputs!Q75),IF(Inputs!$B$168=Inputs!$B$171,SUM(Inputs!Q86,Inputs!Q88,Inputs!Q90),0))) -> 3224354.16 | R10: =IF(Inputs!$B$168=Inputs!$B$169,SUM(Inputs!R41,Inputs!R43,Inputs!R45),IF(Inputs!$B$168=Inputs!$B$170,SUM(Inputs!R71,Inputs!R73,Inputs!R75),IF(Inputs!$B$168=Inputs!$B$171,SUM(Inputs!R86,Inputs!R88,Inputs!R90),0))) -> 3446565.95 | S10: =IF(Inputs!$B$168=Inputs!$B$169,SUM(Inputs!S41,Inputs!S43,Inputs!S45),IF(Inputs!$B$168=Inputs!$B$170,SUM(Inputs!S71,Inputs!S73,Inputs!S75),IF(Inputs!$B$168=Inputs!$B$171,SUM(Inputs!S86,Inputs!S88,Inputs!S90),0))) -> 3637114.334 | T10: =IF(Inputs!$B$168=Inputs!$B$169,SUM(Inputs!T41,Inputs!T43,Inputs!T45),IF(Inputs!$B$168=Inputs!$B$170,SUM(Inputs!T71,Inputs!T73,Inputs!T75),IF(Inputs!$B$168=Inputs!$B$171,SUM(Inputs!T86,Inputs!T88,Inputs!T90),0))) -> 3825235.968 | U10: =IF(Inputs!$B$168=Inputs!$B$169,SUM(Inputs!U41,Inputs!U43,Inputs!U45),IF(Inputs!$B$168=Inputs!$B$170,SUM(Inputs!U71,Inputs!U73,Inputs!U75),IF(Inputs!$B$168=Inputs!$B$171,SUM(Inputs!U86,Inputs!U88,Inputs!U90),0))) -> 3941348.435 | V10: =IF(Inputs!$B$168=Inputs!$B$169,SUM(Inputs!V41,Inputs!V43,Inputs!V45),IF(Inputs!$B$168=Inputs!$B$170,SUM(Inputs!V71,Inputs!V73,Inputs!V75),IF(Inputs!$B$168=Inputs!$B$171,SUM(Inputs!V86,Inputs!V88,Inputs!V90),0))) -> 3874841.394 | W10: =IF(Inputs!$B$168=Inputs!$B$169,SUM(Inputs!W41,Inputs!W43,Inputs!W45),IF(Inputs!$B$168=Inputs!$B$170,SUM(Inputs!W71,Inputs!W73,Inputs!W75),IF(Inputs!$B$168=Inputs!$B$171,SUM(Inputs!W86,Inputs!W88,Inputs!W90),0))) -> 3893536.326 | X10: =IF(Inputs!$B$168=Inputs!$B$169,SUM(Inputs!X41,Inputs!X43,Inputs!X45),IF(Inputs!$B$168=Inputs!$B$170,SUM(Inputs!X71,Inputs!X73,Inputs!X75),IF(Inputs!$B$168=Inputs!$B$171,SUM(Inputs!X86,Inputs!X88,Inputs!X90),0))) -> 3826935.717 | Y10: =IF(Inputs!$B$168=Inputs!$B$169,SUM(Inputs!Y41,Inputs!Y43,Inputs!Y45),IF(Inputs!$B$168=Inputs!$B$170,SUM(Inputs!Y71,Inputs!Y73,Inputs!Y75),IF(Inputs!$B$168=Inputs!$B$171,SUM(Inputs!Y86,Inputs!Y88,Inputs!Y90),0))) -> 3683475.086 | Z10: =IF(Inputs!$B$168=Inputs!$B$169,SUM(Inputs!Z41,Inputs!Z43,Inputs!Z45),IF(Inputs!$B$168=Inputs!$B$170,SUM(Inputs!Z71,Inputs!Z73,Inputs!Z75),IF(Inputs!$B$168=Inputs!$B$171,SUM(Inputs!Z86,Inputs!Z88,Inputs!Z90),0))) -> 3509920.173 | AA10: =IF(Inputs!$B$168=Inputs!$B$169,SUM(Inputs!AA41,Inputs!AA43,Inputs!AA45),IF(Inputs!$B$168=Inputs!$B$170,SUM(Inputs!AA71,Inputs!AA73,Inputs!AA75),IF(Inputs!$B$168=Inputs!$B$171,SUM(Inputs!AA86,Inputs!AA88,Inputs!AA90),0))) -> 3307624.696 | AB10: =IF(Inputs!$B$168=Inputs!$B$169,SUM(Inputs!AB41,Inputs!AB43,Inputs!AB45),IF(Inputs!$B$168=Inputs!$B$170,SUM(Inputs!AB71,Inputs!AB73,Inputs!AB75),IF(Inputs!$B$168=Inputs!$B$171,SUM(Inputs!AB86,Inputs!AB88,Inputs!AB90),0))) -> 3135209.718 | AC10: =IF(Inputs!$B$168=Inputs!$B$169,SUM(Inputs!AC41,Inputs!AC43,Inputs!AC45),IF(Inputs!$B$168=Inputs!$B$170,SUM(Inputs!AC71,Inputs!AC73,Inputs!AC75),IF(Inputs!$B$168=Inputs!$B$171,SUM(Inputs!AC86,Inputs!AC88,Inputs!AC90),0))) -> 2972940.161 | AD10: =IF(Inputs!$B$168=Inputs!$B$169,SUM(Inputs!AD41,Inputs!AD43,Inputs!AD45),IF(Inputs!$B$168=Inputs!$B$170,SUM(Inputs!AD71,Inputs!AD73,Inputs!AD75),IF(Inputs!$B$168=Inputs!$B$171,SUM(Inputs!AD86,Inputs!AD88,Inputs!AD90),0))) -> 2805354.658 | AE10: =IF(Inputs!$B$168=Inputs!$B$169,SUM(Inputs!AE41,Inputs!AE43,Inputs!AE45),IF(Inputs!$B$168=Inputs!$B$170,SUM(Inputs!AE71,Inputs!AE73,Inputs!AE75),IF(Inputs!$B$168=Inputs!$B$171,SUM(Inputs!AE86,Inputs!AE88,Inputs!AE90),0))) -> 2717437.267 | AF10: =IF(Inputs!$B$168=Inputs!$B$169,SUM(Inputs!AF41,Inputs!AF43,Inputs!AF45),IF(Inputs!$B$168=Inputs!$B$170,SUM(Inputs!AF71,Inputs!AF73,Inputs!AF75),IF(Inputs!$B$168=Inputs!$B$171,SUM(Inputs!AF86,Inputs!AF88,Inputs!AF90),0))) -> 2551747.905 | AG10: =IF(Inputs!$B$168=Inputs!$B$169,SUM(Inputs!AG41,Inputs!AG43,Inputs!AG45),IF(Inputs!$B$168=Inputs!$B$170,SUM(Inputs!AG71,Inputs!AG73,Inputs!AG75),IF(Inputs!$B$168=Inputs!$B$171,SUM(Inputs!AG86,Inputs!AG88,Inputs!AG90),0))) -> 2468504.247 | AH10: =IF(Inputs!$B$168=Inputs!$B$169,SUM(Inputs!AH41,Inputs!AH43,Inputs!AH45),IF(Inputs!$B$168=Inputs!$B$170,SUM(Inputs!AH71,Inputs!AH73,Inputs!AH75),IF(Inputs!$B$168=Inputs!$B$171,SUM(Inputs!AH86,Inputs!AH88,Inputs!AH90),0))) -> 2381726.791 | AI10: =IF(Inputs!$B$168=Inputs!$B$169,SUM(Inputs!AI41,Inputs!AI43,Inputs!AI45),IF(Inputs!$B$168=Inputs!$B$170,SUM(Inputs!AI71,Inputs!AI73,Inputs!AI75),IF(Inputs!$B$168=Inputs!$B$171,SUM(Inputs!AI86,Inputs!AI88,Inputs!AI90),0))) -> 2301902.937 | AJ10: =IF(Inputs!$B$168=Inputs!$B$169,SUM(Inputs!AJ41,Inputs!AJ43,Inputs!AJ45),IF(Inputs!$B$168=Inputs!$B$170,SUM(Inputs!AJ71,Inputs!AJ73,Inputs!AJ75),IF(Inputs!$B$168=Inputs!$B$171,SUM(Inputs!AJ86,Inputs!AJ88,Inputs!AJ90),0))) -> 2145105.068 | AK10: =IF(Inputs!$B$168=Inputs!$B$169,SUM(Inputs!AK41,Inputs!AK43,Inputs!AK45),IF(Inputs!$B$168=Inputs!$B$170,SUM(Inputs!AK71,Inputs!AK73,Inputs!AK75),IF(Inputs!$B$168=Inputs!$B$171,SUM(Inputs!AK86,Inputs!AK88,Inputs!AK90),0))) -> 2062431.377 | AL10: =IF(Inputs!$B$168=Inputs!$B$169,SUM(Inputs!AL41,Inputs!AL43,Inputs!AL45),IF(Inputs!$B$168=Inputs!$B$170,SUM(Inputs!AL71,Inputs!AL73,Inputs!AL75),IF(Inputs!$B$168=Inputs!$B$171,SUM(Inputs!AL86,Inputs!AL88,Inputs!AL90),0))) -> 1983975.445 | AM10: =IF(Inputs!$B$168=Inputs!$B$169,SUM(Inputs!AM41,Inputs!AM43,Inputs!AM45),IF(Inputs!$B$168=Inputs!$B$170,SUM(Inputs!AM71,Inputs!AM73,Inputs!AM75),IF(Inputs!$B$168=Inputs!$B$171,SUM(Inputs!AM86,Inputs!AM88,Inputs!AM90),0))) -> 1904151.592 | AN10: =IF(Inputs!$B$168=Inputs!$B$169,SUM(Inputs!AN41,Inputs!AN43,Inputs!AN45),IF(Inputs!$B$168=Inputs!$B$170,SUM(Inputs!AN71,Inputs!AN73,Inputs!AN75),IF(Inputs!$B$168=Inputs!$B$171,SUM(Inputs!AN86,Inputs!AN88,Inputs!AN90),0))) -> 1816959.909 | AO10: =IF(Inputs!$B$168=Inputs!$B$169,SUM(Inputs!AO41,Inputs!AO43,Inputs!AO45),IF(Inputs!$B$168=Inputs!$B$170,SUM(Inputs!AO71,Inputs!AO73,Inputs!AO75),IF(Inputs!$B$168=Inputs!$B$171,SUM(Inputs!AO86,Inputs!AO88,Inputs!AO90),0))) -> 1738275.991 | AP10: =IF(Inputs!$B$168=Inputs!$B$169,SUM(Inputs!AP41,Inputs!AP43,Inputs!AP45),IF(Inputs!$B$168=Inputs!$B$170,SUM(Inputs!AP71,Inputs!AP73,Inputs!AP75),IF(Inputs!$B$168=Inputs!$B$171,SUM(Inputs!AP86,Inputs!AP88,Inputs!AP90),0))) -> 1662783.89 | AQ10: =IF(Inputs!$B$168=Inputs!$B$169,SUM(Inputs!AQ41,Inputs!AQ43,Inputs!AQ45),IF(Inputs!$B$168=Inputs!$B$170,SUM(Inputs!AQ71,Inputs!AQ73,Inputs!AQ75),IF(Inputs!$B$168=Inputs!$B$171,SUM(Inputs!AQ86,Inputs!AQ88,Inputs!AQ90),0))) -> 1658680.124 | AR10: =IF(Inputs!$B$168=Inputs!$B$169,SUM(Inputs!AR41,Inputs!AR43,Inputs!AR45),IF(Inputs!$B$168=Inputs!$B$170,SUM(Inputs!AR71,Inputs!AR73,Inputs!AR75),IF(Inputs!$B$168=Inputs!$B$171,SUM(Inputs!AR86,Inputs!AR88,Inputs!AR90),0))) -> 1581820.102
A11: Meters, PRS, Telemetry | E11: =IF(Inputs!$B$168=Inputs!$B$169,SUM(Inputs!E39,Inputs!E42,Inputs!E44,Inputs!E46,Inputs!E47),IF(Inputs!$B$168=Inputs!$B$170,SUM(Inputs!E69,Inputs!E72,Inputs!E74,Inputs!E76,Inputs!E77),IF(Inputs!$B$168=Inputs!$B$171,SUM(Inputs!E84,Inputs!E87,Inputs!E89,Inputs!E91,Inputs!E92),0))) -> 485054.132 | F11: =IF(Inputs!$B$168=Inputs!$B$169,SUM(Inputs!F39,Inputs!F42,Inputs!F44,Inputs!F46,Inputs!F47),IF(Inputs!$B$168=Inputs!$B$170,SUM(Inputs!F69,Inputs!F72,Inputs!F74,Inputs!F76,Inputs!F77),IF(Inputs!$B$168=Inputs!$B$171,SUM(Inputs!F84,Inputs!F87,Inputs!F89,Inputs!F91,Inputs!F92),0))) -> 907299.5312 | G11: =IF(Inputs!$B$168=Inputs!$B$169,SUM(Inputs!G39,Inputs!G42,Inputs!G44,Inputs!G46,Inputs!G47),IF(Inputs!$B$168=Inputs!$B$170,SUM(Inputs!G69,Inputs!G72,Inputs!G74,Inputs!G76,Inputs!G77),IF(Inputs!$B$168=Inputs!$B$171,SUM(Inputs!G84,Inputs!G87,Inputs!G89,Inputs!G91,Inputs!G92),0))) -> 1923187.422 | H11: =IF(Inputs!$B$168=Inputs!$B$169,SUM(Inputs!H39,Inputs!H42,Inputs!H44,Inputs!H46,Inputs!H47),IF(Inputs!$B$168=Inputs!$B$170,SUM(Inputs!H69,Inputs!H72,Inputs!H74,Inputs!H76,Inputs!H77),IF(Inputs!$B$168=Inputs!$B$171,SUM(Inputs!H84,Inputs!H87,Inputs!H89,Inputs!H91,Inputs!H92),0)))+Inputs!H161 -> 984043.8806 | I11: =IF(Inputs!$B$168=Inputs!$B$169,SUM(Inputs!I39,Inputs!I42,Inputs!I44,Inputs!I46,Inputs!I47),IF(Inputs!$B$168=Inputs!$B$170,SUM(Inputs!I69,Inputs!I72,Inputs!I74,Inputs!I76,Inputs!I77),IF(Inputs!$B$168=Inputs!$B$171,SUM(Inputs!I84,Inputs!I87,Inputs!I89,Inputs!I91,Inputs!I92),0)))+Inputs!I161 -> 1056773.134 | J11: =IF(Inputs!$B$168=Inputs!$B$169,SUM(Inputs!J39,Inputs!J42,Inputs!J44,Inputs!J46,Inputs!J47),IF(Inputs!$B$168=Inputs!$B$170,SUM(Inputs!J69,Inputs!J72,Inputs!J74,Inputs!J76,Inputs!J77),IF(Inputs!$B$168=Inputs!$B$171,SUM(Inputs!J84,Inputs!J87,Inputs!J89,Inputs!J91,Inputs!J92),0)))+Inputs!J161 -> 1371365.724 | K11: =IF(Inputs!$B$168=Inputs!$B$169,SUM(Inputs!K39,Inputs!K42,Inputs!K44,Inputs!K46,Inputs!K47),IF(Inputs!$B$168=Inputs!$B$170,SUM(Inputs!K69,Inputs!K72,Inputs!K74,Inputs!K76,Inputs!K77),IF(Inputs!$B$168=Inputs!$B$171,SUM(Inputs!K84,Inputs!K87,Inputs!K89,Inputs!K91,Inputs!K92),0)))+Inputs!K161 -> 1490095.827 | L11: =IF(Inputs!$B$168=Inputs!$B$169,SUM(Inputs!L39,Inputs!L42,Inputs!L44,Inputs!L46,Inputs!L47),IF(Inputs!$B$168=Inputs!$B$170,SUM(Inputs!L69,Inputs!L72,Inputs!L74,Inputs!L76,Inputs!L77),IF(Inputs!$B$168=Inputs!$B$171,SUM(Inputs!L84,Inputs!L87,Inputs!L89,Inputs!L91,Inputs!L92),0)))+Inputs!L161 -> 1261869.925 | M11: =IF(Inputs!$B$168=Inputs!$B$169,SUM(Inputs!M39,Inputs!M42,Inputs!M44,Inputs!M46,Inputs!M47),IF(Inputs!$B$168=Inputs!$B$170,SUM(Inputs!M69,Inputs!M72,Inputs!M74,Inputs!M76,Inputs!M77),IF(Inputs!$B$168=Inputs!$B$171,SUM(Inputs!M84,Inputs!M87,Inputs!M89,Inputs!M91,Inputs!M92),0)))+Inputs!M161 -> 1101163.95 | N11: =IF(Inputs!$B$168=Inputs!$B$169,SUM(Inputs!N39,Inputs!N42,Inputs!N44,Inputs!N46,Inputs!N47),IF(Inputs!$B$168=Inputs!$B$170,SUM(Inputs!N69,Inputs!N72,Inputs!N74,Inputs!N76,Inputs!N77),IF(Inputs!$B$168=Inputs!$B$171,SUM(Inputs!N84,Inputs!N87,Inputs!N89,Inputs!N91,Inputs!N92),0)))+Inputs!N161 -> 1203206.368 | O11: =IF(Inputs!$B$168=Inputs!$B$169,SUM(Inputs!O39,Inputs!O42,Inputs!O44,Inputs!O46,Inputs!O47),IF(Inputs!$B$168=Inputs!$B$170,SUM(Inputs!O69,Inputs!O72,Inputs!O74,Inputs!O76,Inputs!O77),IF(Inputs!$B$168=Inputs!$B$171,SUM(Inputs!O84,Inputs!O87,Inputs!O89,Inputs!O91,Inputs!O92),0)))+Inputs!O161 -> 1048416.29 | P11: =IF(Inputs!$B$168=Inputs!$B$169,SUM(Inputs!P39,Inputs!P42,Inputs!P44,Inputs!P46,Inputs!P47),IF(Inputs!$B$168=Inputs!$B$170,SUM(Inputs!P69,Inputs!P72,Inputs!P74,Inputs!P76,Inputs!P77),IF(Inputs!$B$168=Inputs!$B$171,SUM(Inputs!P84,Inputs!P87,Inputs!P89,Inputs!P91,Inputs!P92),0))) -> 1156243.964 | Q11: =IF(Inputs!$B$168=Inputs!$B$169,SUM(Inputs!Q39,Inputs!Q42,Inputs!Q44,Inputs!Q46,Inputs!Q47),IF(Inputs!$B$168=Inputs!$B$170,SUM(Inputs!Q69,Inputs!Q72,Inputs!Q74,Inputs!Q76,Inputs!Q77),IF(Inputs!$B$168=Inputs!$B$171,SUM(Inputs!Q84,Inputs!Q87,Inputs!Q89,Inputs!Q91,Inputs!Q92),0))) -> 1239252.983 | R11: =IF(Inputs!$B$168=Inputs!$B$169,SUM(Inputs!R39,Inputs!R42,Inputs!R44,Inputs!R46,Inputs!R47),IF(Inputs!$B$168=Inputs!$B$170,SUM(Inputs!R69,Inputs!R72,Inputs!R74,Inputs!R76,Inputs!R77),IF(Inputs!$B$168=Inputs!$B$171,SUM(Inputs!R84,Inputs!R87,Inputs!R89,Inputs!R91,Inputs!R92),0))) -> 1302055.116 | S11: =IF(Inputs!$B$168=Inputs!$B$169,SUM(Inputs!S39,Inputs!S42,Inputs!S44,Inputs!S46,Inputs!S47),IF(Inputs!$B$168=Inputs!$B$170,SUM(Inputs!S69,Inputs!S72,Inputs!S74,Inputs!S76,Inputs!S77),IF(Inputs!$B$168=Inputs!$B$171,SUM(Inputs!S84,Inputs!S87,Inputs!S89,Inputs!S91,Inputs!S92),0))) -> 1365437.531 | T11: =IF(Inputs!$B$168=Inputs!$B$169,SUM(Inputs!T39,Inputs!T42,Inputs!T44,Inputs!T46,Inputs!T47),IF(Inputs!$B$168=Inputs!$B$170,SUM(Inputs!T69,Inputs!T72,Inputs!T74,Inputs!T76,Inputs!T77),IF(Inputs!$B$168=Inputs!$B$171,SUM(Inputs!T84,Inputs!T87,Inputs!T89,Inputs!T91,Inputs!T92),0))) -> 1416959.158 | U11: =IF(Inputs!$B$168=Inputs!$B$169,SUM(Inputs!U39,Inputs!U42,Inputs!U44,Inputs!U46,Inputs!U47),IF(Inputs!$B$168=Inputs!$B$170,SUM(Inputs!U69,Inputs!U72,Inputs!U74,Inputs!U76,Inputs!U77),IF(Inputs!$B$168=Inputs!$B$171,SUM(Inputs!U84,Inputs!U87,Inputs!U89,Inputs!U91,Inputs!U92),0))) -> 1485987.865 | V11: =IF(Inputs!$B$168=Inputs!$B$169,SUM(Inputs!V39,Inputs!V42,Inputs!V44,Inputs!V46,Inputs!V47),IF(Inputs!$B$168=Inputs!$B$170,SUM(Inputs!V69,Inputs!V72,Inputs!V74,Inputs!V76,Inputs!V77),IF(Inputs!$B$168=Inputs!$B$171,SUM(Inputs!V84,Inputs!V87,Inputs!V89,Inputs!V91,Inputs!V92),0))) -> 1499053.793 | W11: =IF(Inputs!$B$168=Inputs!$B$169,SUM(Inputs!W39,Inputs!W42,Inputs!W44,Inputs!W46,Inputs!W47),IF(Inputs!$B$168=Inputs!$B$170,SUM(Inputs!W69,Inputs!W72,Inputs!W74,Inputs!W76,Inputs!W77),IF(Inputs!$B$168=Inputs!$B$171,SUM(Inputs!W84,Inputs!W87,Inputs!W89,Inputs!W91,Inputs!W92),0))) -> 1528801.486 | X11: =IF(Inputs!$B$168=Inputs!$B$169,SUM(Inputs!X39,Inputs!X42,Inputs!X44,Inputs!X46,Inputs!X47),IF(Inputs!$B$168=Inputs!$B$170,SUM(Inputs!X69,Inputs!X72,Inputs!X74,Inputs!X76,Inputs!X77),IF(Inputs!$B$168=Inputs!$B$171,SUM(Inputs!X84,Inputs!X87,Inputs!X89,Inputs!X91,Inputs!X92),0))) -> 1544794.282 | Y11: =IF(Inputs!$B$168=Inputs!$B$169,SUM(Inputs!Y39,Inputs!Y42,Inputs!Y44,Inputs!Y46,Inputs!Y47),IF(Inputs!$B$168=Inputs!$B$170,SUM(Inputs!Y69,Inputs!Y72,Inputs!Y74,Inputs!Y76,Inputs!Y77),IF(Inputs!$B$168=Inputs!$B$171,SUM(Inputs!Y84,Inputs!Y87,Inputs!Y89,Inputs!Y91,Inputs!Y92),0))) -> 1692666.126 | Z11: =IF(Inputs!$B$168=Inputs!$B$169,SUM(Inputs!Z39,Inputs!Z42,Inputs!Z44,Inputs!Z46,Inputs!Z47),IF(Inputs!$B$168=Inputs!$B$170,SUM(Inputs!Z69,Inputs!Z72,Inputs!Z74,Inputs!Z76,Inputs!Z77),IF(Inputs!$B$168=Inputs!$B$171,SUM(Inputs!Z84,Inputs!Z87,Inputs!Z89,Inputs!Z91,Inputs!Z92),0))) -> 1890413.637 | AA11: =IF(Inputs!$B$168=Inputs!$B$169,SUM(Inputs!AA39,Inputs!AA42,Inputs!AA44,Inputs!AA46,Inputs!AA47),IF(Inputs!$B$168=Inputs!$B$170,SUM(Inputs!AA69,Inputs!AA72,Inputs!AA74,Inputs!AA76,Inputs!AA77),IF(Inputs!$B$168=Inputs!$B$171,SUM(Inputs!AA84,Inputs!AA87,Inputs!AA89,Inputs!AA91,Inputs!AA92),0))) -> 2075345.067 | AB11: =IF(Inputs!$B$168=Inputs!$B$169,SUM(Inputs!AB39,Inputs!AB42,Inputs!AB44,Inputs!AB46,Inputs!AB47),IF(Inputs!$B$168=Inputs!$B$170,SUM(Inputs!AB69,Inputs!AB72,Inputs!AB74,Inputs!AB76,Inputs!AB77),IF(Inputs!$B$168=Inputs!$B$171,SUM(Inputs!AB84,Inputs!AB87,Inputs!AB89,Inputs!AB91,Inputs!AB92),0))) -> 2381908.44 | AC11: =IF(Inputs!$B$168=Inputs!$B$169,SUM(Inputs!AC39,Inputs!AC42,Inputs!AC44,Inputs!AC46,Inputs!AC47),IF(Inputs!$B$168=Inputs!$B$170,SUM(Inputs!AC69,Inputs!AC72,Inputs!AC74,Inputs!AC76,Inputs!AC77),IF(Inputs!$B$168=Inputs!$B$171,SUM(Inputs!AC84,Inputs!AC87,Inputs!AC89,Inputs!AC91,Inputs!AC92),0))) -> 2245873.497 | AD11: =IF(Inputs!$B$168=Inputs!$B$169,SUM(Inputs!AD39,Inputs!AD42,Inputs!AD44,Inputs!AD46,Inputs!AD47),IF(Inputs!$B$168=Inputs!$B$170,SUM(Inputs!AD69,Inputs!AD72,Inputs!AD74,Inputs!AD76,Inputs!AD77),IF(Inputs!$B$168=Inputs!$B$171,SUM(Inputs!AD84,Inputs!AD87,Inputs!AD89,Inputs!AD91,Inputs!AD92),0))) -> 2391397.945 | AE11: =IF(Inputs!$B$168=Inputs!$B$169,SUM(Inputs!AE39,Inputs!AE42,Inputs!AE44,Inputs!AE46,Inputs!AE47),IF(Inputs!$B$168=Inputs!$B$170,SUM(Inputs!AE69,Inputs!AE72,Inputs!AE74,Inputs!AE76,Inputs!AE77),IF(Inputs!$B$168=Inputs!$B$171,SUM(Inputs!AE84,Inputs!AE87,Inputs!AE89,Inputs!AE91,Inputs!AE92),0))) -> 2491064.597 | AF11: =IF(Inputs!$B$168=Inputs!$B$169,SUM(Inputs!AF39,Inputs!AF42,Inputs!AF44,Inputs!AF46,Inputs!AF47),IF(Inputs!$B$168=Inputs!$B$170,SUM(Inputs!AF69,Inputs!AF72,Inputs!AF74,Inputs!AF76,Inputs!AF77),IF(Inputs!$B$168=Inputs!$B$171,SUM(Inputs!AF84,Inputs!AF87,Inputs!AF89,Inputs!AF91,Inputs!AF92),0))) -> 2328042.82 | AG11: =IF(Inputs!$B$168=Inputs!$B$169,SUM(Inputs!AG39,Inputs!AG42,Inputs!AG44,Inputs!AG46,Inputs!AG47),IF(Inputs!$B$168=Inputs!$B$170,SUM(Inputs!AG69,Inputs!AG72,Inputs!AG74,Inputs!AG76,Inputs!AG77),IF(Inputs!$B$168=Inputs!$B$171,SUM(Inputs!AG84,Inputs!AG87,Inputs!AG89,Inputs!AG91,Inputs!AG92),0))) -> 2381272.62 | AH11: =IF(Inputs!$B$168=Inputs!$B$169,SUM(Inputs!AH39,Inputs!AH42,Inputs!AH44,Inputs!AH46,Inputs!AH47),IF(Inputs!$B$168=Inputs!$B$170,SUM(Inputs!AH69,Inputs!AH72,Inputs!AH74,Inputs!AH76,Inputs!AH77),IF(Inputs!$B$168=Inputs!$B$171,SUM(Inputs!AH84,Inputs!AH87,Inputs!AH89,Inputs!AH91,Inputs!AH92),0))) -> 2230564.469 | AI11: =IF(Inputs!$B$168=Inputs!$B$169,SUM(Inputs!AI39,Inputs!AI42,Inputs!AI44,Inputs!AI46,Inputs!AI47),IF(Inputs!$B$168=Inputs!$B$170,SUM(Inputs!AI69,Inputs!AI72,Inputs!AI74,Inputs!AI76,Inputs!AI77),IF(Inputs!$B$168=Inputs!$B$171,SUM(Inputs!AI84,Inputs!AI87,Inputs!AI89,Inputs!AI91,Inputs!AI92),0))) -> 2066242.256 | AJ11: =IF(Inputs!$B$168=Inputs!$B$169,SUM(Inputs!AJ39,Inputs!AJ42,Inputs!AJ44,Inputs!AJ46,Inputs!AJ47),IF(Inputs!$B$168=Inputs!$B$170,SUM(Inputs!AJ69,Inputs!AJ72,Inputs!AJ74,Inputs!AJ76,Inputs!AJ77),IF(Inputs!$B$168=Inputs!$B$171,SUM(Inputs!AJ84,Inputs!AJ87,Inputs!AJ89,Inputs!AJ91,Inputs!AJ92),0))) -> 2267232.342 | AK11: =IF(Inputs!$B$168=Inputs!$B$169,SUM(Inputs!AK39,Inputs!AK42,Inputs!AK44,Inputs!AK46,Inputs!AK47),IF(Inputs!$B$168=Inputs!$B$170,SUM(Inputs!AK69,Inputs!AK72,Inputs!AK74,Inputs!AK76,Inputs!AK77),IF(Inputs!$B$168=Inputs!$B$171,SUM(Inputs!AK84,Inputs!AK87,Inputs!AK89,Inputs!AK91,Inputs!AK92),0))) -> 2326505.92 | AL11: =IF(Inputs!$B$168=Inputs!$B$169,SUM(Inputs!AL39,Inputs!AL42,Inputs!AL44,Inputs!AL46,Inputs!AL47),IF(Inputs!$B$168=Inputs!$B$170,SUM(Inputs!AL69,Inputs!AL72,Inputs!AL74,Inputs!AL76,Inputs!AL77),IF(Inputs!$B$168=Inputs!$B$171,SUM(Inputs!AL84,Inputs!AL87,Inputs!AL89,Inputs!AL91,Inputs!AL92),0))) -> 2364324.082 | AM11: =IF(Inputs!$B$168=Inputs!$B$169,SUM(Inputs!AM39,Inputs!AM42,Inputs!AM44,Inputs!AM46,Inputs!AM47),IF(Inputs!$B$168=Inputs!$B$170,SUM(Inputs!AM69,Inputs!AM72,Inputs!AM74,Inputs!AM76,Inputs!AM77),IF(Inputs!$B$168=Inputs!$B$171,SUM(Inputs!AM84,Inputs!AM87,Inputs!AM89,Inputs!AM91,Inputs!AM92),0))) -> 2408606.045 | AN11: =IF(Inputs!$B$168=Inputs!$B$169,SUM(Inputs!AN39,Inputs!AN42,Inputs!AN44,Inputs!AN46,Inputs!AN47),IF(Inputs!$B$168=Inputs!$B$170,SUM(Inputs!AN69,Inputs!AN72,Inputs!AN74,Inputs!AN76,Inputs!AN77),IF(Inputs!$B$168=Inputs!$B$171,SUM(Inputs!AN84,Inputs!AN87,Inputs!AN89,Inputs!AN91,Inputs!AN92),0))) -> 2443029.677 | AO11: =IF(Inputs!$B$168=Inputs!$B$169,SUM(Inputs!AO39,Inputs!AO42,Inputs!AO44,Inputs!AO46,Inputs!AO47),IF(Inputs!$B$168=Inputs!$B$170,SUM(Inputs!AO69,Inputs!AO72,Inputs!AO74,Inputs!AO76,Inputs!AO77),IF(Inputs!$B$168=Inputs!$B$171,SUM(Inputs!AO84,Inputs!AO87,Inputs!AO89,Inputs!AO91,Inputs!AO92),0))) -> 2423177.735 | AP11: =IF(Inputs!$B$168=Inputs!$B$169,SUM(Inputs!AP39,Inputs!AP42,Inputs!AP44,Inputs!AP46,Inputs!AP47),IF(Inputs!$B$168=Inputs!$B$170,SUM(Inputs!AP69,Inputs!AP72,Inputs!AP74,Inputs!AP76,Inputs!AP77),IF(Inputs!$B$168=Inputs!$B$171,SUM(Inputs!AP84,Inputs!AP87,Inputs!AP89,Inputs!AP91,Inputs!AP92),0))) -> 2342022.479 | AQ11: =IF(Inputs!$B$168=Inputs!$B$169,SUM(Inputs!AQ39,Inputs!AQ42,Inputs!AQ44,Inputs!AQ46,Inputs!AQ47),IF(Inputs!$B$168=Inputs!$B$170,SUM(Inputs!AQ69,Inputs!AQ72,Inputs!AQ74,Inputs!AQ76,Inputs!AQ77),IF(Inputs!$B$168=Inputs!$B$171,SUM(Inputs!AQ84,Inputs!AQ87,Inputs!AQ89,Inputs!AQ91,Inputs!AQ92),0))) -> 2360271.042 | AR11: =IF(Inputs!$B$168=Inputs!$B$169,SUM(Inputs!AR39,Inputs!AR42,Inputs!AR44,Inputs!AR46,Inputs!AR47),IF(Inputs!$B$168=Inputs!$B$170,SUM(Inputs!AR69,Inputs!AR72,Inputs!AR74,Inputs!AR76,Inputs!AR77),IF(Inputs!$B$168=Inputs!$B$171,SUM(Inputs!AR84,Inputs!AR87,Inputs!AR89,Inputs!AR91,Inputs!AR92),0))) -> 2344042.573
A12: Other Capex | E12: =IF(Inputs!$B$168=Inputs!$B$169,Inputs!E48,IF(Inputs!$B$168=Inputs!$B$170,Inputs!E78,IF(Inputs!$B$168=Inputs!$B$171,Inputs!E93,0))) -> 414551.8925 | F12: =IF(Inputs!$B$168=Inputs!$B$169,Inputs!F48,IF(Inputs!$B$168=Inputs!$B$170,Inputs!F78,IF(Inputs!$B$168=Inputs!$B$171,Inputs!F93,0))) -> 72300.80662 | G12: =IF(Inputs!$B$168=Inputs!$B$169,Inputs!G48,IF(Inputs!$B$168=Inputs!$B$170,Inputs!G78,IF(Inputs!$B$168=Inputs!$B$171,Inputs!G93,0))) -> 794208.8935 | H12: =IF(Inputs!$B$168=Inputs!$B$169,Inputs!H48,IF(Inputs!$B$168=Inputs!$B$170,Inputs!H78,IF(Inputs!$B$168=Inputs!$B$171,Inputs!H93,0)))+Inputs!H162 -> 58886.83448 | I12: =IF(Inputs!$B$168=Inputs!$B$169,Inputs!I48,IF(Inputs!$B$168=Inputs!$B$170,Inputs!I78,IF(Inputs!$B$168=Inputs!$B$171,Inputs!I93,0)))+Inputs!I162 -> 58297.96614 | J12: =IF(Inputs!$B$168=Inputs!$B$169,Inputs!J48,IF(Inputs!$B$168=Inputs!$B$170,Inputs!J78,IF(Inputs!$B$168=Inputs!$B$171,Inputs!J93,0)))+Inputs!J162 -> -158656.3484 | K12: =IF(Inputs!$B$168=Inputs!$B$169,Inputs!K48,IF(Inputs!$B$168=Inputs!$B$170,Inputs!K78,IF(Inputs!$B$168=Inputs!$B$171,Inputs!K93,0)))+Inputs!K162 -> 57137.83661 | L12: =IF(Inputs!$B$168=Inputs!$B$169,Inputs!L48,IF(Inputs!$B$168=Inputs!$B$170,Inputs!L78,IF(Inputs!$B$168=Inputs!$B$171,Inputs!L93,0)))+Inputs!L162 -> 56566.45824 | M12: =IF(Inputs!$B$168=Inputs!$B$169,Inputs!M48,IF(Inputs!$B$168=Inputs!$B$170,Inputs!M78,IF(Inputs!$B$168=Inputs!$B$171,Inputs!M93,0)))+Inputs!M162 -> 128685.6201 | N12: =IF(Inputs!$B$168=Inputs!$B$169,Inputs!N48,IF(Inputs!$B$168=Inputs!$B$170,Inputs!N78,IF(Inputs!$B$168=Inputs!$B$171,Inputs!N93,0)))+Inputs!N162 -> 23205.60363 | O12: =IF(Inputs!$B$168=Inputs!$B$169,Inputs!O48,IF(Inputs!$B$168=Inputs!$B$170,Inputs!O78,IF(Inputs!$B$168=Inputs!$B$171,Inputs!O93,0)))+Inputs!O162 -> 22150.80346 | P12: =IF(Inputs!$B$168=Inputs!$B$169,Inputs!P48,IF(Inputs!$B$168=Inputs!$B$170,Inputs!P78,IF(Inputs!$B$168=Inputs!$B$171,Inputs!P93,0))) -> 160607.714 | Q12: =IF(Inputs!$B$168=Inputs!$B$169,Inputs!Q48,IF(Inputs!$B$168=Inputs!$B$170,Inputs!Q78,IF(Inputs!$B$168=Inputs!$B$171,Inputs!Q93,0))) -> 110424.8265 | R12: =IF(Inputs!$B$168=Inputs!$B$169,Inputs!R48,IF(Inputs!$B$168=Inputs!$B$170,Inputs!R78,IF(Inputs!$B$168=Inputs!$B$171,Inputs!R93,0))) -> 109538.7957 | S12: =IF(Inputs!$B$168=Inputs!$B$169,Inputs!S48,IF(Inputs!$B$168=Inputs!$B$170,Inputs!S78,IF(Inputs!$B$168=Inputs!$B$171,Inputs!S93,0))) -> 108877.3915 | T12: =IF(Inputs!$B$168=Inputs!$B$169,Inputs!T48,IF(Inputs!$B$168=Inputs!$B$170,Inputs!T78,IF(Inputs!$B$168=Inputs!$B$171,Inputs!T93,0))) -> 108219.9809 | U12: =IF(Inputs!$B$168=Inputs!$B$169,Inputs!U48,IF(Inputs!$B$168=Inputs!$B$170,Inputs!U78,IF(Inputs!$B$168=Inputs!$B$171,Inputs!U93,0))) -> 107566.5399 | V12: =IF(Inputs!$B$168=Inputs!$B$169,Inputs!V48,IF(Inputs!$B$168=Inputs!$B$170,Inputs!V78,IF(Inputs!$B$168=Inputs!$B$171,Inputs!V93,0))) -> 107566.5399 | W12: =IF(Inputs!$B$168=Inputs!$B$169,Inputs!W48,IF(Inputs!$B$168=Inputs!$B$170,Inputs!W78,IF(Inputs!$B$168=Inputs!$B$171,Inputs!W93,0))) -> 107566.5399 | X12: =IF(Inputs!$B$168=Inputs!$B$169,Inputs!X48,IF(Inputs!$B$168=Inputs!$B$170,Inputs!X78,IF(Inputs!$B$168=Inputs!$B$171,Inputs!X93,0))) -> 107566.5399 | Y12: =IF(Inputs!$B$168=Inputs!$B$169,Inputs!Y48,IF(Inputs!$B$168=Inputs!$B$170,Inputs!Y78,IF(Inputs!$B$168=Inputs!$B$171,Inputs!Y93,0))) -> 107566.5399 | Z12: =IF(Inputs!$B$168=Inputs!$B$169,Inputs!Z48,IF(Inputs!$B$168=Inputs!$B$170,Inputs!Z78,IF(Inputs!$B$168=Inputs!$B$171,Inputs!Z93,0))) -> 107566.5399 | AA12: =IF(Inputs!$B$168=Inputs!$B$169,Inputs!AA48,IF(Inputs!$B$168=Inputs!$B$170,Inputs!AA78,IF(Inputs!$B$168=Inputs!$B$171,Inputs!AA93,0))) -> 107566.5399 | AB12: =IF(Inputs!$B$168=Inputs!$B$169,Inputs!AB48,IF(Inputs!$B$168=Inputs!$B$170,Inputs!AB78,IF(Inputs!$B$168=Inputs!$B$171,Inputs!AB93,0))) -> 107566.5399 | AC12: =IF(Inputs!$B$168=Inputs!$B$169,Inputs!AC48,IF(Inputs!$B$168=Inputs!$B$170,Inputs!AC78,IF(Inputs!$B$168=Inputs!$B$171,Inputs!AC93,0))) -> 107566.5399 | AD12: =IF(Inputs!$B$168=Inputs!$B$169,Inputs!AD48,IF(Inputs!$B$168=Inputs!$B$170,Inputs!AD78,IF(Inputs!$B$168=Inputs!$B$171,Inputs!AD93,0))) -> 107566.5399 | AE12: =IF(Inputs!$B$168=Inputs!$B$169,Inputs!AE48,IF(Inputs!$B$168=Inputs!$B$170,Inputs!AE78,IF(Inputs!$B$168=Inputs!$B$171,Inputs!AE93,0))) -> 107566.5399 | AF12: =IF(Inputs!$B$168=Inputs!$B$169,Inputs!AF48,IF(Inputs!$B$168=Inputs!$B$170,Inputs!AF78,IF(Inputs!$B$168=Inputs!$B$171,Inputs!AF93,0))) -> 107566.5399 | AG12: =IF(Inputs!$B$168=Inputs!$B$169,Inputs!AG48,IF(Inputs!$B$168=Inputs!$B$170,Inputs!AG78,IF(Inputs!$B$168=Inputs!$B$171,Inputs!AG93,0))) -> 107566.5399 | AH12: =IF(Inputs!$B$168=Inputs!$B$169,Inputs!AH48,IF(Inputs!$B$168=Inputs!$B$170,Inputs!AH78,IF(Inputs!$B$168=Inputs!$B$171,Inputs!AH93,0))) -> 107566.5399 | AI12: =IF(Inputs!$B$168=Inputs!$B$169,Inputs!AI48,IF(Inputs!$B$168=Inputs!$B$170,Inputs!AI78,IF(Inputs!$B$168=Inputs!$B$171,Inputs!AI93,0))) -> 107566.5399 | AJ12: =IF(Inputs!$B$168=Inputs!$B$169,Inputs!AJ48,IF(Inputs!$B$168=Inputs!$B$170,Inputs!AJ78,IF(Inputs!$B$168=Inputs!$B$171,Inputs!AJ93,0))) -> 107566.5399 | AK12: =IF(Inputs!$B$168=Inputs!$B$169,Inputs!AK48,IF(Inputs!$B$168=Inputs!$B$170,Inputs!AK78,IF(Inputs!$B$168=Inputs!$B$171,Inputs!AK93,0))) -> 107566.5399 | AL12: =IF(Inputs!$B$168=Inputs!$B$169,Inputs!AL48,IF(Inputs!$B$168=Inputs!$B$170,Inputs!AL78,IF(Inputs!$B$168=Inputs!$B$171,Inputs!AL93,0))) -> 107566.5399 | AM12: =IF(Inputs!$B$168=Inputs!$B$169,Inputs!AM48,IF(Inputs!$B$168=Inputs!$B$170,Inputs!AM78,IF(Inputs!$B$168=Inputs!$B$171,Inputs!AM93,0))) -> 107566.5399 | AN12: =IF(Inputs!$B$168=Inputs!$B$169,Inputs!AN48,IF(Inputs!$B$168=Inputs!$B$170,Inputs!AN78,IF(Inputs!$B$168=Inputs!$B$171,Inputs!AN93,0))) -> 107566.5399 | AO12: =IF(Inputs!$B$168=Inputs!$B$169,Inputs!AO48,IF(Inputs!$B$168=Inputs!$B$170,Inputs!AO78,IF(Inputs!$B$168=Inputs!$B$171,Inputs!AO93,0))) -> 107566.5399 | AP12: =IF(Inputs!$B$168=Inputs!$B$169,Inputs!AP48,IF(Inputs!$B$168=Inputs!$B$170,Inputs!AP78,IF(Inputs!$B$168=Inputs!$B$171,Inputs!AP93,0))) -> 107566.5399 | AQ12: =IF(Inputs!$B$168=Inputs!$B$169,Inputs!AQ48,IF(Inputs!$B$168=Inputs!$B$170,Inputs!AQ78,IF(Inputs!$B$168=Inputs!$B$171,Inputs!AQ93,0))) -> 107566.5399 | AR12: =IF(Inputs!$B$168=Inputs!$B$169,Inputs!AR48,IF(Inputs!$B$168=Inputs!$B$170,Inputs!AR78,IF(Inputs!$B$168=Inputs!$B$171,Inputs!AR93,0))) -> 107566.5399
A13: Capitalised Under-recoveries | P13: =IF(Inputs!B147=Inputs!B148,Inputs!O147,IF(Inputs!B147=Inputs!B149,Inputs!O147,0)) -> 0
A14: Total capex | E14: =SUM(E9:E13) -> 10451105.8 | F14: =SUM(F9:F13) -> 13652729.19 | G14: 13735028.07 | H14: 12114461.22 | I14: 11213747.42 | J14: 12937863.07 | K14: 14963625.47 | L14: 10789865.15 | M14: 6632051.98 | N14: 10249207.6 | O14: 10976816.41 | P14: =SUM(P9:P13) -> 12877415.3 | Q14: 12855794.29 | R14: 13019384.91 | S14: 13236751.85 | T14: 13573781.12 | U14: 13785462.62 | V14: 13934594.21 | W14: 13119244.97 | X14: 13358875.92 | Y14: 10756886.71 | Z14: 7557609.591 | AA14: 7534925.954 | AB14: 7661426.418 | AC14: 7357136.508 | AD14: 7328091.32 | AE14: 7341124.834 | AF14: 7005309.655 | AG14: 6976881.671 | AH14: 6740672.823 | AI14: =SUM(AI9:AI13) -> 6497928.634 | AJ14: =SUM(AJ9:AJ13) -> 6536323.215 | AK14: =SUM(AK9:AK13) -> 6513649.194 | AL14: =SUM(AL9:AL13) -> 6474464.586 | AM14: =SUM(AM9:AM13) -> 6440327.648 | AN14: =SUM(AN9:AN13) -> 6387521.934 | AO14: =SUM(AO9:AO13) -> 6290087.941 | AP14: =SUM(AP9:AP13) -> 6133225.033 | AQ14: =SUM(AQ9:AQ13) -> 6154616.89 | AR14: =SUM(AR9:AR13) -> 6061792.78
A18: Opening DAV (Capex Only) | C18: Mains | D18: =Inputs!D152 -> 1845762.794
C19: Other Capex | D19: =Inputs!D153 -> 449375.3051
D20: =SUM(D17:D19) -> 2295138.099
A22: Depreciation | C22: Useful Life
A23: Opening DAV | C23: 40 | E23: =(($D$18+$D$19)/$C$23) -> 57378.45246 | F23: =(($D$18+$D$19)/$C$23) -> 57378.45246 | G23: =(($D$18+$D$19)/$C$23) -> 57378.45246 | H23: 57378.45246 | I23: 57378.45246 | J23: 57378.45246 | K23: 57378.45246 | L23: 57378.45246 | M23: 57378.45246 | N23: 57378.45246 | O23: 57378.45246 | P23: 57378.45246 | Q23: 57378.45246 | R23: 57378.45246 | S23: 57378.45246 | T23: 57378.45246 | U23: 57378.45246 | V23: 57378.45246 | W23: 57378.45246 | X23: 57378.45246 | Y23: 57378.45246 | Z23: 57378.45246 | AA23: 57378.45246 | AB23: 57378.45246 | AC23: 57378.45246 | AD23: 57378.45246 | AE23: 57378.45246 | AF23: 57378.45246 | AG23: 57378.45246 | AH23: 57378.45246 | AI23: 57378.45246 | AJ23: 57378.45246 | AK23: 57378.45246 | AL23: 57378.45246 | AM23: 57378.45246 | AN23: 57378.45246 | AO23: 57378.45246 | AP23: 57378.45246 | AQ23: 57378.45246 | AR23: 57378.45246
A24: Mains | C24: 40 | E24: =(SUM($D$9:E9)/$C$24) -> 229096.292 | F24: =(SUM($D$9:F9)/$C$24) -> 528554.243 | G24: =(SUM($D$9:G9)/$C$24) -> 762043.0753 | H24: =(SUM($D$9:H9)/$C$24) -> 1054591.423 | I24: =(SUM($D$9:I9)/$C$24) -> 1339874.346 | J24: =(SUM($D$9:J9)/$C$24) -> 1541585.561 | K24: =(SUM($D$9:K9)/$C$24) -> 1700648.554 | L24: =(SUM($D$9:L9)/$C$24) -> 1834433.797 | M24: =(SUM($D$9:M9)/$C$24) -> 2037305.103 | N24: =(SUM($D$9:N9)/$C$24) -> 2198131.211 | O24: =(SUM($D$9:O9)/$C$24) -> 2342515.26 | P24: =(SUM($D$9:P9)/$C$24) -> 2556392.551 | Q24: =(SUM($D$9:Q9)/$C$24) -> 2763436.609 | R24: =(SUM($D$9:R9)/$C$24) -> 2967467.235 | S24: =(SUM($D$9:S9)/$C$24) -> 3170600.3 | T24: =(SUM($D$9:T9)/$C$24) -> 3376184.45 | U24: =(SUM($D$9:U9)/$C$24) -> 3582448.444 | V24: =(SUM($D$9:V9)/$C$24) -> 3793776.757 | W24: =(SUM($D$9:W9)/$C$24) -> 3983510.272 | X24: =(SUM($D$9:X9)/$C$24) -> 4180499.756 | Y24: =(SUM($D$9:Y9)/$C$24) -> 4312329.23 | Z24: =(SUM($D$9:Z9)/$C$24) -> 4363571.961 | AA24: =(SUM($D$9:AA9)/$C$24) -> 4414681.703 | AB24: =(SUM($D$9:AB9)/$C$24) -> 4465600.246 | AC24: =(SUM($D$9:AC9)/$C$24) -> 4516369.153 | AD24: =(SUM($D$9:AD9)/$C$24) -> 4566963.458 | AE24: =(SUM($D$9:AE9)/$C$24) -> 4617589.869 | AF24: =(SUM($D$9:AF9)/$C$24) -> 4668038.678 | AG24: =(SUM($D$9:AG9)/$C$24) -> 4718527.135 | AH24: =(SUM($D$9:AH9)/$C$24) -> 4769047.511 | AI24: =(SUM($D$9:AI9)/$C$24) -> 4819602.933 | AJ24: =(SUM($D$9:AJ9)/$C$24) -> 4870013.415 | AK24: =(SUM($D$9:AK9)/$C$24) -> 4920442.049 | AL24: =(SUM($D$9:AL9)/$C$24) -> 4970907.012 | AM24: =(SUM($D$9:AM9)/$C$24) -> 5021407.098 | AN24: =(SUM($D$9:AN9)/$C$24) -> 5071906.244 | AO24: =(SUM($D$9:AO9)/$C$24) -> 5122432.935 | AP24: =(SUM($D$9:AP9)/$C$24) -> 5172954.239 | AQ24: =(SUM($D$9:AQ9)/$C$24) -> 5223656.718 | AR24: =(SUM($D$9:AR9)/$C$24) -> 5274365.807
A25: Services | C25: 40 | E25: =SUM($D$10:E10)/$C$25 -> 9691.202423 | F25: =SUM($D$10:F10)/$C$25 -> 27061.47278 | G25: =SUM($D$10:G10)/$C$25 -> 69013.43437 | H25: =SUM($D$10:H10)/$C$25 -> 53253.34934 | I25: =SUM($D$10:I10)/$C$25 -> 20437.33442 | J25: =SUM($D$10:J10)/$C$25 -> 111854.9618 | K25: =SUM($D$10:K10)/$C$25 -> 288201.7637 | L25: =SUM($D$10:L10)/$C$25 -> 391202.2404 | M25: =SUM($D$10:M10)/$C$25 -> 323385.9943 | N25: =SUM($D$10:N10)/$C$25 -> 388129.7773 | O25: =SUM($D$10:O10)/$C$25 -> 491401.9612 | P25: =SUM($D$10:P10)/$C$25 -> 566538.7606 | Q25: =SUM($D$10:Q10)/$C$25 -> 647147.6146 | R25: =SUM($D$10:R10)/$C$25 -> 733311.7633 | S25: =SUM($D$10:S10)/$C$25 -> 824239.6217 | T25: =SUM($D$10:T10)/$C$25 -> 919870.5209 | U25: =SUM($D$10:U10)/$C$25 -> 1018404.232 | V25: =SUM($D$10:V10)/$C$25 -> 1115275.267 | W25: =SUM($D$10:W10)/$C$25 -> 1212613.675 | X25: =SUM($D$10:X10)/$C$25 -> 1308287.068 | Y25: =SUM($D$10:Y10)/$C$25 -> 1400373.945 | Z25: =SUM($D$10:Z10)/$C$25 -> 1488121.949 | AA25: =SUM($D$10:AA10)/$C$25 -> 1570812.567 | AB25: =SUM($D$10:AB10)/$C$25 -> 1649192.81 | AC25: =SUM($D$10:AC10)/$C$25 -> 1723516.314 | AD25: =SUM($D$10:AD10)/$C$25 -> 1793650.18 | AE25: =SUM($D$10:AE10)/$C$25 -> 1861586.112 | AF25: =SUM($D$10:AF10)/$C$25 -> 1925379.809 | AG25: =SUM($D$10:AG10)/$C$25 -> 1987092.415 | AH25: =SUM($D$10:AH10)/$C$25 -> 2046635.585 | AI25: =SUM($D$10:AI10)/$C$25 -> 2104183.159 | AJ25: =SUM($D$10:AJ10)/$C$25 -> 2157810.785 | AK25: =SUM($D$10:AK10)/$C$25 -> 2209371.57 | AL25: =SUM($D$10:AL10)/$C$25 -> 2258970.956 | AM25: =SUM($D$10:AM10)/$C$25 -> 2306574.746 | AN25: =SUM($D$10:AN10)/$C$25 -> 2351998.743 | AO25: =SUM($D$10:AO10)/$C$25 -> 2395455.643 | AP25: =SUM($D$10:AP10)/$C$25 -> 2437025.241 | AQ25: =SUM($D$10:AQ10)/$C$25 -> 2478492.244 | AR25: =SUM($D$10:AR10)/$C$25 -> 2518037.746
A26: Meters, PRS, Telemetry | C26: 15 | E26: =SUM($E$11:E11)/$C$26 -> 32336.94213 | F26: =SUM($E$11:F11)/$C$26 -> 92823.57754 | G26: =SUM($E$11:G11)/$C$26 -> 221036.0723 | H26: =SUM($E$11:H11)/$C$26 -> 286638.9977 | I26: =SUM($E$11:I11)/$C$26 -> 357090.54 | J26: =SUM($E$11:J11)/$C$26 -> 448514.9216 | K26: =SUM($E$11:K11)/$C$26 -> 547854.6434 | L26: =SUM($E$11:L11)/$C$26 -> 631979.3051 | M26: =SUM($E$11:M11)/$C$26 -> 705390.2351 | N26: =SUM($E$11:N11)/$C$26 -> 785603.9929 | O26: =SUM($E$11:O11)/$C$26 -> 855498.4122 | P26: =SUM($E$11:P11)/$C$26 -> 932581.3431 | Q26: =SUM($E$11:Q11)/$C$26 -> 1015198.209 | R26: =SUM($E$11:R11)/$C$26 -> 1102001.883 | S26: =SUM(E11:S11)/$C$26 -> 1193031.052 | T26: 1255158.054 | U26: 1293737.276 | V26: 1265461.7 | W26: 1301778.874 | X26: 1334313.617 | Y26: 1355733.644 | Z26: 1382421.498 | AA26: 1436653.174 | AB26: 1522036.14 | AC26: 1591547.282 | AD26: 1681079.393 | AE26: 1770067.435 | AF26: 1842653.424 | AG26: 1914601.258 | AH26: 1972276.387 | AI26: =SUM(U11:AI11)/$C$26 -> 2015561.927 | AJ26: =SUM(V11:AJ11)/$C$26 -> 2067644.892 | AK26: =SUM(W11:AK11)/$C$26 -> 2122808.367 | AL26: =SUM(X11:AL11)/$C$26 -> 2178509.873 | AM26: =SUM(Y11:AM11)/$C$26 -> 2236097.324 | AN26: =SUM(Z11:AN11)/$C$26 -> 2286121.561 | AO26: =SUM(AA11:AO11)/$C$26 -> 2321639.168 | AP26: =SUM(AB11:AP11)/$C$26 -> 2339417.662 | AQ26: =SUM(AC11:AQ11)/$C$26 -> 2337975.169 | AR26: =SUM(AD11:AR11)/$C$26 -> 2344519.774
A27: Other Capex | C27: 5 | E27: =SUM($E$12:E12)/$C$27 -> 82910.37849 | F27: =SUM($E$12:F12)/$C$27 -> 97370.53981 | G27: =SUM($E$12:G12)/$C$27 -> 256212.3185 | H27: =SUM($E$12:H12)/$C$27 -> 267989.6854 | I27: =SUM(E12:I12)/$C$27 -> 279649.2786 | J27: 165007.6305 | K27: 161975.0365 | L27: 14446.54942 | M27: 28406.30655 | N27: 21387.83404 | O27: 57549.26441 | P27: 78243.23989 | Q27: 89014.91354 | R27: 85185.54865 | S27: 102319.9062 | T27: 119533.7417 | U27: 108925.5069 | V27: 108353.8496 | W27: 107959.3984 | X27: 107697.2281 | Y27: 107566.5399 | Z27: 107566.5399 | AA27: 107566.5399 | AB27: 107566.5399 | AC27: 107566.5399 | AD27: 107566.5399 | AE27: 107566.5399 | AF27: 107566.5399 | AG27: 107566.5399 | AH27: 107566.5399 | AI27: =SUM(AE12:AI12)/$C$27 -> 107566.5399 | AJ27: =SUM(AF12:AJ12)/$C$27 -> 107566.5399 | AK27: =SUM(AG12:AK12)/$C$27 -> 107566.5399 | AL27: =SUM(AH12:AL12)/$C$27 -> 107566.5399 | AM27: =SUM(AI12:AM12)/$C$27 -> 107566.5399 | AN27: =SUM(AJ12:AN12)/$C$27 -> 107566.5399 | AO27: =SUM(AK12:AO12)/$C$27 -> 107566.5399 | AP27: =SUM(AL12:AP12)/$C$27 -> 107566.5399 | AQ27: =SUM(AM12:AQ12)/$C$27 -> 107566.5399 | AR27: =SUM(AN12:AR12)/$C$27 -> 107566.5399
A28: Capitalised Under-recoveries | C28: =IF(D28=D29,19,29) -> 29 | D28: 40 yr Rec Period | P28: =P13/C28 -> 0 | Q28: =P28 -> 0 | R28: =Q28 -> 0 | S28: 0 | T28: 0 | U28: 0 | V28: 0 | W28: 0 | X28: 0 | Y28: 0 | Z28: 0 | AA28: 0 | AB28: 0 | AC28: 0 | AD28: 0 | AE28: 0 | AF28: 0 | AG28: 0 | AH28: 0 | AI28: =IF(D28=D29,0,AH28) -> 0 | AJ28: =IF(E28=E29,0,AI28) -> 0 | AK28: =IF(F28=F29,0,AJ28) -> 0 | AL28: 0 | AM28: 0 | AN28: 0 | AO28: 0 | AP28: 0 | AQ28: 0 | AR28: 0
A29: Total depreciation | D29: 30 yr Rec Period | E29: =SUM(E23:E28) -> 411413.2675 | F29: =SUM(F23:F28) -> 803188.2856 | G29: 1365683.353 | H29: 1719851.908 | I29: 2054429.951 | J29: 2324341.527 | K29: 2756058.45 | L29: 2929440.344 | M29: 3151866.091 | N29: 3450631.267 | O29: 3804343.35 | P29: =SUM(P23:P28) -> 4191134.347 | Q29: 4572175.798 | R29: 4945344.882 | S29: =SUM(S23:S28) -> 5347569.332 | T29: 5728125.219 | U29: 6060893.911 | V29: 6340246.026 | W29: 6663240.672 | X29: 6988176.122 | Y29: 7233381.812 | Z29: 7399060.401 | AA29: 7587092.436 | AB29: 7801774.188 | AC29: 7996377.742 | AD29: 8206638.023 | AE29: 8414188.407 | AF29: 8601016.904 | AG29: 8785165.8 | AH29: 8952904.475 | AI29: =SUM(AI23:AI28) -> 9104293.011 | AJ29: =SUM(AJ23:AJ28) -> 9260414.084 | AK29: =SUM(AK23:AK28) -> 9417566.978 | AL29: =SUM(AL23:AL28) -> 9573332.833 | AM29: =SUM(AM23:AM28) -> 9729024.161 | AN29: =SUM(AN23:AN28) -> 9874971.54 | AO29: =SUM(AO23:AO28) -> 10004472.74 | AP29: =SUM(AP23:AP28) -> 10114342.13 | AQ29: =SUM(AQ23:AQ28) -> 10205069.12 | AR29: =SUM(AR23:AR28) -> 10301868.32
D30: 40 yr Rec Period
A31: DAV
A32: Opening balance | E32: =D35 -> 2295138.099 | F32: =E35 -> 12334830.63 | G32: 25184371.54 | H32: 37553716.26 | I32: 47948325.57 | J32: 57107643.03 | K32: 67721164.58 | L32: 79928731.6 | M32: 87789156.41 | N32: 91269342.3 | O32: 98067918.63 | P32: =O35 -> 105240391.7 | Q32: 113926672.6 | R32: 122210291.1 | S32: 130284331.2 | T32: 138173513.7 | U32: 146019169.6 | V32: 153743738.3 | W32: 161338086.5 | X32: 167794090.8 | Y32: 174164790.6 | Z32: 177688295.5 | AA32: 177846844.6 | AB32: 177794678.2 | AC32: 177654330.4 | AD32: 177015089.2 | AE32: 176136542.5 | AF32: 175063478.9 | AG32: 173467771.6 | AH32: 171659487.5 | AI32: =AH35 -> 169447255.9 | AJ32: =AI35 -> 166840891.5 | AK32: =AJ35 -> 164116800.6 | AL32: =AK35 -> 161212882.8 | AM32: =AL35 -> 158114014.6 | AN32: =AM35 -> 154825318.1 | AO32: =AN35 -> 151337868.5 | AP32: =AO35 -> 147623483.7 | AQ32: =AP35 -> 143642366.6 | AR32: =AQ35 -> 139591914.3
A33: Capex | E33: =E14 -> 10451105.8 | F33: =F14 -> 13652729.19 | G33: =G14 -> 13735028.07 | H33: 12114461.22 | I33: 11213747.42 | J33: 12937863.07 | K33: 14963625.47 | L33: =L14 -> 10789865.15 | M33: 6632051.98 | N33: 10249207.6 | O33: 10976816.41 | P33: =P14 -> 12877415.3 | Q33: 12855794.29 | R33: 13019384.91 | S33: 13236751.85 | T33: 13573781.12 | U33: 13785462.62 | V33: 13934594.21 | W33: 13119244.97 | X33: 13358875.92 | Y33: 10756886.71 | Z33: 7557609.591 | AA33: 7534925.954 | AB33: 7661426.418 | AC33: 7357136.508 | AD33: 7328091.32 | AE33: 7341124.834 | AF33: 7005309.655 | AG33: 6976881.671 | AH33: 6740672.823 | AI33: =AI14 -> 6497928.634 | AJ33: 6536323.215 | AK33: 6513649.194 | AL33: 6474464.586 | AM33: 6440327.648 | AN33: 6387521.934 | AO33: 6290087.941 | AP33: 6133225.033 | AQ33: 6154616.89 | AR33: =AR14 -> 6061792.78
A34: Depreciation | E34: =-E29 -> -411413.2675 | F34: =-F29 -> -803188.2856 | G34: =-G29 -> -1365683.353 | H34: -1719851.908 | I34: -2054429.951 | J34: -2324341.527 | K34: -2756058.45 | L34: =-L29 -> -2929440.344 | M34: =-M29 -> -3151866.091 | N34: -3450631.267 | O34: -3804343.35 | P34: =-P29 -> -4191134.347 | Q34: -4572175.798 | R34: -4945344.882 | S34: -5347569.332 | T34: -5728125.219 | U34: -6060893.911 | V34: -6340246.026 | W34: -6663240.672 | X34: -6988176.122 | Y34: -7233381.812 | Z34: -7399060.401 | AA34: -7587092.436 | AB34: -7801774.188 | AC34: -7996377.742 | AD34: -8206638.023 | AE34: -8414188.407 | AF34: -8601016.904 | AG34: -8785165.8 | AH34: -8952904.475 | AI34: =-AI29 -> -9104293.011 | AJ34: -9260414.084 | AK34: -9417566.978 | AL34: -9573332.833 | AM34: -9729024.161 | AN34: -9874971.54 | AO34: -10004472.74 | AP34: -10114342.13 | AQ34: -10205069.12 | AR34: =-AR29 -> -10301868.32
A35: Closing balance | D35: =D20 -> 2295138.099 | E35: =SUM(E32:E34) -> 12334830.63 | F35: =SUM(F32:F34) -> 25184371.54 | G35: 37553716.26 | H35: 47948325.57 | I35: 57107643.03 | J35: 67721164.58 | K35: 79928731.6 | L35: 87789156.41 | M35: 91269342.3 | N35: 98067918.63 | O35: 105240391.7 | P35: =SUM(P32:P34) -> 113926672.6 | Q35: 122210291.1 | R35: 130284331.2 | S35: 138173513.7 | T35: 146019169.6 | U35: 153743738.3 | V35: 161338086.5 | W35: 167794090.8 | X35: 174164790.6 | Y35: 177688295.5 | Z35: 177846844.6 | AA35: 177794678.2 | AB35: 177654330.4 | AC35: 177015089.2 | AD35: 176136542.5 | AE35: 175063478.9 | AF35: 173467771.6 | AG35: 171659487.5 | AH35: 169447255.9 | AI35: =SUM(AI32:AI34) -> 166840891.5 | AJ35: 164116800.6 | AK35: 161212882.8 | AL35: 158114014.6 | AM35: 154825318.1 | AN35: 151337868.5 | AO35: 147623483.7 | AP35: 143642366.6 | AQ35: 139591914.3 | AR35: =SUM(AR32:AR34) -> 135351838.8

Sheet GD17 Pi's Calc - 40 yrs
A1: =242.7/193.4 -> 1.254912099
A2: Firmus Energy P Tariff Model - Calculation of Pi tariffs, Allowed Revenues, PA and TRV | D2: Return
D3: GD17 | E3: =IF(Inputs!B168=Inputs!B169,5.5%,IF(Inputs!B168=Inputs!B170,4.3%,IF(Inputs!B168=Inputs!B171,4.3%,0))) -> 0.043
B4: £2014 | D4: Post GD17 | E4: =E3 -> 0.043
B5: £'000
A6: Real Return pa | D6: =E3 -> 0.043 | E6: =D6 -> 0.043 | F6: =E6 -> 0.043 | G6: =F6 -> 0.043 | H6: =G6 -> 0.043 | I6: =H6 -> 0.043 | J6: =E4 -> 0.043 | K6: =J6 -> 0.043 | L6: =K6 -> 0.043 | M6: 0.043 | N6: 0.043 | O6: 0.043 | P6: 0.043 | Q6: 0.043 | R6: 0.043 | S6: 0.043 | T6: 0.043 | U6: 0.043 | V6: 0.043 | W6: =V6 -> 0.043 | X6: =W6 -> 0.043 | Y6: =X6 -> 0.043 | Z6: =Y6 -> 0.043 | AA6: =Z6 -> 0.043 | AB6: =AA6 -> 0.043 | AC6: =AB6 -> 0.043 | AD6: =AC6 -> 0.043 | AE6: =AD6 -> 0.043 | AF6: =AE6 -> 0.043
A7: Discount Factor (Mid Yr) | B7: 0.5 | C7: 1 | D7: =D8*(1+D6*$B$7) -> 0.9793863854 | E7: =E8*(1+E6*$B$7) -> 0.9390089985 | F7: 0.9002962593 | G7: 0.8631795392 | H7: 0.8275930385 | I7: 0.7934736707 | J7: 0.7607609498 | K7: 0.7293968838 | L7: 0.6993258713 | M7: 0.6704946034 | N7: 0.6428519687 | O7: =O8*(1+O6*$B$7) -> 0.6163489633 | P7: 0.5909386034 | Q7: 0.5665758422 | R7: 0.5432174901 | S7: 0.5208221382 | T7: 0.4993500845 | U7: 0.4787632642 | V7: =V8*(1+V6*$B$7) -> 0.4590251814 | W7: =W8*(1+W6*$B$7) -> 0.440100845 | X7: 0.4219567066 | Y7: =Y8*(1+Y6*$B$7) -> 0.4045606008 | Z7: 0.3878816882 | AA7: 0.371890401 | AB7: 0.3565583902 | AC7: 0.3418584757 | AD7: 0.327764598 | AE7: 0.3142517718 | AF7: =AF8*(1+AF6*$B$7) -> 0.301296042
A8: Discount Factor (Yr End) | C8: 1 | D8: =C8/(1+D6) -> 0.9587727709 | E8: =D8/(1+E6) -> 0.9192452261 | F8: =E8/(1+F6) -> 0.8813472926 | G8: 0.8450117858 | H8: 0.8101742912 | I8: 0.7767730501 | J8: 0.7447488496 | K8: 0.7140449181 | L8: 0.6846068246 | M8: 0.6563823822 | N8: 0.6293215553 | O8: 0.6033763713 | P8: 0.5785008354 | Q8: 0.5546508489 | R8: 0.5317841313 | S8: 0.509860145 | T8: 0.488840024 | U8: 0.4686865043 | V8: 0.4493638584 | W8: 0.4308378316 | X8: 0.4130755816 | Y8: 0.39604562 | Z8: 0.3797177564 | AA8: 0.3640630455 | AB8: 0.3490537349 | AC8: 0.3346632166 | AD8: 0.3208659795 | AE8: 0.3076375642 | AF8: 0.2949545198
C12: 2016 | D12: 2017 | E12: =D12+1 -> 2018 | F12: 2019 | G12: 2020 | H12: 2021 | I12: 2022 | J12: 2023 | K12: 2024 | L12: 2025 | M12: 2026 | N12: 2027 | O12: 2028 | P12: 2029 | Q12: 2030 | R12: 2031 | S12: 2032 | T12: 2033 | U12: 2034 | V12: 2035 | W12: =V12+1 -> 2036 | X12: =W12+1 -> 2037 | Y12: =X12+1 -> 2038 | Z12: =Y12+1 -> 2039 | AA12: =Z12+1 -> 2040 | AB12: =AA12+1 -> 2041 | AC12: =AB12+1 -> 2042 | AD12: =AC12+1 -> 2043 | AE12: =AD12+1 -> 2044 | AF12: 2045
A14: Capex | D14: =IF(Inputs!$B$168=Inputs!$B$169,Inputs!P99/1000,IF(Inputs!$B$168=Inputs!$B$170,Inputs!P101/1000,IF(Inputs!$B$168=Inputs!$B$171,Inputs!P102/1000,0))) -> 12877.4153 | E14: =IF(Inputs!$B$168=Inputs!$B$169,Inputs!Q99/1000,IF(Inputs!$B$168=Inputs!$B$170,Inputs!Q101/1000,IF(Inputs!$B$168=Inputs!$B$171,Inputs!Q102/1000,0))) -> 12855.79429 | F14: =IF(Inputs!$B$168=Inputs!$B$169,Inputs!R99/1000,IF(Inputs!$B$168=Inputs!$B$170,Inputs!R101/1000,IF(Inputs!$B$168=Inputs!$B$171,Inputs!R102/1000,0))) -> 13019.38491 | G14: =IF(Inputs!$B$168=Inputs!$B$169,Inputs!S99/1000,IF(Inputs!$B$168=Inputs!$B$170,Inputs!S101/1000,IF(Inputs!$B$168=Inputs!$B$171,Inputs!S102/1000,0))) -> 13236.75185 | H14: =IF(Inputs!$B$168=Inputs!$B$169,Inputs!T99/1000,IF(Inputs!$B$168=Inputs!$B$170,Inputs!T101/1000,IF(Inputs!$B$168=Inputs!$B$171,Inputs!T102/1000,0))) -> 13573.78112 | I14: =IF(Inputs!$B$168=Inputs!$B$169,Inputs!U99/1000,IF(Inputs!$B$168=Inputs!$B$170,Inputs!U101/1000,IF(Inputs!$B$168=Inputs!$B$171,Inputs!U102/1000,0))) -> 13785.46262 | J14: =IF(Inputs!$B$168=Inputs!$B$169,Inputs!V99/1000,IF(Inputs!$B$168=Inputs!$B$170,Inputs!V101/1000,IF(Inputs!$B$168=Inputs!$B$171,Inputs!V102/1000,0))) -> 13934.59421 | K14: =IF(Inputs!$B$168=Inputs!$B$169,Inputs!W99/1000,IF(Inputs!$B$168=Inputs!$B$170,Inputs!W101/1000,IF(Inputs!$B$168=Inputs!$B$171,Inputs!W102/1000,0))) -> 13119.24497 | L14: =IF(Inputs!$B$168=Inputs!$B$169,Inputs!X99/1000,IF(Inputs!$B$168=Inputs!$B$170,Inputs!X101/1000,IF(Inputs!$B$168=Inputs!$B$171,Inputs!X102/1000,0))) -> 13358.87592 | M14: =IF(Inputs!$B$168=Inputs!$B$169,Inputs!Y99/1000,IF(Inputs!$B$168=Inputs!$B$170,Inputs!Y101/1000,IF(Inputs!$B$168=Inputs!$B$171,Inputs!Y102/1000,0))) -> 10756.88671 | N14: =IF(Inputs!$B$168=Inputs!$B$169,Inputs!Z99/1000,IF(Inputs!$B$168=Inputs!$B$170,Inputs!Z101/1000,IF(Inputs!$B$168=Inputs!$B$171,Inputs!Z102/1000,0))) -> 7557.609591 | O14: =IF(Inputs!$B$168=Inputs!$B$169,Inputs!AA99/1000,IF(Inputs!$B$168=Inputs!$B$170,Inputs!AA101/1000,IF(Inputs!$B$168=Inputs!$B$171,Inputs!AA102/1000,0))) -> 7534.925954 | P14: =IF(Inputs!$B$168=Inputs!$B$169,Inputs!AB99/1000,IF(Inputs!$B$168=Inputs!$B$170,Inputs!AB101/1000,IF(Inputs!$B$168=Inputs!$B$171,Inputs!AB102/1000,0))) -> 7661.426418 | Q14: =IF(Inputs!$B$168=Inputs!$B$169,Inputs!AC99/1000,IF(Inputs!$B$168=Inputs!$B$170,Inputs!AC101/1000,IF(Inputs!$B$168=Inputs!$B$171,Inputs!AC102/1000,0))) -> 7357.136508 | R14: =IF(Inputs!$B$168=Inputs!$B$169,Inputs!AD99/1000,IF(Inputs!$B$168=Inputs!$B$170,Inputs!AD101/1000,IF(Inputs!$B$168=Inputs!$B$171,Inputs!AD102/1000,0))) -> 7328.09132 | S14: =IF(Inputs!$B$168=Inputs!$B$169,Inputs!AE99/1000,IF(Inputs!$B$168=Inputs!$B$170,Inputs!AE101/1000,IF(Inputs!$B$168=Inputs!$B$171,Inputs!AE102/1000,0))) -> 7341.124834 | T14: =IF(Inputs!$B$168=Inputs!$B$169,Inputs!AF99/1000,IF(Inputs!$B$168=Inputs!$B$170,Inputs!AF101/1000,IF(Inputs!$B$168=Inputs!$B$171,Inputs!AF102/1000,0))) -> 7005.309655 | U14: =IF(Inputs!$B$168=Inputs!$B$169,Inputs!AG99/1000,IF(Inputs!$B$168=Inputs!$B$170,Inputs!AG101/1000,IF(Inputs!$B$168=Inputs!$B$171,Inputs!AG102/1000,0))) -> 6976.881671 | V14: =IF(Inputs!$B$168=Inputs!$B$169,Inputs!AH99/1000,IF(Inputs!$B$168=Inputs!$B$170,Inputs!AH101/1000,IF(Inputs!$B$168=Inputs!$B$171,Inputs!AH102/1000,0))) -> 6740.672823 | W14: =IF(Inputs!$B$168=Inputs!$B$169,Inputs!AI99/1000,IF(Inputs!$B$168=Inputs!$B$170,Inputs!AI101/1000,IF(Inputs!$B$168=Inputs!$B$171,Inputs!AI102/1000,0))) -> 6497.928634 | X14: =IF(Inputs!$B$168=Inputs!$B$169,Inputs!AJ99/1000,IF(Inputs!$B$168=Inputs!$B$170,Inputs!AJ101/1000,IF(Inputs!$B$168=Inputs!$B$171,Inputs!AJ102/1000,0))) -> 6536.323215 | Y14: =IF(Inputs!$B$168=Inputs!$B$169,Inputs!AK99/1000,IF(Inputs!$B$168=Inputs!$B$170,Inputs!AK101/1000,IF(Inputs!$B$168=Inputs!$B$171,Inputs!AK102/1000,0))) -> 6513.649194 | Z14: =IF(Inputs!$B$168=Inputs!$B$169,Inputs!AL99/1000,IF(Inputs!$B$168=Inputs!$B$170,Inputs!AL101/1000,IF(Inputs!$B$168=Inputs!$B$171,Inputs!AL102/1000,0))) -> 6474.464586 | AA14: =IF(Inputs!$B$168=Inputs!$B$169,Inputs!AM99/1000,IF(Inputs!$B$168=Inputs!$B$170,Inputs!AM101/1000,IF(Inputs!$B$168=Inputs!$B$171,Inputs!AM102/1000,0))) -> 6440.327648 | AB14: =IF(Inputs!$B$168=Inputs!$B$169,Inputs!AN99/1000,IF(Inputs!$B$168=Inputs!$B$170,Inputs!AN101/1000,IF(Inputs!$B$168=Inputs!$B$171,Inputs!AN102/1000,0))) -> 6387.521934 | AC14: =IF(Inputs!$B$168=Inputs!$B$169,Inputs!AO99/1000,IF(Inputs!$B$168=Inputs!$B$170,Inputs!AO101/1000,IF(Inputs!$B$168=Inputs!$B$171,Inputs!AO102/1000,0))) -> 6290.087941 | AD14: =IF(Inputs!$B$168=Inputs!$B$169,Inputs!AP99/1000,IF(Inputs!$B$168=Inputs!$B$170,Inputs!AP101/1000,IF(Inputs!$B$168=Inputs!$B$171,Inputs!AP102/1000,0))) -> 6133.225033 | AE14: =IF(Inputs!$B$168=Inputs!$B$169,Inputs!AQ99/1000,IF(Inputs!$B$168=Inputs!$B$170,Inputs!AQ101/1000,IF(Inputs!$B$168=Inputs!$B$171,Inputs!AQ102/1000,0))) -> 6154.61689 | AF14: =IF(Inputs!$B$168=Inputs!$B$169,Inputs!AR99/1000,IF(Inputs!$B$168=Inputs!$B$170,Inputs!AR101/1000,IF(Inputs!$B$168=Inputs!$B$171,Inputs!AR102/1000,0))) -> 6061.79278
A15: Opex | D15: =IF(Inputs!$B$168=Inputs!$B$169,Inputs!P106/1000,IF(Inputs!$B$168=Inputs!$B$170,Inputs!P108/1000,IF(Inputs!$B$168=Inputs!$B$171,Inputs!P109/1000,0))) -> 5425.838811 | E15: =IF(Inputs!$B$168=Inputs!$B$169,Inputs!Q106/1000,IF(Inputs!$B$168=Inputs!$B$170,Inputs!Q108/1000,IF(Inputs!$B$168=Inputs!$B$171,Inputs!Q109/1000,0))) -> 5581.342359 | F15: =IF(Inputs!$B$168=Inputs!$B$169,Inputs!R106/1000,IF(Inputs!$B$168=Inputs!$B$170,Inputs!R108/1000,IF(Inputs!$B$168=Inputs!$B$171,Inputs!R109/1000,0))) -> 5688.586716 | G15: =IF(Inputs!$B$168=Inputs!$B$169,Inputs!S106/1000,IF(Inputs!$B$168=Inputs!$B$170,Inputs!S108/1000,IF(Inputs!$B$168=Inputs!$B$171,Inputs!S109/1000,0))) -> 5861.151288 | H15: =IF(Inputs!$B$168=Inputs!$B$169,Inputs!T106/1000,IF(Inputs!$B$168=Inputs!$B$170,Inputs!T108/1000,IF(Inputs!$B$168=Inputs!$B$171,Inputs!T109/1000,0))) -> 6083.403138 | I15: =IF(Inputs!$B$168=Inputs!$B$169,Inputs!U106/1000,IF(Inputs!$B$168=Inputs!$B$170,Inputs!U108/1000,IF(Inputs!$B$168=Inputs!$B$171,Inputs!U109/1000,0))) -> 6311.921987 | J15: =IF(Inputs!$B$168=Inputs!$B$169,Inputs!V106/1000,IF(Inputs!$B$168=Inputs!$B$170,Inputs!V108/1000,IF(Inputs!$B$168=Inputs!$B$171,Inputs!V109/1000,0))) -> 6340.884478 | K15: =IF(Inputs!$B$168=Inputs!$B$169,Inputs!W106/1000,IF(Inputs!$B$168=Inputs!$B$170,Inputs!W108/1000,IF(Inputs!$B$168=Inputs!$B$171,Inputs!W109/1000,0))) -> 6376.567007 | L15: =IF(Inputs!$B$168=Inputs!$B$169,Inputs!X106/1000,IF(Inputs!$B$168=Inputs!$B$170,Inputs!X108/1000,IF(Inputs!$B$168=Inputs!$B$171,Inputs!X109/1000,0))) -> 6406.742848 | M15: =IF(Inputs!$B$168=Inputs!$B$169,Inputs!Y106/1000,IF(Inputs!$B$168=Inputs!$B$170,Inputs!Y108/1000,IF(Inputs!$B$168=Inputs!$B$171,Inputs!Y109/1000,0))) -> 6454.18932 | N15: =IF(Inputs!$B$168=Inputs!$B$169,Inputs!Z106/1000,IF(Inputs!$B$168=Inputs!$B$170,Inputs!Z108/1000,IF(Inputs!$B$168=Inputs!$B$171,Inputs!Z109/1000,0))) -> 6562.682566 | O15: =IF(Inputs!$B$168=Inputs!$B$169,Inputs!AA106/1000,IF(Inputs!$B$168=Inputs!$B$170,Inputs!AA108/1000,IF(Inputs!$B$168=Inputs!$B$171,Inputs!AA109/1000,0))) -> 6720.812992 | P15: =IF(Inputs!$B$168=Inputs!$B$169,Inputs!AB106/1000,IF(Inputs!$B$168=Inputs!$B$170,Inputs!AB108/1000,IF(Inputs!$B$168=Inputs!$B$171,Inputs!AB109/1000,0))) -> 6821.74437 | Q15: =IF(Inputs!$B$168=Inputs!$B$169,Inputs!AC106/1000,IF(Inputs!$B$168=Inputs!$B$170,Inputs!AC108/1000,IF(Inputs!$B$168=Inputs!$B$171,Inputs!AC109/1000,0))) -> 6909.955258 | R15: =IF(Inputs!$B$168=Inputs!$B$169,Inputs!AD106/1000,IF(Inputs!$B$168=Inputs!$B$170,Inputs!AD108/1000,IF(Inputs!$B$168=Inputs!$B$171,Inputs!AD109/1000,0))) -> 6969.047291 | S15: =IF(Inputs!$B$168=Inputs!$B$169,Inputs!AE106/1000,IF(Inputs!$B$168=Inputs!$B$170,Inputs!AE108/1000,IF(Inputs!$B$168=Inputs!$B$171,Inputs!AE109/1000,0))) -> 6905.135752 | T15: =IF(Inputs!$B$168=Inputs!$B$169,Inputs!AF106/1000,IF(Inputs!$B$168=Inputs!$B$170,Inputs!AF108/1000,IF(Inputs!$B$168=Inputs!$B$171,Inputs!AF109/1000,0))) -> 6831.499251 | U15: =IF(Inputs!$B$168=Inputs!$B$169,Inputs!AG106/1000,IF(Inputs!$B$168=Inputs!$B$170,Inputs!AG108/1000,IF(Inputs!$B$168=Inputs!$B$171,Inputs!AG109/1000,0))) -> 6812.954745 | V15: =IF(Inputs!$B$168=Inputs!$B$169,Inputs!AH106/1000,IF(Inputs!$B$168=Inputs!$B$170,Inputs!AH108/1000,IF(Inputs!$B$168=Inputs!$B$171,Inputs!AH109/1000,0))) -> 6868.68926 | W15: =IF(Inputs!$B$168=Inputs!$B$169,Inputs!AI106/1000,IF(Inputs!$B$168=Inputs!$B$170,Inputs!AI108/1000,IF(Inputs!$B$168=Inputs!$B$171,Inputs!AI109/1000,0))) -> 6959.764521 | X15: =IF(Inputs!$B$168=Inputs!$B$169,Inputs!AJ106/1000,IF(Inputs!$B$168=Inputs!$B$170,Inputs!AJ108/1000,IF(Inputs!$B$168=Inputs!$B$171,Inputs!AJ109/1000,0))) -> 7010.655031 | Y15: =IF(Inputs!$B$168=Inputs!$B$169,Inputs!AK106/1000,IF(Inputs!$B$168=Inputs!$B$170,Inputs!AK108/1000,IF(Inputs!$B$168=Inputs!$B$171,Inputs!AK109/1000,0))) -> 7091.675911 | Z15: =IF(Inputs!$B$168=Inputs!$B$169,Inputs!AL106/1000,IF(Inputs!$B$168=Inputs!$B$170,Inputs!AL108/1000,IF(Inputs!$B$168=Inputs!$B$171,Inputs!AL109/1000,0))) -> 7167.438046 | AA15: =IF(Inputs!$B$168=Inputs!$B$169,Inputs!AM106/1000,IF(Inputs!$B$168=Inputs!$B$170,Inputs!AM108/1000,IF(Inputs!$B$168=Inputs!$B$171,Inputs!AM109/1000,0))) -> 7239.109616 | AB15: =IF(Inputs!$B$168=Inputs!$B$169,Inputs!AN106/1000,IF(Inputs!$B$168=Inputs!$B$170,Inputs!AN108/1000,IF(Inputs!$B$168=Inputs!$B$171,Inputs!AN109/1000,0))) -> 7306.751911 | AC15: =IF(Inputs!$B$168=Inputs!$B$169,Inputs!AO106/1000,IF(Inputs!$B$168=Inputs!$B$170,Inputs!AO108/1000,IF(Inputs!$B$168=Inputs!$B$171,Inputs!AO109/1000,0))) -> 7368.206278 | AD15: =IF(Inputs!$B$168=Inputs!$B$169,Inputs!AP106/1000,IF(Inputs!$B$168=Inputs!$B$170,Inputs!AP108/1000,IF(Inputs!$B$168=Inputs!$B$171,Inputs!AP109/1000,0))) -> 7429.114939 | AE15: =IF(Inputs!$B$168=Inputs!$B$169,Inputs!AQ106/1000,IF(Inputs!$B$168=Inputs!$B$170,Inputs!AQ108/1000,IF(Inputs!$B$168=Inputs!$B$171,Inputs!AQ109/1000,0))) -> 7523.117045 | AF15: =IF(Inputs!$B$168=Inputs!$B$169,Inputs!AR106/1000,IF(Inputs!$B$168=Inputs!$B$170,Inputs!AR108/1000,IF(Inputs!$B$168=Inputs!$B$171,Inputs!AR109/1000,0))) -> 7578.51435
A16: Volumes (therms '000) | D16: =SUM(D17:D19) -> 61980.12627 | E16: 63703.11217 | F16: 65882.42511 | G16: 68173.18491 | H16: 70566.07743 | I16: 73042.28605 | J16: 75594.93425 | K16: 78071.54808 | L16: =SUM(L17:L19) -> 80291.15394 | M16: 82716.62337 | N16: 84780.36734 | O16: 86965.69043 | P16: 88796.31519 | Q16: 90757.93099 | R16: 92373.48169 | S16: 94145.33085 | T16: 95595.79157 | U16: 97207.65973 | V16: 98521.73756 | W16: =SUM(W17:W19) -> 100020.3611 | X16: =SUM(X17:X19) -> 101205.9188 | Y16: =SUM(Y17:Y19) -> 102560.3743 | Z16: =SUM(Z17:Z19) -> 103623.7806 | AA16: =SUM(AA17:AA19) -> 104877.7999 | AB16: =SUM(AB17:AB19) -> 105843.2137 | AC16: =SUM(AC17:AC19) -> 107001.4397 | AD16: =SUM(AD17:AD19) -> 107873.0395 | AE16: =SUM(AE17:AE19) -> 108958.2329 | AF16: =SUM(AF17:AF19) -> 109777.4034
A17: P Dom (P1) | D17: =IF(Inputs!$B$168=Inputs!$B$169,Inputs!P113/1000,IF(Inputs!$B$168=Inputs!$B$170,Inputs!P121/1000,IF(Inputs!$B$168=Inputs!$B$171,Inputs!P129/1000,0))) -> 10151.055 | E17: =IF(Inputs!$B$168=Inputs!$B$169,Inputs!Q113/1000,IF(Inputs!$B$168=Inputs!$B$170,Inputs!Q121/1000,IF(Inputs!$B$168=Inputs!$B$171,Inputs!Q129/1000,0))) -> 11645.555 | F17: =IF(Inputs!$B$168=Inputs!$B$169,Inputs!R113/1000,IF(Inputs!$B$168=Inputs!$B$170,Inputs!R121/1000,IF(Inputs!$B$168=Inputs!$B$171,Inputs!R129/1000,0))) -> 13273.055 | G17: =IF(Inputs!$B$168=Inputs!$B$169,Inputs!S113/1000,IF(Inputs!$B$168=Inputs!$B$170,Inputs!S121/1000,IF(Inputs!$B$168=Inputs!$B$171,Inputs!S129/1000,0))) -> 15024.055 | H17: =IF(Inputs!$B$168=Inputs!$B$169,Inputs!T113/1000,IF(Inputs!$B$168=Inputs!$B$170,Inputs!T121/1000,IF(Inputs!$B$168=Inputs!$B$171,Inputs!T129/1000,0))) -> 16889.055 | I17: =IF(Inputs!$B$168=Inputs!$B$169,Inputs!U113/1000,IF(Inputs!$B$168=Inputs!$B$170,Inputs!U121/1000,IF(Inputs!$B$168=Inputs!$B$171,Inputs!U129/1000,0))) -> 18849.055 | J17: =IF(Inputs!$B$168=Inputs!$B$169,Inputs!V113/1000,IF(Inputs!$B$168=Inputs!$B$170,Inputs!V121/1000,IF(Inputs!$B$168=Inputs!$B$171,Inputs!V129/1000,0))) -> 20825.355 | K17: =IF(Inputs!$B$168=Inputs!$B$169,Inputs!W113/1000,IF(Inputs!$B$168=Inputs!$B$170,Inputs!W121/1000,IF(Inputs!$B$168=Inputs!$B$171,Inputs!W129/1000,0))) -> 22751.355 | L17: =IF(Inputs!$B$168=Inputs!$B$169,Inputs!X113/1000,IF(Inputs!$B$168=Inputs!$B$170,Inputs!X121/1000,IF(Inputs!$B$168=Inputs!$B$171,Inputs!X129/1000,0))) -> 24658.355 | M17: =IF(Inputs!$B$168=Inputs!$B$169,Inputs!Y113/1000,IF(Inputs!$B$168=Inputs!$B$170,Inputs!Y121/1000,IF(Inputs!$B$168=Inputs!$B$171,Inputs!Y129/1000,0))) -> 26508.355 | N17: =IF(Inputs!$B$168=Inputs!$B$169,Inputs!Z113/1000,IF(Inputs!$B$168=Inputs!$B$170,Inputs!Z121/1000,IF(Inputs!$B$168=Inputs!$B$171,Inputs!Z129/1000,0))) -> 28282.355 | O17: =IF(Inputs!$B$168=Inputs!$B$169,Inputs!AA113/1000,IF(Inputs!$B$168=Inputs!$B$170,Inputs!AA121/1000,IF(Inputs!$B$168=Inputs!$B$171,Inputs!AA129/1000,0))) -> 29978.73 | P17: =IF(Inputs!$B$168=Inputs!$B$169,Inputs!AB113/1000,IF(Inputs!$B$168=Inputs!$B$170,Inputs!AB121/1000,IF(Inputs!$B$168=Inputs!$B$171,Inputs!AB129/1000,0))) -> 31597.48 | Q17: =IF(Inputs!$B$168=Inputs!$B$169,Inputs!AC113/1000,IF(Inputs!$B$168=Inputs!$B$170,Inputs!AC121/1000,IF(Inputs!$B$168=Inputs!$B$171,Inputs!AC129/1000,0))) -> 33140.23 | R17: =IF(Inputs!$B$168=Inputs!$B$169,Inputs!AD113/1000,IF(Inputs!$B$168=Inputs!$B$170,Inputs!AD121/1000,IF(Inputs!$B$168=Inputs!$B$171,Inputs!AD129/1000,0))) -> 34606.98 | S17: =IF(Inputs!$B$168=Inputs!$B$169,Inputs!AE113/1000,IF(Inputs!$B$168=Inputs!$B$170,Inputs!AE121/1000,IF(Inputs!$B$168=Inputs!$B$171,Inputs!AE129/1000,0))) -> 36016.73 | T17: =IF(Inputs!$B$168=Inputs!$B$169,Inputs!AF113/1000,IF(Inputs!$B$168=Inputs!$B$170,Inputs!AF121/1000,IF(Inputs!$B$168=Inputs!$B$171,Inputs!AF129/1000,0))) -> 37369.48 | U17: =IF(Inputs!$B$168=Inputs!$B$169,Inputs!AG113/1000,IF(Inputs!$B$168=Inputs!$B$170,Inputs!AG121/1000,IF(Inputs!$B$168=Inputs!$B$171,Inputs!AG129/1000,0))) -> 38665.23 | V17: =IF(Inputs!$B$168=Inputs!$B$169,Inputs!AH113/1000,IF(Inputs!$B$168=Inputs!$B$170,Inputs!AH121/1000,IF(Inputs!$B$168=Inputs!$B$171,Inputs!AH129/1000,0))) -> 39922.98 | W17: =IF(Inputs!$B$168=Inputs!$B$169,Inputs!AI113/1000,IF(Inputs!$B$168=Inputs!$B$170,Inputs!AI121/1000,IF(Inputs!$B$168=Inputs!$B$171,Inputs!AI129/1000,0))) -> 41142.73 | X17: =IF(Inputs!$B$168=Inputs!$B$169,Inputs!AJ113/1000,IF(Inputs!$B$168=Inputs!$B$170,Inputs!AJ121/1000,IF(Inputs!$B$168=Inputs!$B$171,Inputs!AJ129/1000,0))) -> 42305.48 | Y17: =IF(Inputs!$B$168=Inputs!$B$169,Inputs!AK113/1000,IF(Inputs!$B$168=Inputs!$B$170,Inputs!AK121/1000,IF(Inputs!$B$168=Inputs!$B$171,Inputs!AK129/1000,0))) -> 43411.23 | Z17: =IF(Inputs!$B$168=Inputs!$B$169,Inputs!AL113/1000,IF(Inputs!$B$168=Inputs!$B$170,Inputs!AL121/1000,IF(Inputs!$B$168=Inputs!$B$171,Inputs!AL129/1000,0))) -> 44478.98 | AA17: =IF(Inputs!$B$168=Inputs!$B$169,Inputs!AM113/1000,IF(Inputs!$B$168=Inputs!$B$170,Inputs!AM121/1000,IF(Inputs!$B$168=Inputs!$B$171,Inputs!AM129/1000,0))) -> 45508.73 | AB17: =IF(Inputs!$B$168=Inputs!$B$169,Inputs!AN113/1000,IF(Inputs!$B$168=Inputs!$B$170,Inputs!AN121/1000,IF(Inputs!$B$168=Inputs!$B$171,Inputs!AN129/1000,0))) -> 46500.48 | AC17: =IF(Inputs!$B$168=Inputs!$B$169,Inputs!AO113/1000,IF(Inputs!$B$168=Inputs!$B$170,Inputs!AO121/1000,IF(Inputs!$B$168=Inputs!$B$171,Inputs!AO129/1000,0))) -> 47454.23 | AD17: =IF(Inputs!$B$168=Inputs!$B$169,Inputs!AP113/1000,IF(Inputs!$B$168=Inputs!$B$170,Inputs!AP121/1000,IF(Inputs!$B$168=Inputs!$B$171,Inputs!AP129/1000,0))) -> 48369.98 | AE17: =IF(Inputs!$B$168=Inputs!$B$169,Inputs!AQ113/1000,IF(Inputs!$B$168=Inputs!$B$170,Inputs!AQ121/1000,IF(Inputs!$B$168=Inputs!$B$171,Inputs!AQ129/1000,0))) -> 49266.73 | AF17: =IF(Inputs!$B$168=Inputs!$B$169,Inputs!AR113/1000,IF(Inputs!$B$168=Inputs!$B$170,Inputs!AR121/1000,IF(Inputs!$B$168=Inputs!$B$171,Inputs!AR129/1000,0))) -> 50144.48
A18: P SME (P2 + P3) | D18: =IF(Inputs!$B$168=Inputs!$B$169,Inputs!P114/1000,IF(Inputs!$B$168=Inputs!$B$170,Inputs!P122/1000,IF(Inputs!$B$168=Inputs!$B$171,Inputs!P130/1000,0))) -> 15793.47844 | E18: =IF(Inputs!$B$168=Inputs!$B$169,Inputs!Q114/1000,IF(Inputs!$B$168=Inputs!$B$170,Inputs!Q122/1000,IF(Inputs!$B$168=Inputs!$B$171,Inputs!Q130/1000,0))) -> 16357.53258 | F18: =IF(Inputs!$B$168=Inputs!$B$169,Inputs!R114/1000,IF(Inputs!$B$168=Inputs!$B$170,Inputs!R122/1000,IF(Inputs!$B$168=Inputs!$B$171,Inputs!R130/1000,0))) -> 16909.34553 | G18: =IF(Inputs!$B$168=Inputs!$B$169,Inputs!S114/1000,IF(Inputs!$B$168=Inputs!$B$170,Inputs!S122/1000,IF(Inputs!$B$168=Inputs!$B$171,Inputs!S130/1000,0))) -> 17449.10532 | H18: =IF(Inputs!$B$168=Inputs!$B$169,Inputs!T114/1000,IF(Inputs!$B$168=Inputs!$B$170,Inputs!T122/1000,IF(Inputs!$B$168=Inputs!$B$171,Inputs!T130/1000,0))) -> 17976.99784 | I18: =IF(Inputs!$B$168=Inputs!$B$169,Inputs!U114/1000,IF(Inputs!$B$168=Inputs!$B$170,Inputs!U122/1000,IF(Inputs!$B$168=Inputs!$B$171,Inputs!U130/1000,0))) -> 18493.20646 | J18: =IF(Inputs!$B$168=Inputs!$B$169,Inputs!V114/1000,IF(Inputs!$B$168=Inputs!$B$170,Inputs!V122/1000,IF(Inputs!$B$168=Inputs!$B$171,Inputs!V130/1000,0))) -> 19069.55467 | K18: =IF(Inputs!$B$168=Inputs!$B$169,Inputs!W114/1000,IF(Inputs!$B$168=Inputs!$B$170,Inputs!W122/1000,IF(Inputs!$B$168=Inputs!$B$171,Inputs!W130/1000,0))) -> 19620.16849 | L18: =IF(Inputs!$B$168=Inputs!$B$169,Inputs!X114/1000,IF(Inputs!$B$168=Inputs!$B$170,Inputs!X122/1000,IF(Inputs!$B$168=Inputs!$B$171,Inputs!X130/1000,0))) -> 19932.77436 | M18: =IF(Inputs!$B$168=Inputs!$B$169,Inputs!Y114/1000,IF(Inputs!$B$168=Inputs!$B$170,Inputs!Y122/1000,IF(Inputs!$B$168=Inputs!$B$171,Inputs!Y130/1000,0))) -> 20508.24379 | N18: =IF(Inputs!$B$168=Inputs!$B$169,Inputs!Z114/1000,IF(Inputs!$B$168=Inputs!$B$170,Inputs!Z122/1000,IF(Inputs!$B$168=Inputs!$B$171,Inputs!Z130/1000,0))) -> 20797.98775 | O18: =IF(Inputs!$B$168=Inputs!$B$169,Inputs!AA114/1000,IF(Inputs!$B$168=Inputs!$B$170,Inputs!AA122/1000,IF(Inputs!$B$168=Inputs!$B$171,Inputs!AA130/1000,0))) -> 21286.93584 | P18: =IF(Inputs!$B$168=Inputs!$B$169,Inputs!AB114/1000,IF(Inputs!$B$168=Inputs!$B$170,Inputs!AB122/1000,IF(Inputs!$B$168=Inputs!$B$171,Inputs!AB130/1000,0))) -> 21498.8106 | Q18: =IF(Inputs!$B$168=Inputs!$B$169,Inputs!AC114/1000,IF(Inputs!$B$168=Inputs!$B$170,Inputs!AC122/1000,IF(Inputs!$B$168=Inputs!$B$171,Inputs!AC130/1000,0))) -> 21917.6764 | R18: =IF(Inputs!$B$168=Inputs!$B$169,Inputs!AD114/1000,IF(Inputs!$B$168=Inputs!$B$170,Inputs!AD122/1000,IF(Inputs!$B$168=Inputs!$B$171,Inputs!AD130/1000,0))) -> 22066.47711 | S18: =IF(Inputs!$B$168=Inputs!$B$169,Inputs!AE114/1000,IF(Inputs!$B$168=Inputs!$B$170,Inputs!AE122/1000,IF(Inputs!$B$168=Inputs!$B$171,Inputs!AE130/1000,0))) -> 22428.57626 | T18: =IF(Inputs!$B$168=Inputs!$B$169,Inputs!AF114/1000,IF(Inputs!$B$168=Inputs!$B$170,Inputs!AF122/1000,IF(Inputs!$B$168=Inputs!$B$171,Inputs!AF130/1000,0))) -> 22526.28698 | U18: =IF(Inputs!$B$168=Inputs!$B$169,Inputs!AG114/1000,IF(Inputs!$B$168=Inputs!$B$170,Inputs!AG122/1000,IF(Inputs!$B$168=Inputs!$B$171,Inputs!AG130/1000,0))) -> 22842.40515 | V18: =IF(Inputs!$B$168=Inputs!$B$169,Inputs!AH114/1000,IF(Inputs!$B$168=Inputs!$B$170,Inputs!AH122/1000,IF(Inputs!$B$168=Inputs!$B$171,Inputs!AH130/1000,0))) -> 22898.73297 | W18: =IF(Inputs!$B$168=Inputs!$B$169,Inputs!AI114/1000,IF(Inputs!$B$168=Inputs!$B$170,Inputs!AI122/1000,IF(Inputs!$B$168=Inputs!$B$171,Inputs!AI130/1000,0))) -> 23177.60654 | X18: =IF(Inputs!$B$168=Inputs!$B$169,Inputs!AJ114/1000,IF(Inputs!$B$168=Inputs!$B$170,Inputs!AJ122/1000,IF(Inputs!$B$168=Inputs!$B$171,Inputs!AJ130/1000,0))) -> 23200.41423 | Y18: =IF(Inputs!$B$168=Inputs!$B$169,Inputs!AK114/1000,IF(Inputs!$B$168=Inputs!$B$170,Inputs!AK122/1000,IF(Inputs!$B$168=Inputs!$B$171,Inputs!AK130/1000,0))) -> 23449.11967 | Z18: =IF(Inputs!$B$168=Inputs!$B$169,Inputs!AL114/1000,IF(Inputs!$B$168=Inputs!$B$170,Inputs!AL122/1000,IF(Inputs!$B$168=Inputs!$B$171,Inputs!AL130/1000,0))) -> 23444.77605 | AA18: =IF(Inputs!$B$168=Inputs!$B$169,Inputs!AM114/1000,IF(Inputs!$B$168=Inputs!$B$170,Inputs!AM122/1000,IF(Inputs!$B$168=Inputs!$B$171,Inputs!AM130/1000,0))) -> 23669.04531 | AB18: =IF(Inputs!$B$168=Inputs!$B$169,Inputs!AN114/1000,IF(Inputs!$B$168=Inputs!$B$170,Inputs!AN122/1000,IF(Inputs!$B$168=Inputs!$B$171,Inputs!AN130/1000,0))) -> 23642.70912 | AC18: =IF(Inputs!$B$168=Inputs!$B$169,Inputs!AO114/1000,IF(Inputs!$B$168=Inputs!$B$170,Inputs!AO122/1000,IF(Inputs!$B$168=Inputs!$B$171,Inputs!AO130/1000,0))) -> 23847.18507 | AD18: =IF(Inputs!$B$168=Inputs!$B$169,Inputs!AP114/1000,IF(Inputs!$B$168=Inputs!$B$170,Inputs!AP122/1000,IF(Inputs!$B$168=Inputs!$B$171,Inputs!AP130/1000,0))) -> 23803.03491 | AE18: =IF(Inputs!$B$168=Inputs!$B$169,Inputs!AQ114/1000,IF(Inputs!$B$168=Inputs!$B$170,Inputs!AQ122/1000,IF(Inputs!$B$168=Inputs!$B$171,Inputs!AQ130/1000,0))) -> 23991.47828 | AF18: =IF(Inputs!$B$168=Inputs!$B$169,Inputs!AR114/1000,IF(Inputs!$B$168=Inputs!$B$170,Inputs!AR122/1000,IF(Inputs!$B$168=Inputs!$B$171,Inputs!AR130/1000,0))) -> 23932.8988
A19: P Contract (P4, P5 + P6) | D19: =IF(Inputs!$B$168=Inputs!$B$169,Inputs!P116/1000,IF(Inputs!$B$168=Inputs!$B$170,Inputs!P124/1000,IF(Inputs!$B$168=Inputs!$B$171,Inputs!P132/1000,0))) -> 36035.59283 | E19: =IF(Inputs!$B$168=Inputs!$B$169,Inputs!Q116/1000,IF(Inputs!$B$168=Inputs!$B$170,Inputs!Q124/1000,IF(Inputs!$B$168=Inputs!$B$171,Inputs!Q132/1000,0))) -> 35700.02459 | F19: =IF(Inputs!$B$168=Inputs!$B$169,Inputs!R116/1000,IF(Inputs!$B$168=Inputs!$B$170,Inputs!R124/1000,IF(Inputs!$B$168=Inputs!$B$171,Inputs!R132/1000,0))) -> 35700.02459 | G19: =IF(Inputs!$B$168=Inputs!$B$169,Inputs!S116/1000,IF(Inputs!$B$168=Inputs!$B$170,Inputs!S124/1000,IF(Inputs!$B$168=Inputs!$B$171,Inputs!S132/1000,0))) -> 35700.02459 | H19: =IF(Inputs!$B$168=Inputs!$B$169,Inputs!T116/1000,IF(Inputs!$B$168=Inputs!$B$170,Inputs!T124/1000,IF(Inputs!$B$168=Inputs!$B$171,Inputs!T132/1000,0))) -> 35700.02459 | I19: =IF(Inputs!$B$168=Inputs!$B$169,Inputs!U116/1000,IF(Inputs!$B$168=Inputs!$B$170,Inputs!U124/1000,IF(Inputs!$B$168=Inputs!$B$171,Inputs!U132/1000,0))) -> 35700.02459 | J19: =IF(Inputs!$B$168=Inputs!$B$169,Inputs!V116/1000,IF(Inputs!$B$168=Inputs!$B$170,Inputs!V124/1000,IF(Inputs!$B$168=Inputs!$B$171,Inputs!V132/1000,0))) -> 35700.02459 | K19: =IF(Inputs!$B$168=Inputs!$B$169,Inputs!W116/1000,IF(Inputs!$B$168=Inputs!$B$170,Inputs!W124/1000,IF(Inputs!$B$168=Inputs!$B$171,Inputs!W132/1000,0))) -> 35700.02459 | L19: =IF(Inputs!$B$168=Inputs!$B$169,Inputs!X116/1000,IF(Inputs!$B$168=Inputs!$B$170,Inputs!X124/1000,IF(Inputs!$B$168=Inputs!$B$171,Inputs!X132/1000,0))) -> 35700.02459 | M19: =IF(Inputs!$B$168=Inputs!$B$169,Inputs!Y116/1000,IF(Inputs!$B$168=Inputs!$B$170,Inputs!Y124/1000,IF(Inputs!$B$168=Inputs!$B$171,Inputs!Y132/1000,0))) -> 35700.02459 | N19: =IF(Inputs!$B$168=Inputs!$B$169,Inputs!Z116/1000,IF(Inputs!$B$168=Inputs!$B$170,Inputs!Z124/1000,IF(Inputs!$B$168=Inputs!$B$171,Inputs!Z132/1000,0))) -> 35700.02459 | O19: =IF(Inputs!$B$168=Inputs!$B$169,Inputs!AA116/1000,IF(Inputs!$B$168=Inputs!$B$170,Inputs!AA124/1000,IF(Inputs!$B$168=Inputs!$B$171,Inputs!AA132/1000,0))) -> 35700.02459 | P19: =IF(Inputs!$B$168=Inputs!$B$169,Inputs!AB116/1000,IF(Inputs!$B$168=Inputs!$B$170,Inputs!AB124/1000,IF(Inputs!$B$168=Inputs!$B$171,Inputs!AB132/1000,0))) -> 35700.02459 | Q19: =IF(Inputs!$B$168=Inputs!$B$169,Inputs!AC116/1000,IF(Inputs!$B$168=Inputs!$B$170,Inputs!AC124/1000,IF(Inputs!$B$168=Inputs!$B$171,Inputs!AC132/1000,0))) -> 35700.02459 | R19: =IF(Inputs!$B$168=Inputs!$B$169,Inputs!AD116/1000,IF(Inputs!$B$168=Inputs!$B$170,Inputs!AD124/1000,IF(Inputs!$B$168=Inputs!$B$171,Inputs!AD132/1000,0))) -> 35700.02459 | S19: =IF(Inputs!$B$168=Inputs!$B$169,Inputs!AE116/1000,IF(Inputs!$B$168=Inputs!$B$170,Inputs!AE124/1000,IF(Inputs!$B$168=Inputs!$B$171,Inputs!AE132/1000,0))) -> 35700.02459 | T19: =IF(Inputs!$B$168=Inputs!$B$169,Inputs!AF116/1000,IF(Inputs!$B$168=Inputs!$B$170,Inputs!AF124/1000,IF(Inputs!$B$168=Inputs!$B$171,Inputs!AF132/1000,0))) -> 35700.02459 | U19: =IF(Inputs!$B$168=Inputs!$B$169,Inputs!AG116/1000,IF(Inputs!$B$168=Inputs!$B$170,Inputs!AG124/1000,IF(Inputs!$B$168=Inputs!$B$171,Inputs!AG132/1000,0))) -> 35700.02459 | V19: =IF(Inputs!$B$168=Inputs!$B$169,Inputs!AH116/1000,IF(Inputs!$B$168=Inputs!$B$170,Inputs!AH124/1000,IF(Inputs!$B$168=Inputs!$B$171,Inputs!AH132/1000,0))) -> 35700.02459 | W19: =IF(Inputs!$B$168=Inputs!$B$169,Inputs!AI116/1000,IF(Inputs!$B$168=Inputs!$B$170,Inputs!AI124/1000,IF(Inputs!$B$168=Inputs!$B$171,Inputs!AI132/1000,0))) -> 35700.02459 | X19: =IF(Inputs!$B$168=Inputs!$B$169,Inputs!AJ116/1000,IF(Inputs!$B$168=Inputs!$B$170,Inputs!AJ124/1000,IF(Inputs!$B$168=Inputs!$B$171,Inputs!AJ132/1000,0))) -> 35700.02459 | Y19: =IF(Inputs!$B$168=Inputs!$B$169,Inputs!AK116/1000,IF(Inputs!$B$168=Inputs!$B$170,Inputs!AK124/1000,IF(Inputs!$B$168=Inputs!$B$171,Inputs!AK132/1000,0))) -> 35700.02459 | Z19: =IF(Inputs!$B$168=Inputs!$B$169,Inputs!AL116/1000,IF(Inputs!$B$168=Inputs!$B$170,Inputs!AL124/1000,IF(Inputs!$B$168=Inputs!$B$171,Inputs!AL132/1000,0))) -> 35700.02459 | AA19: =IF(Inputs!$B$168=Inputs!$B$169,Inputs!AM116/1000,IF(Inputs!$B$168=Inputs!$B$170,Inputs!AM124/1000,IF(Inputs!$B$168=Inputs!$B$171,Inputs!AM132/1000,0))) -> 35700.02459 | AB19: =IF(Inputs!$B$168=Inputs!$B$169,Inputs!AN116/1000,IF(Inputs!$B$168=Inputs!$B$170,Inputs!AN124/1000,IF(Inputs!$B$168=Inputs!$B$171,Inputs!AN132/1000,0))) -> 35700.02459 | AC19: =IF(Inputs!$B$168=Inputs!$B$169,Inputs!AO116/1000,IF(Inputs!$B$168=Inputs!$B$170,Inputs!AO124/1000,IF(Inputs!$B$168=Inputs!$B$171,Inputs!AO132/1000,0))) -> 35700.02459 | AD19: =IF(Inputs!$B$168=Inputs!$B$169,Inputs!AP116/1000,IF(Inputs!$B$168=Inputs!$B$170,Inputs!AP124/1000,IF(Inputs!$B$168=Inputs!$B$171,Inputs!AP132/1000,0))) -> 35700.02459 | AE19: =IF(Inputs!$B$168=Inputs!$B$169,Inputs!AQ116/1000,IF(Inputs!$B$168=Inputs!$B$170,Inputs!AQ124/1000,IF(Inputs!$B$168=Inputs!$B$171,Inputs!AQ132/1000,0))) -> 35700.02459 | AF19: =IF(Inputs!$B$168=Inputs!$B$169,Inputs!AR116/1000,IF(Inputs!$B$168=Inputs!$B$170,Inputs!AR124/1000,IF(Inputs!$B$168=Inputs!$B$171,Inputs!AR132/1000,0))) -> 35700.02459
A20: £/therm | D20: =D21/Inputs!M2*Inputs!M1 -> 0.3585668813
A21: P Dom (P1) | D21: 0.3564781422 | E21: =D21 -> 0.3564781422 | F21: =E21 -> 0.3564781422 | G21: 0.3564781422 | H21: 0.3564781422 | I21: 0.3564781422 | J21: 0.3564781422 | K21: 0.3564781422 | L21: 0.3564781422 | M21: 0.3564781422 | N21: 0.3564781422 | O21: 0.3564781422 | P21: 0.3564781422 | Q21: 0.3564781422 | R21: 0.3564781422 | S21: 0.3564781422 | T21: 0.3564781422 | U21: 0.3564781422 | V21: 0.3564781422 | W21: =V21 -> 0.3564781422 | X21: =W21 -> 0.3564781422 | Y21: =X21 -> 0.3564781422 | Z21: =Y21 -> 0.3564781422 | AA21: =Z21 -> 0.3564781422 | AB21: =AA21 -> 0.3564781422 | AC21: =AB21 -> 0.3564781422 | AD21: =AC21 -> 0.3564781422 | AE21: =AD21 -> 0.3564781422 | AF21: =AE21 -> 0.3564781422
A22: P SME (P2 + P3) | C22: 0.6813431126 | D22: =$D$21*C22 -> 0.242883927 | E22: =D22 -> 0.242883927 | F22: 0.242883927 | G22: 0.242883927 | H22: 0.242883927 | I22: 0.242883927 | J22: 0.242883927 | K22: 0.242883927 | L22: 0.242883927 | M22: 0.242883927 | N22: 0.242883927 | O22: 0.242883927 | P22: 0.242883927 | Q22: 0.242883927 | R22: 0.242883927 | S22: 0.242883927 | T22: 0.242883927 | U22: 0.242883927 | V22: 0.242883927 | W22: 0.242883927 | X22: 0.242883927 | Y22: 0.242883927 | Z22: 0.242883927 | AA22: 0.242883927 | AB22: 0.242883927 | AC22: 0.242883927 | AD22: 0.242883927 | AE22: 0.242883927 | AF22: =AE22 -> 0.242883927
A23: P Contract (P4, P5 + P6) | C23: 0.5900817098 | D23: =$D$21*C23 -> 0.2103512316 | E23: 0.2103512316 | F23: 0.2103512316 | G23: 0.2103512316 | H23: 0.2103512316 | I23: 0.2103512316 | J23: 0.2103512316 | K23: 0.2103512316 | L23: 0.2103512316 | M23: 0.2103512316 | N23: 0.2103512316 | O23: 0.2103512316 | P23: 0.2103512316 | Q23: 0.2103512316 | R23: 0.2103512316 | S23: 0.2103512316 | T23: 0.2103512316 | U23: 0.2103512316 | V23: 0.2103512316 | W23: 0.2103512316 | X23: 0.2103512316 | Y23: 0.2103512316 | Z23: 0.2103512316 | AA23: 0.2103512316 | AB23: 0.2103512316 | AC23: 0.2103512316 | AD23: 0.2103512316 | AE23: 0.2103512316 | AF23: 0.2103512316
A25: Conditions 4.6 and 4.6.6 Establishing Best Available Revenue Per Unit and Calculating Cashflow
A27: Allowed Revenue | D27: =SUMPRODUCT(D21:D23,D17:D19) -> 15034.74263 | E27: =SUMPRODUCT(E21:E23,E17:E19) -> 15633.9117 | F27: 16348.10637 | G27: 17103.39858 | H27: 17896.44692 | I27: 18720.52286 | J27: 19565.01632 | K27: 20385.32847 | L27: 21141.05923 | M27: 21940.31607 | N27: 22643.08245 | O27: 23366.56069 | P27: =SUMPRODUCT(P21:P23,P17:P19) -> 23995.07065 | Q27: 24646.76308 | R27: 25205.76869 | S27: 25796.26182 | T27: 26302.21999 | U27: 26840.90656 | V27: 27302.94807 | W27: =SUMPRODUCT(W21:W23,W17:W19) -> 27805.49619 | X27: 28225.53077 | Y27: 28680.11303 | Z27: 29059.68757 | AA27: 29481.24234 | AB27: 29828.3829 | AC27: 30218.03785 | AD27: 30533.75934 | AE27: 30899.20098 | AF27: =SUMPRODUCT(AF21:AF23,AF17:AF19) -> 31197.87166
A28: Capex | D28: =-D14 -> -12877.4153 | E28: =-E14 -> -12855.79429 | F28: -13019.38491 | G28: -13236.75185 | H28: -13573.78112 | I28: -13785.46262 | J28: -13934.59421 | K28: -13119.24497 | L28: -13358.87592 | M28: -10756.88671 | N28: -7557.609591 | O28: -7534.925954 | P28: -7661.426418 | Q28: -7357.136508 | R28: -7328.09132 | S28: -7341.124834 | T28: -7005.309655 | U28: -6976.881671 | V28: -6740.672823 | W28: =-W14 -> -6497.928634 | X28: -6536.323215 | Y28: -6513.649194 | Z28: -6474.464586 | AA28: -6440.327648 | AB28: -6387.521934 | AC28: -6290.087941 | AD28: -6133.225033 | AE28: -6154.61689 | AF28: =-AF14 -> -6061.79278
A29: Opex | D29: -5425.838811 | E29: -5581.342359 | F29: -5688.586716 | G29: -5861.151288 | H29: -6083.403138 | I29: -6311.921987 | J29: -6340.884478 | K29: -6376.567007 | L29: -6406.742848 | M29: -6454.18932 | N29: -6562.682566 | O29: -6720.812992 | P29: -6821.74437 | Q29: -6909.955258 | R29: -6969.047291 | S29: -6905.135752 | T29: -6831.499251 | U29: -6812.954745 | V29: -6868.68926 | W29: =-W15 -> -6959.764521 | X29: -7010.655031 | Y29: -7091.675911 | Z29: -7167.438046 | AA29: -7239.109616 | AB29: -7306.751911 | AC29: -7368.206278 | AD29: -7429.114939 | AE29: -7523.117045 | AF29: =-AF15 -> -7578.51435
A31: Cashflows | D31: =SUM(D27:D30) -> -3268.511485 | E31: =SUM(E27:E30) -> -2803.224949 | F31: =SUM(F27:F30) -> -2359.865252 | G31: -1994.50456 | H31: -1760.737338 | I31: -1376.861748 | J31: -710.4623664 | K31: 889.516502 | L31: 1375.440468 | M31: 4729.240037 | N31: 8522.790288 | O31: 9110.82174 | P31: 9511.899864 | Q31: 10379.67131 | R31: 10908.63008 | S31: 11550.00123 | T31: 12465.41108 | U31: 13051.07015 | V31: 13693.58599 | W31: =SUM(W27:W30) -> 14347.80303 | X31: 14678.55252 | Y31: 15074.78793 | Z31: 15417.78494 | AA31: 15801.80507 | AB31: 16134.10905 | AC31: 16559.74363 | AD31: 16971.41937 | AE31: 17221.46705 | AF31: =SUM(AF27:AF30) -> 17557.56452
A35: Discounted Cashflow | C35: =SUM(D35:AF35) -> 103450.0079 | D35: =D31*D7 -> -3201.135649 | E35: =E31*E7 -> -2632.253452 | F35: -2124.577859 | G35: -1721.615527 | H35: -1457.173964 | I35: -1092.503545 | J35: -540.4920247 | K35: 648.8105647 | L35: 961.8811036 | M35: 3170.929923 | N35: 5478.892516 | O35: 5615.445534 | P35: =P31*P7 -> 5620.948821 | Q35: 5880.871015 | R35: 5925.758653 | S35: 6015.496337 | T35: 6224.604076 | U35: 6248.372944 | V35: 6285.70079 | W35: =W31*W7 -> 6314.48024 | X35: 6193.713681 | Y35: 6098.66526 | Z35: 5980.27645 | AA35: 5876.539624 | AB35: 5752.751951 | AC35: 5661.088715 | AD35: 5562.630447 | AE35: 5411.876533 | AF35: =AF31*AF7 -> 5290.024699
A39: Closing DAV | D39: =DAV!P35/1000 -> 113926.6726 | E39: =DAV!Q35/1000 -> 122210.2911 | F39: =DAV!R35/1000 -> 130284.3312 | G39: =DAV!S35/1000 -> 138173.5137 | H39: =DAV!T35/1000 -> 146019.1696 | I39: =DAV!U35/1000 -> 153743.7383 | J39: =DAV!V35/1000 -> 161338.0865 | K39: =DAV!W35/1000 -> 167794.0908 | L39: =DAV!X35/1000 -> 174164.7906 | M39: =DAV!Y35/1000 -> 177688.2955 | N39: =DAV!Z35/1000 -> 177846.8446 | O39: =DAV!AA35/1000 -> 177794.6782 | P39: =DAV!AB35/1000 -> 177654.3304 | Q39: =DAV!AC35/1000 -> 177015.0892 | R39: =DAV!AD35/1000 -> 176136.5425 | S39: =DAV!AE35/1000 -> 175063.4789 | T39: =DAV!AF35/1000 -> 173467.7716 | U39: =DAV!AG35/1000 -> 171659.4875 | V39: =DAV!AH35/1000 -> 169447.2559 | W39: =DAV!AI35/1000 -> 166840.8915 | X39: =DAV!AJ35/1000 -> 164116.8006 | Y39: =DAV!AK35/1000 -> 161212.8828 | Z39: =DAV!AL35/1000 -> 158114.0146 | AA39: =DAV!AM35/1000 -> 154825.3181 | AB39: =DAV!AN35/1000 -> 151337.8685 | AC39: =DAV!AO35/1000 -> 147623.4837 | AD39: =DAV!AP35/1000 -> 143642.3666 | AE39: =DAV!AQ35/1000 -> 139591.9143 | AF39: =DAV!AR35/1000 -> 135351.8388
A43: TRV | C43: =-C59 -> -143372.6445
A44: Discounted DAV2045 | C44: =AF39*AF8 -> 39922.63662
A45: Backsolve to 0 by running Macro Ctrl + q | C45: =SUM(C35:C44) -> 0
A49: Condition 4.6.8 Calculating TRV
B51: Total Regulatory Value (TRV) | I51: =I61+I63 -> 200318.3613 | N51: =N61+N63 -> 231808.1769 | S51: =S61+S63 -> 229128.2485 | X51: =X61+X63 -> 207120.6678 | AC51: =AC61+AC63 -> 167891.6759 | AF51: =AF61+AF63 -> 135351.8388
A55: Condition 4.6.9 Calculating Profile Adjustment
I56: x | N56: x | S56: x | X56: x | AC56: x | AF56: x
B57: Adjusted Cashflows | D57: =D31*(1+$I$6*$B$7)*(1+$I$6)^($I$12-D12) -> -4121.069402 | E57: =E31*(1+$I$6*$B$7)*(1+$I$6)^($I$12-E12) -> -3388.70337 | F57: =F31*(1+$I$6*$B$7)*(1+$I$6)^($I$12-F12) -> -2735.13333 | G57: =G31*(1+$I$6*$B$7)*(1+$I$6)^($I$12-G12) -> -2216.368767 | H57: =H31*(1+$I$6*$B$7)*(1+$I$6)^($I$12-H12) -> -1875.932698 | I57: =I31*(1+$I$6*$B$7)*(1+$I$6)^($I$12-I12) -> -1406.464276 | J57: =J31*(1+$N$6*$B$7)*(1+$N$6)^($N$12-J12) -> -858.8487398 | K57: =K31*(1+$N$6*$B$7)*(1+$N$6)^($N$12-K12) -> 1030.968285 | L57: =L31*(1+$N$6*$B$7)*(1+$N$6)^($N$12-L12) -> 1528.441375 | M57: =M31*(1+$N$6*$B$7)*(1+$N$6)^($N$12-M12) -> 5038.648202 | N57: =N31*(1+$N$6*$B$7)*(1+$N$6)^($N$12-N12) -> 8706.030279 | O57: =O31*(1+$S$6*$B$7)*(1+$S$6)^($S$12-O12) -> 11013.69775 | P57: =P31*(1+$S$6*$B$7)*(1+$S$6)^($S$12-P12) -> 11024.49147 | Q57: =Q31*(1+$S$6*$B$7)*(1+$S$6)^($S$12-Q12) -> 11534.28263 | R57: =R31*(1+$S$6*$B$7)*(1+$S$6)^($S$12-R12) -> 11622.32175 | S57: =S31*(1+$S$6*$B$7)*(1+$S$6)^($S$12-S12) -> 11798.32626 | T57: =T31*(1+$X$6*$B$7)*(1+$X$6)^($X$12-T12) -> 15068.92286 | U57: =U31*(1+$X$6*$B$7)*(1+$X$6)^($X$12-U12) -> 15126.46407 | V57: =V31*(1+$X$6*$B$7)*(1+$X$6)^($X$12-V12) -> 15216.82973 | W57: =W31*(1+$X$6*$B$7)*(1+$X$6)^($X$12-W12) -> 15286.50087 | X57: =X31*(1+$X$6*$B$7)*(1+$X$6)^($X$12-X12) -> 14994.1414 | Y57: =Y31*(1+$AC$6*$B$7)*(1+$AC$6)^($AC$12-Y12) -> 18223.29123 | Z57: =Z31*(1+$AC$6*$B$7)*(1+$AC$6)^($AC$12-Z12) -> 17869.53616 | AA57: =AA31*(1+$AC$6*$B$7)*(1+$AC$6)^($AC$12-AA12) -> 17559.56237 | AB57: =AB31*(1+$AC$6*$B$7)*(1+$AC$6)^($AC$12-AB12) -> 17189.67507 | AC57: =AC31*(1+$AC$6*$B$7)*(1+$AC$6)^($AC$12-AC12) -> 16915.77812 | AD57: =AD31*(1+$AF$6*$B$7)*(1+$AF$6)^($AF$12-AD12) -> 18859.28193 | AE57: =AE31*(1+$AF$6*$B$7)*(1+$AF$6)^($AF$12-AE12) -> 18348.17292 | AF57: =AF31*(1+$AF$6*$B$7)*(1+$AF$6)^($AF$12-AF12) -> 17935.05216
B59: Closing TRV (Incl Return) | C59: =Inputs!O148/1000 -> 143372.6445 | I59: =-$C$59*(1+I6)^(I12-C12) -> -184574.6894 | N59: =-I51*(1+N6)^(N12-I12) -> -247253.4163 | S59: =-N51*(1+S6)^(S12-N12) -> -286121.3684 | X59: =-S51*(1+X6)^(X12-S12) -> -282813.5267 | AC59: =-X51*(1+AC6)^(AC12-X12) -> -255649.5189 | AF59: =-AC51*(1+AF6)^(AF12-AC12) -> -190494.3458
B61: DAV | I61: =I39 -> 153743.7383 | N61: =N39 -> 177846.8446 | S61: =S39 -> 175063.4789 | X61: =X39 -> 164116.8006 | AC61: =AC39 -> 147623.4837 | AF61: =AF39 -> 135351.8388
B63: Calculated PA | I63: =-SUM(D57:I62) -> 46574.62299 | N63: =-SUM(J57:N62) -> 53961.33221 | S63: =-SUM(O57:S62) -> 54064.76966 | X63: =-SUM(T57:X62) -> 43003.86714 | AC63: =-SUM(Y57:AC62) -> 20268.19226 | AF63: =-SUM(AD57:AF62) -> 0
B64: Check | I64: =SUM(D57:I63) -> 0 | N64: =SUM(J57:N63) -> 0 | S64: =SUM(O57:S63) -> 0 | X64: =SUM(T57:X63) -> 0 | AC64: =SUM(Y57:AC63) -> 0 | AF64: =SUM(AD57:AF63) -> 0
